Workbook

Sheet Start
A1: You must enable macros before using this workbook.
A20: You must enable macros before using this workbook.

Sheet Expired (hidden)
A17: Your license has expired. Please contact MeasuringU to extend your subscription.
A22: Purchase Extended SUPR-Q License

Sheet SubscriptionDate (hidden)
B2: Subscription Valid Until:
B3: 2017-08-20

Sheet Home (hidden)
L1: measuringu.com
A2: SUPR-Q Calculator
A3: v2.4
C6: Scoring
J7: =IF(S32<0,"This Software License has expired, please renew at www.suprq.com","") -> 
C8: Raw Data Scoring
C10: Summary Scoring
C12: Select Websites in the SUPR-Q Database
C14: SUPR-Q Normal Curve Distribution Graph
C16: Summary Scoring by Attribute
J28: License Terms & Conditions
A36: Last Updated August 14, 2017 | V36: License expires on 8/20/17.
A37: Copyright © 2004-2017 Measuring Usability LLC

Sheet Scoring (hidden)
A1: Contents | X1: measuringusability.com | ED1: DO NOT EDIT | EF1: DO NOT EDIT | EH1: SURPQ | EI1: Usability | EJ1: Trust | EK1: Loyalty | EL1: Appearance
A2: SUPR-Q Scoring Sheet & Reliability Test | EG2: Graph Low | EH2: =Scoring!EX20-Scoring!EX31 -> 0 | EI2: =Scoring!EY20-Scoring!EY31 -> 0 | EJ2: =Scoring!EZ20-Scoring!EZ31 -> 0 | EK2: =Scoring!FA20-Scoring!FA31 -> 0 | EL2: =Scoring!FB20-Scoring!FB31 -> 0
A3: Paste raw SUPR-Q data (scored from 1 to 5 or 0 to 10) in the columns labeled Q1-Q8 for upto 5000 responses. | EG3: Graph High | EH3: =Scoring!EX36-Scoring!EX20 -> 0 | EI3: =Scoring!EY36-Scoring!EY20 -> 0 | EJ3: =Scoring!EZ36-Scoring!EZ20 -> 0 | EK3: =Scoring!FA36-Scoring!FA20 -> 0 | EL3: =Scoring!FB36-Scoring!FB20 -> 0
B5: Percentile Ranks | E5: Mean | F5: Low | G5: High | I5: Raw Score | K5: =AVERAGE(R21:R5010) -> 4.141666667 | M5: =IF(K7<0,"No Values Enetered","") ->  | AL5: Paste RAW DATA HERE | BG5: LOGS
B6: SUPR-Q | E6: =AC20 -> 0.8063219651 | F6: =AC31 -> 0.642353781 | G6: =AC36 -> 0.9302389116 | I6: StDev | K6: =STDEV(R21:R5010) -> 0.6941056623 | AQ6: Max Score | AR6: 5 | AS6: 5 | AT6: 5 | AU6: 5 | AV6: 5 | AW6: 10 | BE6: SUPR-Q | BF6: SUPR-Q % | BG6: Usability | BH6: Usability % | BI6: Trust | BJ6: Turst % | BK6: Loyalty | BL6: Loyalty% | BM6: Appearance | BN6: App. % | BO6: NPS %
B7: Usability | E7: =AD20 -> 0.6546828832 | F7: =AD31 -> 0.4859797283 | G7: =AD36 -> 0.8233775859 | I7: # Non-Blank | K7: =COUNT(R21:R5009) -> 45 | R7: Confidence Level | AQ7: Mean | AR7: =AVERAGE(AR11:AR201) -> 3.733240197 | AS7: =AVERAGE(AS11:AS201) -> 3.777580003 | AT7: =AVERAGE(AT11:AT201) -> 3.872107878 | AU7: =AVERAGE(AU11:AU201) -> 3.552494518 | AV7: =AVERAGE(AV11:AV196) -> 3.730735308 | AW7: =AVERAGE(AW11:AW196) -> -0.0727161055 | BD7: Mean | BE7: =AVERAGE(BE11:BE1219) -> 0.1663266423 | BG7: =AVERAGE(BG11:BG1219) -> 0.110636421 | BI7: =AVERAGE(BI11:BI1219) -> 0.05747114502 | BK7: =AVERAGE(BK11:BK1219) -> 0.240357581 | BM7: =AVERAGE(BM11:BM1201) -> 0.179010308 | BR7: Don't PASTE DATA HERE--THIS IS FOR SCORING
B8: Trust, Value & Comfort | E8: =AE20 -> 0.7502673772 | F8: =AE31 -> 0.5148305167 | G8: =AE36 -> 0.9334237734 | I8: Cronbach Alpha | K8: =CT25 -> 0.8772444314 | AQ8: Sd | AR8: =STDEV(AR11:AR202) -> 0.5060033379 | AS8: =STDEV(AS11:AS202) -> 0.5568591132 | AT8: =STDEV(AT11:AT202) -> 0.4090312585 | AU8: =STDEV(AU11:AU202) -> 0.7452972303 | AV8: =STDEV(AV11:AV202) -> 0.467808608 | AW8: =STDEV(AW11:AW196) -> 0.3816561354 | BD8: Sd | BE8: =STDEV(BE11:BE1219) -> 0.3691361032 | BG8: =STDEV(BG11:BG1219) -> 0.4216008796 | BI8: =STDEV(BI11:BI1219) -> 0.3550741247 | BK8: =STDEV(BK11:BK1219) -> 0.5212728454 | BM8: =STDEV(BM11:BM1219) -> 0.3412832475 | BR8: PASTE THIS INTO THE SHEET FOR SORTING | DR8: NPS
B9: Loyalty | E9: =AF20 -> 0.8676014823 | F9: =AF31 -> 0.7309336888 | G9: =AF36 -> 0.9634552691 | I9: Internal Reliability: | K9: =IF(K8>0.7,"Good","Poor") -> Good | DR9: Promoters | DS9: =COUNTIF(F21:F10011, ">8") -> 27
B10: Appearance | E10: =AG20 -> 0.7555319929 | F10: =AG31 -> 0.5662259939 | G10: =AG36 -> 0.9086352001 | AK10: Date | AL10: Original Order | AM10: Show | AN10: Web-Traffic | AO10: Study Type | AP10: Industry | AQ10: Name | AR10: SURPQ | AS10: Usability | AT10: Trust | AU10: Loyalty | AV10: Appearance | AW10: NPS | AX10: Promoters | AY10: Passives | AZ10: Detractors | BR10: Original Order | BS10: Show | BT10: =AN10 -> Web-Traffic | BU10: =IF(AO10<>"",AO10,"") -> Study Type | BV10: Industry | BW10: Name | BX10: SURPQ | BY10: Usability | BZ10: Trust | CA10: Loyalty | CB10: Appearance | CC10: NPS | CD10: Promoters | CE10: Passives | CF10: Detractors | CG10: NPS % | CP10: ColVar | CQ10: =CQ11^2 -> 0.6343434343 | CR10: 0.6545454545 | CS10: 0.8909090909 | CT10: 0.7545454545 | CU10: 5.188888889 | CV10: 0.6636363636 | CW10: 0.7494949495 | CX10: 0.5272727273 | DR10: Passive | DS10: =SUM(COUNTIF(F21:F10011,8), COUNTIF(F21:F10011,7)) -> 12
B11: NPS (Raw %) | E11: =AH20 -> 0.4666666667 | F11: =AH31 -> 0.2906074621 | G11: =AH36 -> 0.6427258713 | AB11: Global Calcs | AD11: Usability | AE11: Trust | AF11: Loyalty | AG11: App | AH11: Raw NPS | AI11: NPS % | AK11: 2017-02-13 | AL11: 1 | AO11: Perception | AP11: Retail | AQ11: 1800 Flowers | AR11: 4.085648148 | AS11: 4.092592593 | AT11: 4.080246914 | AU11: 3.953703704 | AV11: 4.216049383 | AW11: 0.2222222222 | AX11: 0.3827160494 | AY11: 0.4567901235 | AZ11: 0.1604938272 | BE11: =LN($AR$6-AR11) -> -0.08953982334 | BF11: =1-NORMSDIST((BE11-$BE$7)/$BE$8) -> 0.7558920981 | BG11: =LN($AS$6-AS11) -> -0.09716374845 | BH11: =1-NORMSDIST((BG11-$BG$7)/$BG$8) -> 0.6889525906 | BI11: =LN($AT$6-AT11) -> -0.08365002929 | BJ11: =1-NORMSDIST((BI11-$BI$7)/$BI$8) -> 0.6544790221 | BK11: =LN($AU$6-AU11) -> 0.04525659159 | BL11: =1-NORMSDIST((BK11-$BK$7)/$BK$8) -> 0.6459012734 | BM11: =LN($AV$6-AV11) -> -0.2434092488 | BN11: =1-NORMSDIST((BM11-$BM$7)/$BM$8) -> 0.8920935578 | BO11: =NORMSDIST((AW11-$AW$7)/$AW$8) -> 0.7801753321 | BR11: =IF(AL11<>"",AL11,"") -> 1 | BS11: =IF(AM11<>"",AM11,"") ->  | BT11: =IF(AN11<>"",AN11,"") ->  | BU11: =IF(AO11<>"",AO11,"") -> Perception | BV11: =IF(AP11<>"",AP11,"") -> Retail | BW11: =IF(AQ11<>"",AQ11,"") -> 1800 Flowers | BX11: =BF11 -> 0.7558920981 | BY11: =BH11 -> 0.6889525906 | BZ11: =BJ11 -> 0.6544790221 | CA11: =BL11 -> 0.6459012734 | CB11: =BN11 -> 0.8920935578 | CC11: =AW11 -> 0.2222222222 | CD11: =AX11 -> 0.3827160494 | CE11: =AY11 -> 0.4567901235 | CF11: =AZ11 -> 0.1604938272 | CG11: =BO11 -> 0.7801753321 | CP11: ColSD | CQ11: =STDEV(B21:B6009) -> 0.7964568 | CR11: 0.809039835 | CS11: 0.9438798074 | CT11: 0.868645759 | CU11: 2.277913275 | CV11: 0.8146387934 | CW11: 0.8657337636 | CX11: 0.7261354745 | DR11: Detractors | DS11: =COUNTIF(F21:F10011, "<7") -> 6
AB12: Max Score | AC12: =AR6 -> 5 | AD12: =AS6 -> 5 | AE12: =AT6 -> 5 | AF12: =AU6 -> 5 | AG12: =AV6 -> 5 | AH12: 10 | AK12: 2017-02-13 | AL12: 2 | AO12: Usability | AP12: Retail | AQ12: 1800 Flowers | AR12: 4.141129032 | AS12: 4.177419355 | AT12: 4.35483871 | AU12: 3.838709677 | AV12: 4.193548387 | AW12: 0.03225806452 | AX12: 0.2580645161 | AY12: 0.5161290323 | AZ12: 0.2258064516 | BE12: -0.1521365805 | BF12: 0.8058558653 | BG12: -0.1953087523 | BH12: 0.7659809517 | BI12: -0.4382549309 | BJ12: 0.9186608143 | BK12: 0.149531734 | BL12: 0.5691610217 | BM12: -0.2151113796 | BN12: 0.8759185081 | BO12: 0.6083607354 | BR12: 2 | BU12: Usability | BV12: Retail | BW12: 1800 Flowers | BX12: 0.8058558653 | BY12: 0.7659809517 | BZ12: 0.9186608143 | CA12: 0.5691610217 | CB12: =BN12 -> 0.8759185081 | CC12: =AW12 -> 0.03225806452 | CD12: 0.2580645161 | CE12: 0.5161290323 | CF12: 0.2258064516 | CG12: =BO12 -> 0.6083607354 | CI12: CI's Do not EDIT | DR12: Total | DS12: =COUNT(F21:F10011) -> 45
AB13: Global ln Mean | AC13: =BE7 -> 0.1663266423 | AD13: =BG7 -> 0.110636421 | AE13: =BI7 -> 0.05747114502 | AF13: =BK7 -> 0.240357581 | AG13: =BM7 -> 0.179010308 | AK13: 2015-07-15 | AL13: 3 | AO13: Perception | AP13: IT | AQ13: Adobe | AR13: 3.967261905 | AS13: 3.785714286 | AT13: 4.261904762 | AU13: 3.988095238 | AV13: 3.833333333 | AW13: 0 | AX13: 0.3333333333 | AY13: 0.3333333333 | AZ13: 0.3333333333 | BE13: =LN($AR$6-AR13) -> 0.03221361998 | BF13: 0.6418155482 | BG13: =LN($AS$6-AS13) -> 0.1941560144 | BH13: 0.4214829863 | BI13: =LN($AT$6-AT13) -> -0.3036824138 | BJ13: 0.845452205 | BK13: =LN($AU$6-AU13) -> 0.01183445765 | BL13: 0.6694498162 | BM13: 0.1541506798 | BN13: 0.5290339287 | BO13: 0.5755522213 | BR13: 3 | BS13: =IF(AM13<>"",AM13,"") ->  | BT13: =IF(AN13<>"",AN13,"") ->  | BU13: =IF(AO13<>"",AO13,"") -> Perception | BV13: =IF(AP13<>"",AP13,"") -> IT | BW13: =IF(AQ13<>"",AQ13,"") -> Adobe | BX13: 0.6418155482 | BY13: 0.4214829863 | BZ13: 0.845452205 | CA13: 0.6694498162 | CB13: 0.5290339287 | CC13: 0 | CD13: 0.3333333333 | CE13: 0.3333333333 | CF13: 0.3333333333 | CG13: 0.5755522213 | DR13: Net | DS13: =DS9-DS11 -> 21
AB14: Study Mean | AC14: =K5 -> 4.141666667 | AD14: =S19 -> 4.055555556 | AE14: =T19 -> 4.166666667 | AF14: =U19 -> 4.288888889 | AG14: =V19 -> 4.055555556 | AK14: 2015-07-15 | AL14: 4 | AO14: Usability | AP14: IT Services | AQ14: Adobe | AR14: 3.729166667 | AS14: 3.444444444 | AT14: 4.277777778 | AU14: 3.601851852 | AV14: 3.592592593 | AW14: 0.07407407407 | AX14: 0.4074074074 | AY14: 0.2592592593 | AZ14: 0.3333333333 | BE14: 0.2396728533 | BF14: 0.4212499123 | BG14: 0.4418327523 | BH14: 0.2160601897 | BI14: -0.3254224004 | BJ14: 0.8595608042 | BK14: 0.3351486097 | BL14: 0.4278520576 | BM14: 0.3417492937 | BN14: 0.3167364837 | BO14: 0.64973818 | BR14: 4 | BU14: Usability | BV14: IT Services | BW14: Adobe | BX14: 0.4212499123 | BY14: 0.2160601897 | BZ14: 0.8595608042 | CA14: 0.4278520576 | CB14: 0.3167364837 | CC14: 0.07407407407 | CD14: 0.4074074074 | CE14: 0.2592592593 | CF14: 0.3333333333 | CG14: 0.64973818 | CI14: 1 | CJ14: 0.5 | CQ14: Q1 | CR14: Q2 | CS14: Q3 | CT14: Q4 | CU14: Q5 | CV14: Q6 | CW14: Q7 | CX14: Q8 | CY14: Q9 | CZ14: Q10 | DA14: Q11 | DB14: Q12 | DC14: Q13 | DR14: % Promoter | DS14: =DS9/DS12 -> 0.6
AB15: Study Mean Ref | AC15: =LN(AC12-AC14) -> -0.1527627546 | AD15: =LN(AD12-AD14) -> -0.05715841384 | AE15: =LN(AE12-AE14) -> -0.1823215568 | AF15: =LN(AF12-AF14) -> -0.340926587 | AG15: =LN(AG12-AG14) -> -0.05715841384 | AK15: 2013-02-25 | AL15: 5 | AM15: 1 | AN15: High | AO15: Perception | AP15: Heathcare | AQ15: Aetna | AR15: 3.61391129 | AS15: 3.556451613 | AT15: 3.717741935 | AU15: 3.512096774 | AV15: 3.669354839 | AW15: -0.16 | AX15: 0.24 | AY15: 0.36 | AZ15: 0.4 | BE15: 0.3264859028 | BF15: 0.3321892791 | BG15: 0.3671042402 | BH15: 0.2714879658 | BI15: 0.2486226366 | BJ15: 0.295170308 | BK15: 0.3973678979 | BL15: 0.3816288477 | BM15: 0.2856639083 | BN15: 0.3773274033 | BO15: 0.4095519269 | BR15: 5 | BS15: 1 | BT15: High | BU15: Perception | BV15: Heathcare | BW15: Aetna | BX15: 0.3321892791 | BY15: 0.2714879658 | BZ15: 0.295170308 | CA15: 0.3816288477 | CB15: 0.3773274033 | CC15: -0.16 | CD15: 0.24 | CE15: 0.36 | CF15: 0.4 | CG15: 0.4095519269 | CI15: 2 | CJ15: 0.75 | CN15: N | CO15: RowSUM | CP15: RowAvg | DG15: Industry | DN15: Target Industry % | DO15: Industry Mean | DP15: SD | DR15: % Passive | DS15: =DS10/DS12 -> 0.2666666667
A16: Mean | B16: =IF(B18>0,AVERAGE(B21:B6003),"") -> 4.044444444 | C16: 4.066666667 | D16: 4.2 | E16: =IF(E18>0,AVERAGE(E21:E6003),"") -> 4.133333333 | F16: =IF(F18>0,AVERAGE(F21:F6003),"") -> 8.755555556 | G16: 4.2 | H16: 3.977777778 | I16: 4.133333333 | AB16: Global Ln SD | AC16: =BE8 -> 0.3691361032 | AD16: =BG8 -> 0.4216008796 | AE16: =BI8 -> 0.3550741247 | AF16: =BK8 -> 0.5212728454 | AG16: =BM8 -> 0.3412832475 | AK16: 2015-07-15 | AL16: 6 | AO16: Usability | AP16: Informational | AQ16: Air Mac | AR16: 3.9875 | AS16: 4.58 | AT16: 4.12 | AU16: 3.15 | AV16: 4.1 | AW16: -0.2 | AX16: 0.24 | AY16: 0.32 | AZ16: 0.44 | BE16: 0.01242252 | BF16: 0.6616354001 | BG16: -0.8675005677 | BH16: 0.9898310335 | BI16: -0.1278333715 | BJ16: 0.6991215207 | BK16: 0.6151856391 | BL16: 0.2360510269 | BM16: -0.1053605157 | BN16: 0.7976452819 | BO16: 0.3693768891 | BR16: 6 | BU16: Usability | BV16: Informational | BW16: Air Mac | BX16: 0.6616354001 | BY16: 0.9898310335 | BZ16: 0.6991215207 | CA16: 0.2360510269 | CB16: 0.7976452819 | CC16: -0.2 | CD16: 0.24 | CE16: 0.32 | CF16: 0.44 | CG16: 0.3693768891 | CI16: 3 | CJ16: 0.8 | CK16: 5 | CL16: 2 | CN16: =COUNT(B21:I21) -> 8 | CO16: =IF($CN16=8,SUM($B21:$I21),"") -> 41 | CP16: =IF(CN16=8,CO16/CN16,"") -> 5.125 | DJ16: Industry Avg | DK16: SD | DL16: Industr % | DM16: =VLOOKUP(DM18,DG17:DL30,4) -> 2.87969 | DN16: =VLOOKUP(DM18,DG17:DL30,6) -> 0.5 | DO16: =VLOOKUP(DM18,DG17:DL30,4) -> 2.87969 | DP16: =VLOOKUP(DM18,DG17:DL30,5) -> 0.383246 | DR16: % Detractor | DS16: =DS11/DS12 -> 0.1333333333
A17: SD | B17: =IF(B18>0,STDEV(B21:B6003),"") -> 0.7964568 | C17: 0.809039835 | D17: 0.9438798074 | E17: =IF(E18>0,STDEV(E21:E6003),"") -> 0.868645759 | F17: =IF(F18>0,STDEV(F21:F6003),"") -> 2.277913275 | G17: 0.8146387934 | H17: 0.8657337636 | I17: 0.7261354745 | T17: Sub-Scales | AB17: Study SD | AC17: =K6 -> 0.6941056623 | AD17: =S20 -> 0.7554515674 | AE17: =T20 -> 0.8461141122 | AF17: =U20 -> 0.8443588806 | AG17: =V20 -> 0.7402565758 | AK17: 2016-10-27 | AL17: 7 | AM17: 1 | AN17: High | AO17: Perception | AP17: Retail | AQ17: Amazon | AR17: 4.496010638 | AS17: 4.521276596 | AT17: 4.404255319 | AU17: 4.64893617 | AV17: 4.409574468 | AW17: 0.670212766 | AX17: 0.7446808511 | AY17: 0.1808510638 | AZ17: 0.07446808511 | BE17: -0.6852001189 | BF17: 0.9894672857 | BG17: -0.7366322925 | BH17: 0.9777656897 | BI17: -0.5179430915 | BJ17: 0.9474425652 | BK17: -1.046787221 | BL17: 0.9932298739 | BM17: -0.5269117615 | BN17: 0.9807004117 | BO17: 0.9742081801 | BR17: 7 | BS17: 1 | BT17: High | BU17: Perception | BV17: Retail | BW17: Amazon | BX17: 0.9894672857 | BY17: 0.9777656897 | BZ17: 0.9474425652 | CA17: 0.9932298739 | CB17: 0.9807004117 | CC17: 0.670212766 | CD17: 0.7446808511 | CE17: 0.1808510638 | CF17: 0.07446808511 | CG17: 0.9742081801 | CI17: 4 | CJ17: 0.85 | CN17: 8 | CO17: 24 | CP17: =IF(CN17=8,CO17/CN17,"") -> 3 | DF17: =DI17 -> A | DG17: 1 | DH17: All | DI17: A | DJ17: 2.87969 | DK17: 0.383246 | DL17: =1-NORMSDIST((DJ17-$DJ$17)/$DK$17) -> 0.5
A18: N | B18: =COUNT(B21:B6000) -> 45 | C18: 45 | D18: 45 | E18: =COUNT(E21:E6000) -> 45 | F18: =COUNT(F21:F6000) -> 45 | G18: 45 | H18: 45 | I18: 45 | R18: SUPR-Q | S18: Usability | T18: Trust, Value & Comfort | U18: Loyalty | V18: Appearance | AB18: zReflect | AC18: =(AC15-AC13)/AC16 -> -0.8644220764 | AD18: =(AD15-AD13)/AD16 -> -0.3979945085 | AE18: =(AE15-AE13)/AE16 -> -0.675331389 | AF18: =(AF15-AF13)/AF16 -> -1.11512459 | AG18: =(AG15-AG13)/AG16 -> -0.6920020938 | AK18: 2016-12-28 | AL18: 8 | AO18: Usability | AP18: Entertainment | AQ18: Amazon Instant Video | AR18: 4.2075 | AS18: 4.23 | AT18: 4.5 | AU18: 4.09 | AV18: 4.01 | AW18: 0.2 | AX18: 0.44 | AY18: 0.32 | AZ18: 0.24 | BE18: -0.2325627732 | BF18: 0.8600630268 | BG18: -0.2613647641 | BH18: 0.8112072745 | BI18: -0.6931471806 | BJ18: 0.9827413592 | BK18: -0.09431067947 | BL18: 0.7395703176 | BM18: -0.01005033585 | BN18: 0.7102002746 | BO18: 0.7625594325 | BR18: 8 | BU18: Usability | BV18: Entertainment | BW18: Amazon Instant Video | BX18: 0.8600630268 | BY18: 0.8112072745 | BZ18: 0.9827413592 | CA18: 0.7395703176 | CB18: 0.7102002746 | CC18: 0.2 | CD18: 0.44 | CE18: 0.32 | CF18: 0.24 | CG18: 0.7625594325 | CI18: 5 | CJ18: 0.9 | CK18: =VLOOKUP(CK16,CI14:CJ20,2) -> 0.9 | CN18: 8 | CO18: 36 | CP18: 4.5 | CS18: SumVar | CT18: =SUM(CQ10:CX10) -> 10.06363636 | DF18: Air | DG18: 2 | DH18: Airlines | DI18: Air | DJ18: 2.8017 | DK18: 0.170941 | DL18: 0.5806273052 | DM18: 1 | DR18: % NPS | DS18: =(DS9-DS11)/DS12 -> 0.4666666667
B19: Q1 | C19: Q2 | D19: Q3 | E19: Q4 | F19: Q5 | G19: Q6 | H19: Q7 | I19: Q8 | R19: =AVERAGE(R21:R50008) -> 4.141666667 | S19: =AVERAGE(S21:S5008) -> 4.055555556 | T19: =AVERAGE(T21:T5008) -> 4.166666667 | U19: =AVERAGE(U21:U5008) -> 4.288888889 | V19: =AVERAGE(V21:V5008) -> 4.055555556 | W19: Mean | AB19: %Reflect | AC19: =NORMSDIST(AC18) -> 0.1936780349 | AD19: =NORMSDIST(AD18) -> 0.3453171168 | AE19: =NORMSDIST(AE18) -> 0.2497326228 | AF19: =NORMSDIST(AF18) -> 0.1323985177 | AG19: =NORMSDIST(AG18) -> 0.2444680071 | AK19: 2014-06-01 | AL19: 10 | AM19: 1 | AN19: High | AO19: Usability | AP19: Airlines | AQ19: American Airlines | AR19: 3.4092275 | AS19: 3.36905 | AT19: 3.64286 | AU19: 3.24405 | AV19: 3.38095 | AW19: -0.3333333333 | AX19: 0.1904761905 | AY19: 0.2857142857 | AZ19: 0.5238095238 | BE19: 0.4642197473 | BF19: 0.2098330311 | BG19: 0.4891626671 | BH19: 0.1846378864 | BI19: 0.3053795443 | BJ19: 0.2425298975 | BK19: 0.563010021 | BL19: 0.2679679431 | BM19: 0.4818395575 | BN19: 0.1874519023 | BO19: 0.2473480539 | BR19: 10 | BS19: 1 | BT19: High | BU19: Usability | BV19: Airlines | BW19: American Airlines | BX19: 0.2098330311 | BY19: 0.1846378864 | BZ19: 0.2425298975 | CA19: 0.2679679431 | CB19: 0.1874519023 | CC19: -0.3333333333 | CD19: 0.1904761905 | CE19: 0.2857142857 | CF19: 0.5238095238 | CG19: 0.2473480539 | CI19: 6 | CJ19: 0.95 | CN19: 8 | CO19: 37 | CP19: 4.625 | CS19: TestSD | CT19: =STDEV(CO16:CO6004) -> 6.580350302 | DF19: Auto | DG19: 3 | DH19: 3rd Party Automotive | DI19: Auto | DJ19: 2.98196 | DK19: 0.156001 | DL19: 0.394791519 | DR19: Mean | DS19: =AVERAGE(K21:K10011) -> 
B20: This website is easy to use | C20: It is easy to navigate within the website. | D20: The information on this website is trustworthy. | E20: The information on this website is credible. | F20: How likely are you to recommend this website to a friend or colleague? | G20: I will likely visit this website in the future. | H20: I find the website to be attractive. | I20: The website has a clean and simple presentation. | O20: . | R20: =STDEV(R21:R5009) -> 0.6941056623 | S20: =STDEV(S21:S5009) -> 0.7554515674 | T20: =STDEV(T21:T5009) -> 0.8461141122 | U20: =STDEV(U21:U5009) -> 0.8443588806 | V20: =STDEV(V21:V5009) -> 0.7402565758 | W20: SD | AB20: % | AC20: =1-AC19 -> 0.8063219651 | AD20: =1-AD19 -> 0.6546828832 | AE20: =1-AE19 -> 0.7502673772 | AF20: =1-AF19 -> 0.8676014823 | AG20: =1-AG19 -> 0.7555319929 | AH20: =DS18 -> 0.4666666667 | AI20: =DP47 -> 0.9212116725 | AK20: 2014-06-01 | AL20: 11 | AM20: 1 | AN20: High | AO20: Perception | AP20: Airlines | AQ20: American Airlines | AR20: 4.167613636 | AS20: 4.209090909 | AT20: 4.163636364 | AU20: 4.120454545 | AV20: 4.177272727 | AW20: 0.2545454545 | AX20: 0.4636363636 | AY20: 0.3272727273 | AZ20: 0.2090909091 | BE20: -0.1834585666 | BF20: 0.8283278061 | BG20: -0.2345722471 | BH20: 0.7935509987 | BI20: -0.1786917887 | BJ20: 0.7470095546 | BK20: -0.1283500339 | BL20: 0.7603167201 | BM20: -0.1951305151 | BN20: 0.863521117 | BO20: 0.8044094859 | BR20: 11 | BS20: 1 | BT20: High | BU20: Perception | BV20: Airlines | BW20: American Airlines | BX20: 0.8283278061 | BY20: 0.7935509987 | BZ20: 0.7470095546 | CA20: 0.7603167201 | CB20: 0.863521117 | CC20: 0.2545454545 | CD20: 0.4636363636 | CE20: 0.3272727273 | CF20: 0.2090909091 | CG20: 0.8044094859 | CI20: 7 | CJ20: 0.99 | CN20: 8 | CO20: 23 | CP20: 2.875 | CS20: TestVar | CT20: =CT19^2 -> 43.3010101 | DF20: F | DG20: 4 | DH20: Financial | DI20: F | DJ20: 3.08695 | DK20: 0.485731 | DL20: 0.2943222149 | DM20: =VLOOKUP(DM18,DG17:DL32,3) -> A
B21: 4 | C21: 4 | D21: 5 | E21: 5 | F21: 10 | G21: 4 | H21: 5 | I21: 4 | P21: =IF(COUNT(B21:K21)<8,0,1) -> 1 | R21: =IF(COUNT(B21:I21)=8,AVERAGE(B21:E21,G21:I21,0.5*F21),"") -> 4.5 | S21: =IF(COUNT(B21:C21)=2,AVERAGE(B21:C21),"") -> 4 | T21: =IF(COUNT(D21:E21)=2,AVERAGE(D21:E21),"") -> 5 | U21: =IF(COUNT(G21,F21)=2,AVERAGE(G21,0.5*F21),"") -> 4.5 | V21: =IF(COUNT(H21:I21)=2,AVERAGE(H21:I21),"") -> 4.5 | AB21: N | AC21: =K7 -> 45 | AD21: =COUNT(S21:S6005) -> 45 | AE21: =COUNT(T21:T6005) -> 45 | AF21: =COUNT(U21:U6005) -> 45 | AG21: =COUNT(V21:V6005) -> 45 | AK21: 2016-09-16 | AL21: 12 | AO21: Perception | AP21: Retail | AQ21: Apple | AR21: 4.247191011 | AS21: 4.129213483 | AT21: 4.438202247 | AU21: 4.016853933 | AV21: 4.404494382 | AW21: 0.1348314607 | AX21: 0.4269662921 | AY21: 0.2808988764 | AZ21: 0.2921348315 | BE21: -0.2839437503 | BF21: 0.8887287114 | BG21: -0.1383584334 | BH21: 0.7226036811 | BI21: -0.5766133643 | BJ21: 0.9629326114 | BK21: -0.01699757637 | BL21: 0.689242833 | BM21: -0.5183444562 | BN21: 0.9794901767 | BO21: 0.7067131141 | BR21: 12 | BU21: Perception | BV21: Retail | BW21: Apple | BX21: 0.8887287114 | BY21: 0.7226036811 | BZ21: 0.9629326114 | CA21: 0.689242833 | CB21: 0.9794901767 | CC21: 0.1348314607 | CD21: 0.4269662921 | CE21: 0.2808988764 | CF21: 0.2921348315 | CG21: 0.7067131141 | CN21: 8 | CO21: 29 | CP21: 3.625 | CS21: DF | CT21: =8-1 -> 7 | CU21: <--Num Questions -1 | DF21: Fl | DG21: 5 | DH21: Flowers | DI21: Fl | DJ21: 2.79914 | DK21: 0.344818 | DL21: 0.5832357497
B22: 2 | C22: 3 | D22: 2 | E22: 3 | F22: 6 | G22: 2 | H22: 3 | I22: 3 | P22: =IF(COUNT(B22:K22)<8,0,1) -> 1 | R22: =IF(COUNT(B22:I22)=8,AVERAGE(B22:E22,G22:I22,0.5*F22),"") -> 2.625 | S22: =IF(COUNT(B22:C22)=2,AVERAGE(B22:C22),"") -> 2.5 | T22: =IF(COUNT(D22:E22)=2,AVERAGE(D22:E22),"") -> 2.5 | U22: =IF(COUNT(G22,F22)=2,AVERAGE(G22,0.5*F22),"") -> 2.5 | V22: =IF(COUNT(H22:I22)=2,AVERAGE(H22:I22),"") -> 3 | AB22: SE | AC22: =AC17/SQRT(AC21) -> 0.103471163 | AD22: =AD17/SQRT(AD21) -> 0.1126160706 | AE22: =AE17/SQRT(AE21) -> 0.1261312448 | AF22: =AF17/SQRT(AF21) -> 0.1258695903 | AG22: =AG17/SQRT(AG21) -> 0.1103509349 | AK22: 2012-04-15 | AL22: 13 | AM22: 1 | AN22: High | AO22: Perception | AP22: Wireless | AQ22: At&t | AR22: 3.431404959 | AS22: 3.311983471 | AT22: 3.527272727 | AU22: 3.254132231 | AV22: 3.632231405 | AW22: -0.3870967742 | AX22: 0.1935483871 | AY22: 0.2258064516 | AZ22: 0.5806451613 | BE22: 0.4501803406 | BF22: 0.2209562765 | BG22: 0.5235541881 | BH22: 0.1636900957 | BI22: 0.3871159694 | BJ22: 0.1766044352 | BK22: 0.5572517206 | BL22: 0.2716190256 | BM22: 0.3131806492 | BN22: 0.3471099396 | BO22: 0.2050471944 | BR22: 13 | BS22: 1 | BT22: High | BU22: Perception | BV22: Wireless | BW22: At&t | BX22: 0.2209562765 | BY22: 0.1636900957 | BZ22: 0.1766044352 | CA22: 0.2716190256 | CB22: 0.3471099396 | CC22: -0.3870967742 | CD22: 0.1935483871 | CE22: 0.2258064516 | CF22: 0.5806451613 | CG22: 0.2050471944 | CI22: Do not EDIT | CN22: 8 | CO22: 36 | CP22: 4.5 | CS22: N | CT22: 8 | CU22: <--Num Questions | DF22: G | DG22: 6 | DH22: Governments | DI22: G | DJ22: 3.45991 | DK22: 0.193572 | DL22: 0.06501769931 | DO22: Z | DP22: =ABS(NORMSINV((1-CK18)/2)) -> 1.644853627
B23: 4 | C23: 4 | D23: 4 | E23: 3 | F23: 9 | G23: 3 | H23: 4 | I23: 5 | P23: =IF(COUNT(B23:K23)<8,0,1) -> 1 | R23: =IF(COUNT(B23:I23)=8,AVERAGE(B23:E23,G23:I23,0.5*F23),"") -> 3.9375 | S23: 4 | T23: 3.5 | U23: 3.75 | V23: 4.5 | AB23: t | AC23: =TINV(1-$CK$18,AC21-1) -> 1.680229977 | AD23: =TINV(1-$CK$18,AD21-1) -> 1.680229977 | AE23: =TINV(1-$CK$18,AE21-1) -> 1.680229977 | AF23: =TINV(1-$CK$18,AF21-1) -> 1.680229977 | AG23: =TINV(1-$CK$18,AG21-1) -> 1.680229977 | AK23: 2012-04-15 | AL23: 15 | AM23: 1 | AN23: High | AO23: Perception | AP23: 3rd Party Automotive | AQ23: Autotrader | AR23: 4.16846875 | AS23: 4.289775 | AT23: 4.0091 | AU23: 4.227275 | AV23: 4.147725 | AW23: 0.3181818182 | AX23: 0.4772727273 | AY23: 0.3636363636 | AZ23: 0.1590909091 | BE23: -0.1844863984 | BF23: 0.8290359066 | BG23: -0.3421734577 | BH23: 0.8585942584 | BI23: -0.009141657917 | BJ23: 0.5744058773 | BK23: -0.2578320505 | BL23: 0.8303925353 | BM23: -0.1598460343 | BN23: 0.8396179459 | BO23: 0.847133123 | BR23: 15 | BS23: 1 | BT23: High | BU23: Perception | BV23: 3rd Party Automotive | BW23: Autotrader | BX23: 0.8290359066 | BY23: 0.8585942584 | BZ23: 0.5744058773 | CA23: 0.8303925353 | CB23: 0.8396179459 | CC23: 0.3181818182 | CD23: 0.4772727273 | CE23: 0.3636363636 | CF23: 0.1590909091 | CG23: 0.847133123 | CN23: 8 | CO23: 41 | CP23: 5.125 | CS23: N/DF | CT23: =CT22/CT21 -> 1.142857143 | DF23: Info | DG23: 7 | DH23: Informational | DI23: Info | DJ23: 2.71971 | DK23: 0.245948 | DL23: 0.6618195901
B24: 4 | C24: 4 | D24: 4 | E24: 4 | F24: 9 | G24: 4 | H24: 4 | I24: 4 | P24: 1 | R24: 4.0625 | S24: 4 | T24: 4 | U24: 4.25 | V24: 4 | AB24: Margin | AC24: =AC23*AC22 -> 0.1738553497 | AD24: =AD23*AD22 -> 0.1892208976 | AE24: =AE23*AE22 -> 0.2119294985 | AF24: =AF23*AF22 -> 0.2114898587 | AG24: =AG23*AG22 -> 0.1854149488 | AK24: 2012-04-15 | AL24: 16 | AM24: 1 | AN24: High | AO24: Usability | AP24: 3rd Party Automotive | AQ24: Autotrader | AR24: 3.29839125 | AS24: 3.35485 | AT24: 3.45162 | AU24: 3.064515 | AV24: 3.32258 | AW24: -0.3870967742 | AX24: 0.1612903226 | AY24: 0.2903225806 | AZ24: 0.5483870968 | BE24: 0.5315741271 | BF24: 0.1612176903 | BG24: 0.4978315655 | BH24: 0.1792066715 | BI24: 0.4372092231 | BJ24: 0.1424309018 | BK24: 0.6603579411 | BL24: 0.2102019345 | BM24: 0.5172568987 | BN24: 0.1608178299 | BO24: 0.2050471944 | BR24: 16 | BS24: 1 | BT24: High | BU24: Usability | BV24: 3rd Party Automotive | BW24: Autotrader | BX24: 0.1612176903 | BY24: 0.1792066715 | BZ24: 0.1424309018 | CA24: 0.2102019345 | CB24: 0.1608178299 | CC24: -0.3870967742 | CD24: 0.1612903226 | CE24: 0.2903225806 | CF24: 0.5483870968 | CG24: 0.2050471944 | CN24: 8 | CO24: 46 | CP24: 5.75 | CT24: =1-(CT18/CT20) -> 0.7675888775 | DF24: IT | DG24: 8 | DH24: IT Services | DI24: IT | DJ24: 3.01299 | DK24: 0.160376 | DL24: 0.3639882954
B25: 4 | C25: 3 | D25: 2 | E25: 2 | F25: 3 | G25: 4 | H25: 2 | I25: 3 | P25: 1 | R25: 2.6875 | S25: 3.5 | T25: 2 | U25: 2.75 | V25: 2.5 | AB25: Low | AC25: =IF(AC14-AC24<1,1,AC14-AC24) -> 3.967811317 | AD25: =IF(AD14-AD24<1,1,AD14-AD24) -> 3.866334658 | AE25: =IF(AE14-AE24<1,1,AE14-AE24) -> 3.954737168 | AF25: =IF(AF14-AF24<1,1,AF14-AF24) -> 4.07739903 | AG25: =IF(AG14-AG24<1,1,AG14-AG24) -> 3.870140607 | AK25: 2013-02-25 | AL25: 17 | AM25: 1 | AN25: High | AO25: Perception | AP25: Financial | AQ25: Bank of America | AR25: 3.965073529 | AS25: 4.036764706 | AT25: 3.919117647 | AU25: 4.066176471 | AV25: 3.838235294 | AW25: 0.13 | AX25: 0.39 | AY25: 0.35 | AZ25: 0.26 | BE25: 0.03433038128 | BF25: 0.6396717573 | BG25: -0.03745756253 | BH25: 0.6373055369 | BI25: 0.07777770104 | BJ25: 0.4771970714 | BK25: -0.06846779928 | BL25: 0.7232236088 | BM25: 0.1499401473 | BN25: 0.5339404514 | BO25: 0.7023420809 | BR25: 17 | BS25: 1 | BT25: High | BU25: Perception | BV25: Financial | BW25: Bank of America | BX25: 0.6396717573 | BY25: 0.6373055369 | BZ25: 0.4771970714 | CA25: 0.7232236088 | CB25: 0.5339404514 | CC25: 0.13 | CD25: 0.39 | CE25: 0.35 | CF25: 0.26 | CG25: 0.7023420809 | CN25: 8 | CO25: 30 | CP25: 3.75 | CS25: alpha | CT25: =CT24*CT23 -> 0.8772444314 | DF25: N | DG25: 9 | DH25: News | DI25: N | DJ25: 2.54731 | DK25: 0.206551 | DL25: 0.8071045569 | DO25: RAW NPS CI
B26: 4 | C26: 3 | D26: 2 | E26: 3 | F26: 7 | G26: 4 | H26: 3 | I26: 3 | P26: 1 | R26: 3.1875 | S26: 3.5 | T26: 2.5 | U26: 3.75 | V26: 3 | AB26: High | AC26: =IF(AC14+AC24>AC12,AC12,AC14+AC24) -> 4.315522016 | AD26: =IF(AD14+AD24>AD12,AD12,AD14+AD24) -> 4.244776453 | AE26: =IF(AE14+AE24>AE12,AE12,AE14+AE24) -> 4.378596165 | AF26: =IF(AF14+AF24>AF12,AF12,AF14+AF24) -> 4.500378748 | AG26: =IF(AG14+AG24>AG12,AG12,AG14+AG24) -> 4.240970504 | AK26: 2013-02-25 | AL26: 18 | AM26: 1 | AN26: High | AO26: Perception | AP26: Healthcare | AQ26: BCBS | AR26: 3.732673267 | AS26: 3.623762376 | AT26: 3.841584158 | AU26: 3.797029703 | AV26: 3.668316832 | AW26: -0.02564102564 | AX26: 0.31 | AY26: 0.35 | AZ26: 0.34 | BE26: 0.2369097471 | BF26: 0.424179908 | BG26: 0.3193534163 | BH26: 0.3102795003 | BI26: 0.147053418 | BJ26: 0.4004077816 | BK26: 0.1847937459 | BL26: 0.5424439107 | BM26: 0.2864436822 | BN26: 0.3764596394 | BO26: 0.5490827388 | BR26: 18 | BS26: 1 | BT26: High | BU26: Perception | BV26: Healthcare | BW26: BCBS | BX26: 0.424179908 | BY26: 0.3102795003 | BZ26: 0.4004077816 | CA26: 0.5424439107 | CB26: 0.3764596394 | CC26: -0.02564102564 | CD26: 0.31 | CE26: 0.35 | CF26: 0.34 | CG26: 0.5490827388 | CN26: 8 | CO26: 35 | CP26: 4.375 | DF26: R | DG26: 10 | DH26: Retail | DI26: R | DJ26: 2.72598 | DK26: 0.490591 | DL26: 0.6558171728
B27: 4 | C27: 4 | D27: 4 | E27: 4 | F27: 8 | G27: 4 | H27: 4 | I27: 4 | P27: 1 | R27: 4 | S27: 4 | T27: 4 | U27: 4 | V27: 4 | AK27: 2016-10-27 | AL27: 19 | AM27: 1 | AN27: High | AO27: Perception | AP27: Retail | AQ27: Bed, Bath, and Beyond | AR27: 4.050271739 | AS27: 4.201086957 | AT27: 4.190217391 | AU27: 3.885869565 | AV27: 3.923913043 | AW27: 0.04347826087 | AX27: 0.3369565217 | AY27: 0.3695652174 | AZ27: 0.2934782609 | BE27: -0.0515793765 | BF27: 0.7225097491 | BG27: -0.2245031708 | BH27: 0.7866704085 | BI27: -0.2109894517 | BJ27: 0.7751961356 | BK27: 0.1080742215 | BL27: 0.6001633369 | BM27: 0.07333127309 | BN27: 0.6215871901 | BO27: 0.6196066177 | BR27: 19 | BS27: 1 | BT27: High | BU27: Perception | BV27: Retail | BW27: Bed, Bath, and Beyond | BX27: 0.7225097491 | BY27: 0.7866704085 | BZ27: 0.7751961356 | CA27: 0.6001633369 | CB27: 0.6215871901 | CC27: 0.04347826087 | CD27: 0.3369565217 | CE27: 0.3695652174 | CF27: 0.2934782609 | CG27: 0.6196066177 | CN27: 8 | CO27: 36 | CP27: 4.5 | DF27: Res | DG27: 11 | DH27: Restaurants | DI27: Res | DJ27: 3.29543 | DK27: 0.014787 | DL27: 0.1390081633 | DO27: x1 | DP27: =DS11 -> 6
B28: 4 | C28: 4 | D28: 5 | E28: 5 | F28: 10 | G28: 5 | H28: 4 | I28: 4 | P28: 1 | R28: 4.5 | S28: 4 | T28: 5 | U28: 5 | V28: 4 | AB28: Low Ln Reflect | AC28: =LN(AC12-AC25) -> 0.03168148277 | AD28: =LN(AD12-AD25) -> 0.1254560489 | AE28: =LN(AE12-AE25) -> 0.04426836747 | AF28: =LN(AF12-AF25) -> -0.08055845664 | AG28: =LN(AG12-AG25) -> 0.1220931943 | AK28: 2012-04-15 | AL28: 20 | AM28: 1 | AN28: Low | AO28: Usability | AP28: Financial | AQ28: Bellco | AR28: 3.26125 | AS28: 3.375 | AT28: 3.62 | AU28: 2.6 | AV28: 3.45 | AW28: -0.2 | AX28: 0.2 | AY28: 0.4 | AZ28: 0.4 | BE28: 0.5531664643 | BF28: 0.1473285486 | BG28: 0.4855078158 | BH28: 0.1869580661 | BI28: 0.3220834992 | BJ28: 0.2280659499 | BK28: 0.8754687374 | BL28: 0.1115388001 | BM28: 0.4382549309 | BN28: 0.2237417191 | BO28: 0.3693768891 | BR28: 20 | BS28: 1 | BT28: Low | BU28: Usability | BV28: Financial | BW28: Bellco | BX28: 0.1473285486 | BY28: 0.1869580661 | BZ28: 0.2280659499 | CA28: 0.1115388001 | CB28: 0.2237417191 | CC28: -0.2 | CD28: 0.2 | CE28: 0.4 | CF28: 0.4 | CG28: 0.3693768891 | CN28: 8 | CO28: 41 | CP28: 5.125 | DF28: S | DG28: 12 | DH28: Social Networking | DI28: S | DJ28: 2.79224 | DK28: 0.147645 | DL28: 0.5902477864 | DO28: x2 | DP28: =DS9 -> 27
B29: 5 | C29: 5 | D29: 5 | E29: 5 | F29: 11 | G29: 5 | H29: 5 | I29: 5 | P29: 1 | R29: 5.0625 | S29: 5 | T29: 5 | U29: 5.25 | V29: 5 | AB29: zReflect | AC29: =(AC28-$AC$13)/$AC$16 -> -0.3647574927 | AD29: =(AD28-$AD$13)/$AD$16 -> 0.03515084677 | AE29: =(AE28-$AE$13)/$AE$16 -> -0.03718315878 | AF29: =(AF28-$AF$13)/$AF$16 -> -0.6156392771 | AG29: =(AG28-$AG$13)/$AG$16 -> -0.1667738283 | AK29: 2016-10-27 | AL29: 21 | AM29: 1 | AN29: High | AO29: Perception | AP29: Retail | AQ29: BestBuy | AR29: 4.061805556 | AS29: 4.133333333 | AT29: 4.133333333 | AU29: 3.991666667 | AV29: 3.988888889 | AW29: 0.1444444444 | AX29: 0.4 | AY29: 0.3444444444 | AZ29: 0.2555555556 | BE29: -0.06379805461 | BF29: 0.733493823 | BG29: -0.1431008436 | BH29: 0.7263604595 | BI29: -0.1431008436 | BJ29: 0.7139201193 | BK29: 0.008298802815 | BL29: 0.6719041437 | BM29: 0.01104983619 | BN29: 0.6886911936 | BO29: 0.7153203376 | BR29: 21 | BS29: 1 | BT29: High | BU29: Perception | BV29: Retail | BW29: BestBuy | BX29: 0.733493823 | BY29: 0.7263604595 | BZ29: 0.7139201193 | CA29: 0.6719041437 | CB29: 0.6886911936 | CC29: 0.1444444444 | CD29: 0.4 | CE29: 0.3444444444 | CF29: 0.2555555556 | CG29: 0.7153203376 | CN29: 8 | CO29: 33 | CP29: 4.125 | DF29: T | DG29: 13 | DH29: Travel | DI29: T | DJ29: 2.82078 | DK29: 0.129207 | DL29: 0.5610820936 | DO29: N1 | DP29: =DS12 -> 45
B30: 3 | C30: 4 | D30: 5 | E30: 5 | F30: 4 | G30: 4 | H30: 2 | I30: 3 | P30: 1 | R30: 3.5 | S30: 3.5 | T30: 5 | U30: 3 | V30: 2.5 | AB30: %Reflect | AC30: =NORMSDIST(AC29) -> 0.357646219 | AD30: =NORMSDIST(AD29) -> 0.5140202717 | AE30: =NORMSDIST(AE29) -> 0.4851694833 | AF30: =NORMSDIST(AF29) -> 0.2690663112 | AG30: =NORMSDIST(AG29) -> 0.4337740061 | AK30: 2015-07-15 | AL30: 23 | AO30: Usability | AP30: Retail | AQ30: BicycleDoctorUSA | AR30: 1.955 | AS30: 1.86 | AT30: 3 | AU30: 1.5 | AV30: 1.46 | AW30: -0.84 | AX30: 0.04 | AY30: 0.08 | AZ30: 0.88 | BE30: 1.113500901 | BF30: 0.005145105858 | BG30: 1.1442228 | BH30: 0.007111617623 | BI30: 0.6931471806 | BJ30: 0.03670582799 | BK30: 1.252762968 | BL30: 0.02605769238 | BM30: 1.264126727 | BN30: 0.0007375996134 | BO30: 0.02219410275 | BR30: 23 | BU30: Usability | BV30: Retail | BW30: BicycleDoctorUSA | BX30: 0.005145105858 | BY30: 0.007111617623 | BZ30: 0.03670582799 | CA30: 0.02605769238 | CB30: 0.0007375996134 | CC30: -0.84 | CD30: 0.04 | CE30: 0.08 | CF30: 0.88 | CG30: 0.02219410275 | CN30: 8 | CO30: 35 | CP30: 4.375 | DF30: W | DG30: 14 | DH30: Wireless | DI30: W | DJ30: 3.13584 | DK30: 0.170356 | DL30: 0.2519488276 | DO30: N2 | DP30: =DS12 -> 45
B31: 4 | C31: 4 | D31: 3 | E31: 3 | F31: 9 | G31: 4 | H31: 4 | I31: 4 | P31: 1 | R31: 3.8125 | S31: 4 | T31: 3 | U31: 4.25 | V31: 4 | AB31: % | AC31: =1-AC30 -> 0.642353781 | AD31: =1-AD30 -> 0.4859797283 | AE31: =1-AE30 -> 0.5148305167 | AF31: =1-AF30 -> 0.7309336888 | AG31: =1-AG30 -> 0.5662259939 | AH31: =DP42 -> 0.2906074621 | AI31: =DP48 -> 0.8294428229 | AK31: 2012-02-01 | AL31: 24 | AM31: 1 | AN31: Low | AO31: Usability | AP31: Restaurants | AQ31: Bones | AR31: 2.75454375 | AS31: 3.04545 | AT31: 3.2 | AU31: 1.954545 | AV31: 2.81818 | AW31: -0.8181818182 | AX31: 0 | AY31: 0.1818181818 | AZ31: 0.8181818182 | BE31: 0.8089087299 | BF31: 0.04086170585 | BG31: 0.6701599879 | BH31: 0.09223111894 | BI31: 0.5877866649 | BJ31: 0.06764864142 | BK31: 1.113650315 | BL31: 0.04693687706 | BM31: 0.7801593909 | BN31: 0.03908219812 | BO31: 0.02539563091 | BR31: 24 | BS31: 1 | BT31: Low | BU31: Usability | BV31: Restaurants | BW31: Bones | BX31: 0.04086170585 | BY31: 0.09223111894 | BZ31: 0.06764864142 | CA31: 0.04693687706 | CB31: 0.03908219812 | CC31: -0.8181818182 | CD31: 0 | CE31: 0.1818181818 | CF31: 0.8181818182 | CG31: 0.02539563091 | CN31: 8 | CO31: 38 | CP31: 4.75 | DF31: Edu | DG31: 15 | DH31: Education | DI31: Edu | DO31: p1 | DP31: =IF(DS12<>0,DP27/DP29,"") -> 0.1333333333
B32: 4 | C32: 4 | D32: 4 | E32: 4 | F32: 8 | G32: 4 | H32: 4 | I32: 4 | P32: 1 | R32: 4 | S32: 4 | T32: 4 | U32: 4 | V32: 4 | AK32: 2012-02-01 | AL32: 25 | AM32: 1 | AN32: High | AO32: Usability | AP32: Retail | AQ32: Boston Proper | AR32: 3.89999625 | AS32: 4.208325 | AT32: 3.76666 | AU32: 3.083335 | AV32: 4.541665 | AW32: -0.4166666667 | AX32: 0.08333333333 | AY32: 0.4166666667 | AZ32: 0.5 | BE32: 0.09531358889 | BF32: 0.5762762888 | BG32: -0.2336043249 | BH32: 0.7928953479 | BI32: 0.2097259364 | BJ32: 0.3340354075 | BK32: 0.6505866966 | BL32: 0.2156480158 | BM32: -0.7801549212 | BN32: 0.9975265152 | BO32: 0.1837395664 | BR32: 25 | BS32: 1 | BT32: High | BU32: Usability | BV32: Retail | BW32: Boston Proper | BX32: 0.5762762888 | BY32: 0.7928953479 | BZ32: 0.3340354075 | CA32: 0.2156480158 | CB32: 0.9975265152 | CC32: -0.4166666667 | CD32: 0.08333333333 | CE32: 0.4166666667 | CF32: 0.5 | CG32: 0.1837395664 | CN32: 8 | CO32: 35 | CP32: 4.375 | DF32: Biz | DG32: 16 | DH32: Business Services | DO32: p2 | DP32: =IF(DS12<>0,DP28/DP30,"") -> 0.6
B33: 4 | C33: 5 | D33: 5 | E33: 4 | F33: 10 | G33: 5 | H33: 3 | I33: 5 | P33: 1 | R33: 4.5 | S33: 4.5 | T33: 4.5 | U33: 5 | V33: 4 | AB33: High Ln Reflect | AC33: =LN(AC12-AC26) -> -0.379098799 | AD33: =LN(AD12-AD26) -> -0.280741485 | AE33: =LN(AE12-AE26) -> -0.4757741107 | AF33: =LN(AF12-AF26) -> -0.6939049629 | AG33: =LN(AG12-AG26) -> -0.2757146412 | AK33: 2012-02-01 | AL33: 26 | AM33: 1 | AN33: High | AO33: Perception | AP33: Wireless | AQ33: British Telecom | AR33: 3.664880952 | AS33: 3.535714286 | AT33: 3.885714286 | AU33: 3.452380952 | AV33: 3.785714286 | AW33: -0.5714285714 | AX33: 0.09523809524 | AY33: 0.2380952381 | AZ33: 0.6666666667 | BE33: 0.2890204621 | BF33: 0.3698007992 | BG33: 0.3813675565 | BH33: 0.2603877963 | BI33: 0.1082135846 | BJ33: 0.4431819689 | BK33: 0.4367176516 | BL33: 0.3532007126 | BM33: 0.1941560144 | BN33: 0.4823012704 | BO33: 0.09565624385 | BR33: 26 | BS33: 1 | BT33: High | BU33: Perception | BV33: Wireless | BW33: British Telecom | BX33: 0.3698007992 | BY33: 0.2603877963 | BZ33: 0.4431819689 | CA33: 0.3532007126 | CB33: 0.4823012704 | CC33: -0.5714285714 | CD33: 0.09523809524 | CE33: 0.2380952381 | CF33: 0.6666666667 | CG33: 0.09565624385 | CN33: 8 | CO33: 46 | CP33: 5.75 | DF33: Date | DG33: 17 | DH33: Dating | DO33: Adj P1 | DP33: =(DP27+$N$116)/(DP29+$N$116) -> 0.1333333333
B34: 3 | C34: 2 | D34: 4 | E34: 4 | F34: 8 | G34: 4 | H34: 4 | I34: 4 | P34: 1 | R34: 3.625 | S34: 2.5 | T34: 4 | U34: 4 | V34: 4 | AB34: zReflect | AC34: =(AC33-AC13)/AC16 -> -1.477572734 | AD34: =(AD33-AD13)/AD16 -> -0.9283137797 | AE34: =(AE33-AE13)/AE16 -> -1.501785736 | AF34: =(AF33-AF13)/AF16 -> -1.792271652 | AG34: =(AG33-AG13)/AG16 -> -1.33239751 | AK34: 2012-02-01 | AL34: 27 | AM34: 1 | AN34: High | AO34: Usability | AP34: Travel | AQ34: Budget | AR34: 3.6294675 | AS34: 3.60715 | AT34: 3.92858 | AU34: 3.05357 | AV34: 3.92857 | AW34: -0.2857142857 | AX34: 0.1428571429 | AY34: 0.4285714286 | AZ34: 0.4285714286 | BE34: 0.3151993505 | BF34: 0.3433636535 | BG34: 0.3313520077 | BH34: 0.3003069657 | BI34: 0.06898487145 | BJ34: 0.4870660599 | BK34: 0.6659969254 | BL34: 0.2070961081 | BM34: 0.06899420482 | BN34: 0.6264100477 | BO34: 0.288391726 | BR34: 27 | BS34: 1 | BT34: High | BU34: Usability | BV34: Travel | BW34: Budget | BX34: 0.3433636535 | BY34: 0.3003069657 | BZ34: 0.4870660599 | CA34: 0.2070961081 | CB34: 0.6264100477 | CC34: -0.2857142857 | CD34: 0.1428571429 | CE34: 0.4285714286 | CF34: 0.4285714286 | CG34: 0.288391726 | CN34: 8 | CO34: 46 | CP34: 5.75 | DF34: Travel | DG34: 18 | DH34: Travel | DO34: adj P2 | DP34: =(DP28+$N$116)/(DP30+$N$116) -> 0.6
B35: 4 | C35: 4 | D35: 4 | E35: 4 | F35: 7 | G35: 4 | H35: 4 | I35: 4 | P35: 1 | R35: 3.9375 | S35: 4 | T35: 4 | U35: 3.75 | V35: 4 | AB35: %Reflect | AC35: =IF(AC26=AC12,0.00000001,NORMSDIST(AC34)) -> 0.06976108845 | AD35: =IF(AD26=AD12,0.00000001,NORMSDIST(AD34)) -> 0.1766224141 | AE35: =IF(AE26=AE12,0.00000001,NORMSDIST(AE34)) -> 0.06657622663 | AF35: =IF(AF26=AF12,0.00000001,NORMSDIST(AF34)) -> 0.03654473093 | AG35: =IF(AG26=AG12,0.00000001,NORMSDIST(AG34)) -> 0.09136479994 | AK35: 2012-02-01 | AL35: 29 | AM35: 1 | AN35: Low | AO35: Usability | AP35: Governments | AQ35: CA Govt | AR35: 2.65312375 | AS35: 2.208325 | AT35: 3.3 | AU35: 2.020835 | AV35: 3.083335 | AW35: -0.8333333333 | AX35: 0 | AY35: 0.1666666667 | AZ35: 0.8333333333 | BE35: 0.8530851886 | BF35: 0.03141108039 | BG35: 1.026641774 | BH35: 0.01490206623 | BI35: 0.5306282511 | BJ35: 0.09133833671 | BK35: 1.09164306 | BL35: 0.05122503316 | BM35: 0.6505866966 | BN35: 0.08352052057 | BO35: 0.02313408779 | BR35: 29 | BS35: 1 | BT35: Low | BU35: Usability | BV35: Governments | BW35: CA Govt | BX35: 0.03141108039 | BY35: 0.01490206623 | BZ35: 0.09133833671 | CA35: 0.05122503316 | CB35: 0.08352052057 | CC35: -0.8333333333 | CD35: 0 | CE35: 0.1666666667 | CF35: 0.8333333333 | CG35: 0.02313408779 | CN35: 8 | CO35: 26 | CP35: 3.25 | DF35: Hotel | DG35: 19 | DH35: Hotel | DO35: Adj N | DP35: =DP29+(($N$115^2)/2) -> 45
B36: 4 | C36: 4 | D36: 4 | E36: 4 | F36: 10 | G36: 4 | H36: 4 | I36: 4 | P36: 1 | R36: 4.125 | S36: 4 | T36: 4 | U36: 4.5 | V36: 4 | AB36: % | AC36: =1-AC35 -> 0.9302389116 | AD36: =1-AD35 -> 0.8233775859 | AE36: =1-AE35 -> 0.9334237734 | AF36: =1-AF35 -> 0.9634552691 | AG36: =1-AG35 -> 0.9086352001 | AH36: =IF(DP43>1,1,DP43) -> 0.6427258713 | AI36: =DP49 -> 0.9695741988 | AK36: 2012-02-01 | AL36: 30 | AM36: 1 | AN36: Low | AO36: Usability | AP36: Restaurants | AQ36: Cafe Intl | AR36: 2.7916675 | AS36: 2.854175 | AT36: 3.41666 | AU36: 1.770835 | AV36: 3.125 | AW36: -0.75 | AX36: 0.08333333333 | AY36: 0.08333333333 | AZ36: 0.8333333333 | BE36: 0.7922377058 | BF36: 0.04497983115 | BG36: 0.7635240938 | BH36: 0.06073993695 | BI36: 0.4595365399 | BJ36: 0.1287453097 | BK36: 1.17222359 | BL36: 0.03691429452 | BM36: 0.6286086594 | BN36: 0.09385631472 | BO36: 0.03798264609 | BR36: 30 | BS36: 1 | BT36: Low | BU36: Usability | BV36: Restaurants | BW36: Cafe Intl | BX36: 0.04497983115 | BY36: 0.06073993695 | BZ36: 0.1287453097 | CA36: 0.03691429452 | CB36: 0.09385631472 | CC36: -0.75 | CD36: 0.08333333333 | CE36: 0.08333333333 | CF36: 0.8333333333 | CG36: 0.03798264609 | CN36: 8 | CO36: 35 | CP36: 4.375 | DF36: Photo | DG36: 20 | DH36: Photo Sharing
B37: 3 | C37: 3 | D37: 4 | E37: 4 | F37: 8 | G37: 4 | H37: 4 | I37: 5 | P37: 1 | R37: 3.875 | S37: 3 | T37: 4 | U37: 4 | V37: 4.5 | AK37: 2012-04-15 | AL37: 32 | AM37: 1 | AN37: High | AO37: Perception | AP37: 3rd Party Automotive | AQ37: Cars.com | AR37: 3.8897725 | AS37: 4.022725 | AT37: 3.79394 | AU37: 3.848485 | AV37: 3.89394 | AW37: -0.06060606061 | AX37: 0.2424242424 | AY37: 0.4545454545 | AZ37: 0.303030303 | BE37: 0.1045649493 | BF37: 0.5664385641 | BG37: -0.02298719265 | BH37: 0.6243567227 | BI37: 0.1873588483 | BJ37: 0.3572554907 | BK37: 0.1410784667 | BL37: 0.5755237698 | BM37: 0.1008041512 | BN37: 0.5906250869 | BO37: 0.5126564148 | BR37: 32 | BS37: 1 | BT37: High | BU37: Perception | BV37: 3rd Party Automotive | BW37: Cars.com | BX37: 0.5664385641 | BY37: 0.6243567227 | BZ37: 0.3572554907 | CA37: 0.5755237698 | CB37: 0.5906250869 | CC37: -0.06060606061 | CD37: 0.2424242424 | CE37: 0.4545454545 | CF37: 0.303030303 | CG37: 0.5126564148 | CN37: 8 | CO37: 35 | CP37: 4.375 | DO37: diff | DP37: =(DP34-DP33) -> 0.4666666667
B38: 5 | C38: 5 | D38: 5 | E38: 5 | F38: 11 | G38: 5 | H38: 5 | I38: 5 | P38: 1 | R38: 5.0625 | S38: 5 | T38: 5 | U38: 5.25 | V38: 5 | AK38: 2012-02-01 | AL38: 33 | AM38: 1 | AN38: High | AO38: Usability | AP38: Informational | AQ38: CDC | AR38: 3.79167125 | AS38: 3.541675 | AT38: 3.83334 | AU38: 3.958335 | AV38: 3.833335 | AW38: 0.1666666667 | AX38: 0.3333333333 | AY38: 0.5 | AZ38: 0.1666666667 | BE38: 0.1892382065 | BF38: 0.4752543135 | BG38: 0.3772885168 | BH38: 0.2635382081 | BI38: 0.1541449655 | BJ38: 0.3927096051 | BK38: 0.04082039452 | BL38: 0.64906166 | BM38: 0.1541492513 | BN38: 0.5290355942 | BO38: 0.7347428354 | BR38: 33 | BS38: 1 | BT38: High | BU38: Usability | BV38: Informational | BW38: CDC | BX38: 0.4752543135 | BY38: 0.2635382081 | BZ38: 0.3927096051 | CA38: 0.64906166 | CB38: 0.5290355942 | CC38: 0.1666666667 | CD38: 0.3333333333 | CE38: 0.5 | CF38: 0.1666666667 | CG38: 0.7347428354 | CN38: 8 | CO38: 44 | CP38: 5.5 | DO38: p1 +p2 | DP38: =DP33+DP34 -> 0.7333333333
B39: 5 | C39: 5 | D39: 5 | E39: 5 | F39: 11 | G39: 5 | H39: 5 | I39: 5 | P39: 1 | R39: 5.0625 | S39: 5 | T39: 5 | U39: 5.25 | V39: 5 | AK39: 2013-02-25 | AL39: 35 | AM39: 1 | AN39: High | AO39: Perception | AP39: Financial | AQ39: Chase | AR39: 4.309090909 | AS39: 4.386363636 | AT39: 4.313636364 | AU39: 4.422727273 | AV39: 4.113636364 | AW39: 0.34 | AX39: 0.5 | AY39: 0.34 | AZ39: 0.16 | BE39: -0.3697470255 | BF39: 0.9267823521 | BG39: -0.4883527679 | BH39: 0.9223051845 | BI39: -0.3763477095 | BJ39: 0.8891026605 | BK39: -0.5494404599 | BL39: 0.9351307222 | BM39: -0.1206279878 | BN39: 0.8100214656 | BO39: 0.8602364052 | BR39: 35 | BS39: 1 | BT39: High | BU39: Perception | BV39: Financial | BW39: Chase | BX39: 0.9267823521 | BY39: 0.9223051845 | BZ39: 0.8891026605 | CA39: 0.9351307222 | CB39: 0.8100214656 | CC39: 0.34 | CD39: 0.5 | CE39: 0.34 | CF39: 0.16 | CG39: 0.8602364052 | CN39: 8 | CO39: 38 | CP39: 4.75 | DO39: diff squared | DP39: =DP37^2 -> 0.2177777778
B40: 4 | C40: 4 | D40: 1 | E40: 3 | F40: 6 | G40: 2 | H40: 3 | I40: 3 | P40: 1 | R40: 2.875 | S40: 4 | T40: 2 | U40: 2.5 | V40: 3 | AK40: 2015-07-15 | AL40: 36 | AO40: Usability | AP40: Restaurants | AQ40: Chipolte | AR40: 3.875 | AS40: 3.88 | AT40: 4.3 | AU40: 3.48 | AV40: 3.84 | AW40: 0.08 | AX40: 0.4 | AY40: 0.28 | AZ40: 0.32 | BE40: 0.1177830357 | BF40: 0.5523124736 | BG40: 0.1133286853 | BH40: 0.4974524466 | BI40: -0.3566749439 | BJ40: 0.8782665812 | BK40: 0.4187103349 | BL40: 0.366119547 | BM40: 0.1484200051 | BN40: 0.5357106418 | BO40: 0.6554735098 | BR40: 36 | BU40: Usability | BV40: Restaurants | BW40: Chipolte | BX40: 0.5523124736 | BY40: 0.4974524466 | BZ40: 0.8782665812 | CA40: 0.366119547 | CB40: 0.5357106418 | CC40: 0.08 | CD40: 0.4 | CE40: 0.28 | CF40: 0.32 | CG40: 0.6554735098 | CN40: 8 | CO40: 46 | CP40: 5.75 | DO40: sem | DP40: =SQRT((DP38-DP39)/DP35) -> 0.1070363963
B41: 4 | C41: 4 | D41: 4 | E41: 4 | F41: 8 | G41: 3 | H41: 4 | I41: 4 | P41: 1 | R41: 3.875 | S41: 4 | T41: 4 | U41: 3.5 | V41: 4 | AK41: 2011-03-13 | AL41: 37 | AM41: 1 | AN41: High | AO41: Perception | AP41: News | AQ41: CNN | AR41: 4.001525 | AS41: 4.1611 | AT41: 3.72 | AU41: 4.19722 | AV41: 3.92778 | AW41: 0.1444444444 | AX41: 0.3888888889 | AY41: 0.3666666667 | AZ41: 0.2444444444 | BE41: -0.001526163996 | BF41: 0.6753439115 | BG41: -0.1756637691 | BH41: 0.7514560109 | BI41: 0.2468600779 | BJ41: 0.2968857705 | BK41: -0.2196745752 | BL41: 0.8112513591 | BM41: 0.06973126547 | BN41: 0.6255918013 | BO41: 0.7153203376 | BR41: 37 | BS41: 1 | BT41: High | BU41: Perception | BV41: News | BW41: CNN | BX41: 0.6753439115 | BY41: 0.7514560109 | BZ41: 0.2968857705 | CA41: 0.8112513591 | CB41: 0.6255918013 | CC41: 0.1444444444 | CD41: 0.3888888889 | CE41: 0.3666666667 | CF41: 0.2444444444 | CG41: 0.7153203376 | CN41: 8 | CO41: 35 | CP41: 4.375 | DO41: Margin | DP41: =DP40*DP22 -> 0.1760592046
B42: 4 | C42: 4 | D42: 4 | E42: 4 | F42: 9 | G42: 3 | H42: 4 | I42: 3 | P42: 1 | R42: 3.8125 | S42: 4 | T42: 4 | U42: 3.75 | V42: 3.5 | AK42: 2012-02-01 | AL42: 38 | AM42: 1 | AN42: Low | AO42: Usability | AP42: Governments | AQ42: CO Govt | AR42: 2.93333375 | AS42: 2.75 | AT42: 3.4 | AU42: 2.375 | AV42: 3.208335 | AW42: -0.4166666667 | AX42: 0.1666666667 | AY42: 0.25 | AZ42: 0.5833333333 | BE42: 0.7259368018 | BF42: 0.06475973545 | BG42: 0.8109302162 | BH42: 0.04835321396 | BI42: 0.4700036292 | BJ42: 0.1226541427 | BK42: 0.965080896 | BL42: 0.08221957497 | BM42: 0.5831453551 | BN42: 0.118174242 | BO42: 0.1837395664 | BR42: 38 | BS42: 1 | BT42: Low | BU42: Usability | BV42: Governments | BW42: CO Govt | BX42: 0.06475973545 | BY42: 0.04835321396 | BZ42: 0.1226541427 | CA42: 0.08221957497 | CB42: 0.118174242 | CC42: -0.4166666667 | CD42: 0.1666666667 | CE42: 0.25 | CF42: 0.5833333333 | CG42: 0.1837395664 | CN42: 8 | CO42: 43 | CP42: 5.375 | DO42: Low | DP42: =DP37-DP41 -> 0.2906074621
B43: 5 | C43: 5 | D43: 4 | E43: 4 | F43: 11 | G43: 5 | H43: 5 | I43: 5 | P43: 1 | R43: 4.8125 | S43: 5 | T43: 4 | U43: 5.25 | V43: 5 | AK43: 2012-02-01 | AL43: 39 | AM43: 1 | AN43: High | AO43: Usability | AP43: Retail | AQ43: Container Store | AR43: 3.20535625 | AS43: 3.164275 | AT43: 3.02858 | AU43: 3.22857 | AV43: 3.4 | AW43: -0.3714285714 | AX43: 0.1714285714 | AY43: 0.2857142857 | AZ43: 0.5428571429 | BE43: =LN($AR$6-AR43) -> 0.5848065343 | BF43: =1-NORMSDIST((BE43-$BE$7)/$BE$8) -> 0.1284657227 | BG43: =LN($AS$6-AS43) -> 0.6074394988 | BH43: =1-NORMSDIST((BG43-$BG$7)/$BG$8) -> 0.1193239757 | BI43: =LN($AT$6-AT43) -> 0.6787540953 | BJ43: =1-NORMSDIST((BI43-$BI$7)/$BI$8) -> 0.04008267554 | BK43: =LN($AU$6-AU43) -> 0.57178713 | BL43: =1-NORMSDIST((BK43-$BK$7)/$BK$8) -> 0.2624507214 | BM43: 0.4700036292 | BN43: =1-NORMSDIST((BM43-$BM$7)/$BM$8) -> 0.1969282082 | BO43: 0.2169091856 | BR43: =IF(AL43<>"",AL43,"") -> 39 | BS43: =IF(AM43<>"",AM43,"") -> 1 | BT43: =IF(AN43<>"",AN43,"") -> High | BU43: =IF(AO43<>"",AO43,"") -> Usability | BV43: =IF(AP43<>"",AP43,"") -> Retail | BW43: =IF(AQ43<>"",AQ43,"") -> Container Store | BX43: =BF43 -> 0.1284657227 | BY43: =BH43 -> 0.1193239757 | BZ43: =BJ43 -> 0.04008267554 | CA43: =BL43 -> 0.2624507214 | CB43: =BN43 -> 0.1969282082 | CC43: -0.3714285714 | CD43: 0.1714285714 | CE43: 0.2857142857 | CF43: 0.5428571429 | CG43: =BO43 -> 0.2169091856 | CN43: 8 | CO43: 36 | CP43: 4.5 | DO43: High | DP43: =DP37+DP41 -> 0.6427258713
B44: 4 | C44: 4 | D44: 4 | E44: 4 | F44: 10 | G44: 4 | H44: 4 | I44: 4 | P44: 1 | R44: 4.125 | S44: 4 | T44: 4 | U44: 4.5 | V44: 4 | AK44: 2015-07-15 | AL44: 40 | AM44: 1 | AN44: High | AO44: Perception | AP44: Informational | AQ44: Craigslist | AR44: 3.92618125 | AS44: 4.2335 | AT44: 3.48302 | AU44: 4.318395 | AV44: 3.66981 | AW44: 0.3396226415 | AX44: 0.5188679245 | AY44: 0.3018867925 | AZ44: 0.179245283 | BE44: 0.07122122021 | BF44: 0.6016588728 | BG44: -0.2659205807 | BH44: 0.8141142269 | BI44: 0.4167215164 | BJ44: 0.1558260226 | BK44: -0.3833049678 | BL44: 0.8842341329 | BM44: 0.2853217892 | BN44: 0.3777083231 | BO44: 0.8600164699 | BR44: 40 | BS44: 1 | BT44: High | BU44: Perception | BV44: Informational | BW44: Craigslist | BX44: 0.6016588728 | BY44: 0.8141142269 | BZ44: 0.1558260226 | CA44: 0.8842341329 | CB44: 0.3777083231 | CC44: 0.3396226415 | CD44: 0.5188679245 | CE44: 0.3018867925 | CF44: 0.179245283 | CG44: 0.8600164699 | CN44: 8 | CO44: 46 | CP44: 5.75
B45: 5 | C45: 5 | D45: 5 | E45: 5 | F45: 11 | G45: 5 | H45: 5 | I45: 5 | P45: 1 | R45: 5.0625 | S45: 5 | T45: 5 | U45: 5.25 | V45: 5 | AK45: 2012-04-15 | AL45: 43 | AM45: 1 | AN45: High | AO45: Usability | AP45: Retail | AQ45: Crate & Barrel | AR45: 3.51492875 | AS45: 3.5625 | AT45: 3.31666 | AU45: 3.51389 | AV45: 3.666665 | AW45: -0.2777777778 | AX45: 0.1666666667 | AY45: 0.3888888889 | AZ45: 0.4444444444 | BE45: 0.3954627509 | BF45: 0.2673866333 | BG45: 0.3629054937 | BH45: 0.2747998982 | BI45: 0.520779915 | BJ45: 0.0959766177 | BK45: 0.3961619678 | BL45: 0.38251115 | BM45: 0.2876833225 | BN45: 0.3750814037 | BO45: 0.2955321655 | BR45: 43 | BS45: 1 | BT45: High | BU45: Usability | BV45: Retail | BW45: Crate & Barrel | BX45: 0.2673866333 | BY45: 0.2747998982 | BZ45: 0.0959766177 | CA45: 0.38251115 | CB45: 0.3750814037 | CC45: -0.2777777778 | CD45: 0.1666666667 | CE45: 0.3888888889 | CF45: 0.4444444444 | CG45: 0.2955321655 | CN45: 8 | CO45: 46 | CP45: 5.75
B46: 4 | C46: 4 | D46: 4 | E46: 4 | F46: 9 | G46: 4 | H46: 3 | I46: 3 | P46: 1 | R46: 3.8125 | S46: 4 | T46: 4 | U46: 4.25 | V46: 3 | AK46: 2012-02-01 | AL46: 44 | AM46: 1 | AN46: Low | AO46: Usability | AP46: Retail | AQ46: Crumpler | AR46: 2.85832875 | AS46: 2.895825 | AT46: 3.26666 | AU46: 2.229165 | AV46: 3.041665 | AW46: -0.5833333333 | AX46: 0.08333333333 | AY46: 0.25 | AZ46: 0.6666666667 | BE46: 0.7615864822 | BF46: 0.05341838132 | BG46: 0.7439234663 | BH46: 0.06653553094 | BI46: 0.5500501831 | BJ46: 0.08268171658 | BK46: 1.019148719 | BL46: 0.06758542627 | BM46: 0.6720946224 | BN46: 0.0742577442 | BO46: 0.09046473885 | BR46: 44 | BS46: 1 | BT46: Low | BU46: Usability | BV46: Retail | BW46: Crumpler | BX46: 0.05341838132 | BY46: 0.06653553094 | BZ46: 0.08268171658 | CA46: 0.06758542627 | CB46: 0.0742577442 | CC46: -0.5833333333 | CD46: 0.08333333333 | CE46: 0.25 | CF46: 0.6666666667 | CG46: 0.09046473885 | CN46: 8 | CO46: 26 | CP46: 3.25
B47: 5 | C47: 4 | D47: 5 | E47: 5 | F47: 11 | G47: 5 | H47: 4 | I47: 4 | P47: 1 | R47: 4.6875 | S47: 4.5 | T47: 5 | U47: 5.25 | V47: 4 | AK47: 2015-07-15 | AL47: 45 | AM47: 1 | AN47: High | AO47: Perception | AP47: IT | AQ47: Dell | AR47: 3.887837838 | AS47: 3.905405405 | AT47: 4.064864865 | AU47: 3.77027027 | AV47: 3.810810811 | AW47: -0.1081081081 | AX47: 0.2432432432 | AY47: 0.4054054054 | AZ47: 0.3513513514 | BE47: 0.1063060145 | BF47: 0.5645823438 | BG47: 0.09038406147 | BH47: 0.5191565451 | BI47: -0.06706423058 | BJ47: 0.6371047823 | BK47: 0.2067944133 | BL47: 0.5256689389 | BM47: 0.1732717213 | BN47: 0.5067077919 | BO47: 0.4630579604 | BR47: 45 | BS47: 1 | BT47: High | BU47: Perception | BV47: IT | BW47: Dell | BX47: 0.5645823438 | BY47: 0.5191565451 | BZ47: 0.6371047823 | CA47: 0.5256689389 | CB47: 0.5067077919 | CC47: -0.1081081081 | CD47: 0.2432432432 | CE47: 0.4054054054 | CF47: 0.3513513514 | CG47: 0.4630579604 | CN47: 8 | CO47: 36 | CP47: 4.5 | DO47: % Rank | DP47: =NORMSDIST((DP37-AW7)/AW8) -> 0.9212116725
B48: 4 | C48: 4 | D48: 5 | E48: 5 | F48: 7 | G48: 4 | H48: 3 | I48: 4 | P48: 1 | R48: 4.0625 | S48: 4 | T48: 5 | U48: 3.75 | V48: 3.5 | AK48: 2015-07-15 | AL48: 46 | AO48: Usability | AP48: Retail | AQ48: Dell | AR48: 3.835648148 | AS48: 3.796296296 | AT48: 4.222222222 | AU48: 3.490740741 | AV48: 3.833333333 | AW48: -0.1111111111 | AX48: 0.3333333333 | AY48: 0.2222222222 | AZ48: 0.4444444444 | BE48: 0.1521645819 | BF48: 0.5153018329 | BG48: 0.1854032233 | BH48: 0.4296205713 | BI48: -0.2513144283 | BJ48: 0.8077505766 | BK48: 0.4116189737 | BL48: 0.3712499538 | BM48: 0.1541506798 | BN48: 0.5290339287 | BO48: 0.459933584 | BR48: 46 | BU48: Usability | BV48: Retail | BW48: Dell | BX48: 0.5153018329 | BY48: 0.4296205713 | BZ48: 0.8077505766 | CA48: 0.3712499538 | CB48: 0.5290339287 | CC48: -0.1111111111 | CD48: 0.3333333333 | CE48: 0.2222222222 | CF48: 0.4444444444 | CG48: 0.459933584 | CN48: 8 | CO48: 35 | CP48: 4.375 | DO48: % Rank Low | DP48: =NORMSDIST((DP42-AW7)/AW8) -> 0.8294428229
B49: 5 | C49: 5 | D49: 5 | E49: 5 | F49: 11 | G49: 5 | H49: 5 | I49: 5 | P49: 1 | R49: 5.0625 | S49: 5 | T49: 5 | U49: 5.25 | V49: 5 | AK49: 2014-06-01 | AL49: 48 | AM49: 1 | AN49: High | AO49: Perception | AP49: Airlines | AQ49: Delta Airlines | AR49: 4.176190476 | AS49: 4.171428571 | AT49: 4.19047619 | AU49: 4.223809524 | AV49: 4.119047619 | AW49: 0.3523809524 | AX49: 0.4761904762 | AY49: 0.4 | AZ49: 0.1238095238 | BE49: -0.1938159362 | BF49: 0.8353776331 | BG49: -0.1880522315 | BH49: 0.7606711303 | BI49: -0.2113090937 | BJ49: 0.7754658952 | BK49: -0.2533573299 | BL49: 0.8282145909 | BM49: -0.1267517056 | BN49: 0.8148518837 | BO49: 0.8673222541 | BR49: 48 | BS49: 1 | BT49: High | BU49: Perception | BV49: Airlines | BW49: Delta Airlines | BX49: 0.8353776331 | BY49: 0.7606711303 | BZ49: 0.7754658952 | CA49: 0.8282145909 | CB49: 0.8148518837 | CC49: 0.3523809524 | CD49: 0.4761904762 | CE49: 0.4 | CF49: 0.1238095238 | CG49: 0.8673222541 | CN49: 8 | CO49: 42 | CP49: 5.25 | DO49: % Rank High | DP49: =NORMSDIST((DP43-AW7)/AW8) -> 0.9695741988
B50: 5 | C50: 5 | D50: 5 | E50: 5 | F50: 11 | G50: 5 | H50: 5 | I50: 5 | P50: 1 | R50: 5.0625 | S50: 5 | T50: 5 | U50: 5.25 | V50: 5 | AK50: 2012-04-15 | AL50: 49 | AM50: 1 | AN50: High | AO50: Perception | AP50: Education | AQ50: Devry University | AR50: 3.34921875 | AS50: 3.53125 | AT50: 3.225 | AU50: 2.984375 | AV50: 3.65625 | AW50: -0.6875 | AX50: 0 | AY50: 0.3125 | AZ50: 0.6875 | BE50: 0.5012486607 | BF50: 0.182120627 | BG50: 0.3844116989 | BH50: 0.2580493838 | BI50: 0.5738004229 | BJ50: 0.07295304907 | BK50: 0.700929321 | BL50: 0.1884690113 | BM50: 0.2954642129 | BN50: 0.3664676218 | BO50: 0.0536081783 | BR50: 49 | BS50: 1 | BT50: High | BU50: Perception | BV50: Education | BW50: Devry University | BX50: 0.182120627 | BY50: 0.2580493838 | BZ50: 0.07295304907 | CA50: 0.1884690113 | CB50: 0.3664676218 | CC50: -0.6875 | CD50: 0 | CE50: 0.3125 | CF50: 0.6875 | CG50: 0.0536081783 | CN50: 8 | CO50: 40 | CP50: 5
B51: 2 | C51: 2 | D51: 4 | E51: 4 | F51: 5 | G51: 3 | H51: 3 | I51: 3 | P51: 1 | R51: 2.9375 | S51: 2 | T51: 4 | U51: 2.75 | V51: 3 | AK51: 2015-07-15 | AL51: 50 | AM51: 1 | AN51: High | AO51: Perception | AP51: Retail | AQ51: eBay | AR51: 4.25544125 | AS51: 4.307875 | AT51: 4.18148 | AU51: 4.453705 | AV51: 4.078705 | AW51: 0.4166666667 | AX51: 0.5555555556 | AY51: 0.3055555556 | AZ51: 0.1388888889 | BE51: -0.2949635179 | BF51: 0.8942859034 | BG51: -0.3679887038 | BH51: 0.8718660617 | BI51: -0.2002574475 | BJ51: 0.7660329415 | BK51: -0.6045961561 | BL51: 0.9474851026 | BM51: -0.08197499 | BN51: 0.7777801313 | BO51: 0.9001244454 | BR51: 50 | BS51: 1 | BT51: High | BU51: Perception | BV51: Retail | BW51: eBay | BX51: 0.8942859034 | BY51: 0.8718660617 | BZ51: 0.7660329415 | CA51: 0.9474851026 | CB51: 0.7777801313 | CC51: 0.4166666667 | CD51: 0.5555555556 | CE51: 0.3055555556 | CF51: 0.1388888889 | CG51: 0.9001244454 | CN51: 8 | CO51: 46 | CP51: 5.75
B52: 2 | C52: 4 | D52: 5 | E52: 4 | F52: 9 | G52: 3 | H52: 4 | I52: 5 | P52: 1 | R52: 3.9375 | S52: 3 | T52: 4.5 | U52: 3.75 | V52: 4.5 | AK52: 2015-07-15 | AL52: 51 | AO52: Usability | AP52: Retail | AQ52: eBay | AR52: 3.91 | AS52: 3.72 | AT52: 4.28 | AU52: 3.86 | AV52: 3.78 | AW52: 0.08 | AX52: 0.32 | AY52: 0.44 | AZ52: 0.24 | BE52: 0.08617769624 | BF52: 0.5859448188 | BG52: 0.2468600779 | BH52: 0.3733057919 | BI52: -0.328504067 | BJ52: 0.8614875933 | BK52: 0.1310282624 | BL52: 0.5830628651 | BM52: 0.1988508587 | BN52: 0.4768204904 | BO52: 0.6554735098 | BR52: 51 | BU52: Usability | BV52: Retail | BW52: eBay | BX52: 0.5859448188 | BY52: 0.3733057919 | BZ52: 0.8614875933 | CA52: 0.5830628651 | CB52: 0.4768204904 | CC52: 0.08 | CD52: 0.32 | CE52: 0.44 | CF52: 0.24 | CG52: 0.6554735098 | CN52: 8 | CO52: 23 | CP52: 2.875
B53: 4 | C53: 4 | D53: 4 | E53: 4 | F53: 7 | G53: 4 | H53: 4 | I53: 4 | P53: 1 | R53: 3.9375 | S53: 4 | T53: 4 | U53: 3.75 | V53: 4 | AK53: 2012-02-01 | AL53: 53 | AM53: 1 | AN53: High | AO53: Usability | AP53: 3rd Party Automotive | AQ53: Edmunds | AR53: 3.07241 | AS53: 3.034475 | AT53: 3.46206 | AU53: 2.931035 | AV53: 2.86207 | AW53: -0.4482758621 | AX53: 0.1379310345 | AY53: 0.275862069 | AZ53: 0.5862068966 | BE53: 0.656270518 | BF53: 0.09220942324 | BG53: 0.6757593852 | BH53: 0.09005414371 | BI53: 0.4304438586 | BJ53: 0.1467652765 | BK53: 0.7270484822 | BL53: 0.1752400005 | BM53: 0.7598380712 | BN53: 0.04438766103 | BO53: 0.1625512382 | BR53: 53 | BS53: 1 | BT53: High | BU53: Usability | BV53: 3rd Party Automotive | BW53: Edmunds | BX53: 0.09220942324 | BY53: 0.09005414371 | BZ53: 0.1467652765 | CA53: 0.1752400005 | CB53: 0.04438766103 | CC53: -0.4482758621 | CD53: 0.1379310345 | CE53: 0.275862069 | CF53: 0.5862068966 | CG53: 0.1625512382 | CN53: 8 | CO53: 38 | CP53: 4.75
B54: 4 | C54: 4 | D54: 5 | E54: 4 | F54: 11 | G54: 5 | H54: 5 | I54: 4 | P54: 1 | R54: 4.5625 | S54: 4 | T54: 4.5 | U54: 5.25 | V54: 4.5 | AK54: 2012-04-15 | AL54: 55 | AM54: 1 | AN54: High | AO54: Perception | AP54: Dating | AQ54: eHarmony | AR54: 3.20183375 | AS54: 3.52205 | AT54: 3.0647 | AU54: 2.60294 | AV54: 3.617645 | AW54: -0.5588235294 | AX54: 0.05882352941 | AY54: 0.3235294118 | AZ54: 0.6176470588 | BE54: 0.5867673956 | BF54: 0.1273545534 | BG54: 0.3906559925 | BH54: 0.2532870255 | BI54: 0.6602623532 | BJ54: 0.0447870209 | BK54: 0.8742429864 | BL54: 0.111986021 | BM54: 0.3237885665 | BN54: 0.3357036719 | BO54: 0.1013885921 | BR54: 55 | BS54: 1 | BT54: High | BU54: Perception | BV54: Dating | BW54: eHarmony | BX54: 0.1273545534 | BY54: 0.2532870255 | BZ54: 0.0447870209 | CA54: 0.111986021 | CB54: 0.3357036719 | CC54: -0.5588235294 | CD54: 0.05882352941 | CE54: 0.3235294118 | CF54: 0.6176470588 | CG54: 0.1013885921 | CN54: 8 | CO54: 46 | CP54: 5.75
B55: 4 | C55: 5 | D55: 4 | E55: 4 | F55: 10 | G55: 5 | H55: 4 | I55: 4 | P55: 1 | R55: 4.375 | S55: 4.5 | T55: 4 | U55: 5 | V55: 4 | AK55: 2015-07-15 | AL55: 56 | AO55: Usability | AP55: Travel | AQ55: Enterprise | AR55: 4.04 | AS55: 4.18 | AT55: 4.44 | AU55: 3.72 | AV55: 3.82 | AW55: 0.04 | AX55: 0.32 | AY55: 0.4 | AZ55: 0.28 | BE55: -0.04082199452 | BF55: 0.712659663 | BG55: -0.1984509387 | BH55: 0.7682597819 | BI55: -0.5798184953 | BJ55: 0.9636577984 | BK55: 0.2468600779 | BL55: 0.4950236164 | BM55: 0.1655144385 | BN55: 0.5157718555 | BO55: 0.6161306995 | BR55: 56 | BU55: Usability | BV55: Travel | BW55: Enterprise | BX55: 0.712659663 | BY55: 0.7682597819 | BZ55: 0.9636577984 | CA55: 0.4950236164 | CB55: 0.5157718555 | CC55: 0.04 | CD55: 0.32 | CE55: 0.4 | CF55: 0.28 | CG55: 0.6161306995 | CN55: 8 | CO55: 46 | CP55: 5.75
B56: 5 | C56: 5 | D56: 5 | E56: 5 | F56: 11 | G56: 5 | H56: 5 | I56: 5 | P56: 1 | R56: 5.0625 | S56: 5 | T56: 5 | U56: 5.25 | V56: 5 | AK56: 2012-04-15 | AL56: 58 | AM56: 1 | AN56: High | AO56: Usability | AP56: Retail | AQ56: eToys | AR56: 3.57395625 | AS56: 3.75 | AT56: 3.56666 | AU56: 3.104165 | AV56: 3.875 | AW56: -0.4166666667 | AX56: 0.08333333333 | AY56: 0.4166666667 | AZ56: 0.5 | BE56: 0.3549040017 | BF56: 0.3047240814 | BG56: 0.2231435513 | BH56: 0.3947896469 | BI56: 0.3600073852 | BJ56: 0.1970968187 | BK56: 0.6396593747 | BL56: 0.2218342735 | BM56: 0.1177830357 | BN56: 0.571189401 | BO56: 0.1837395664 | BR56: 58 | BS56: 1 | BT56: High | BU56: Usability | BV56: Retail | BW56: eToys | BX56: 0.3047240814 | BY56: 0.3947896469 | BZ56: 0.1970968187 | CA56: 0.2218342735 | CB56: 0.571189401 | CC56: -0.4166666667 | CD56: 0.08333333333 | CE56: 0.4166666667 | CF56: 0.5 | CG56: 0.1837395664 | CN56: 8 | CO56: 36 | CP56: 4.5
B57: 3 | C57: 2 | D57: 4 | E57: 1 | F57: 2 | G57: 5 | H57: 2 | I57: 4 | P57: 1 | R57: 2.75 | S57: 2.5 | T57: 2.5 | U57: 3 | V57: 3 | AK57: 2012-02-01 | AL57: 59 | AM57: 1 | AN57: High | AO57: Perception | AP57: Financial | AQ57: eTrade | AR57: 3.8609375 | AS57: 3.84375 | AT57: 3.975 | AU57: 3.729165 | AV57: 3.895835 | AW57: -0.125 | AX57: 0.2083333333 | AY57: 0.4583333333 | AZ57: 0.3333333333 | BE57: 0.1302055557 | BF57: 0.5389755017 | BG57: 0.1451820098 | BH57: 0.4673475782 | BI57: 0.02469261259 | BJ57: 0.536775963 | BK57: 0.2396741647 | BL57: 0.5005230343 | BM57: 0.09908939321 | BN57: 0.592576474 | BO57: 0.4455185 | BR57: 59 | BS57: 1 | BT57: High | BU57: Perception | BV57: Financial | BW57: eTrade | BX57: 0.5389755017 | BY57: 0.4673475782 | BZ57: 0.536775963 | CA57: 0.5005230343 | CB57: 0.592576474 | CC57: -0.125 | CD57: 0.2083333333 | CE57: 0.4583333333 | CF57: 0.3333333333 | CG57: 0.4455185 | CN57: 8 | CO57: 38 | CP57: 4.75
B58: 4 | C58: 4 | D58: 4 | E58: 4 | F58: 10 | G58: 4 | H58: 4 | I58: 4 | P58: 1 | R58: 4.125 | S58: 4 | T58: 4 | U58: 4.5 | V58: 4 | AK58: 2016-10-27 | AL58: 60 | AM58: 1 | AN58: High | AO58: Perception | AP58: Retail | AQ58: Etsy | AR58: 4.239247312 | AS58: 4.225806452 | AT58: 4.086021505 | AU58: 4.376344086 | AV58: 4.268817204 | AW58: 0.4408602151 | AX58: 0.5268817204 | AY58: 0.3870967742 | AZ58: 0.08602150538 | BE58: -0.2734469566 | BF58: 0.8832436488 | BG58: -0.2559333741 | BH58: 0.8077052552 | BI58: -0.08994823666 | BJ58: 0.6609946282 | BK58: -0.4721564826 | BL58: 0.9141675277 | BM58: -0.313091788 | BN58: 0.9253370967 | BO58: 0.9107926044 | BR58: 60 | BS58: 1 | BT58: High | BU58: Perception | BV58: Retail | BW58: Etsy | BX58: 0.8832436488 | BY58: 0.8077052552 | BZ58: 0.6609946282 | CA58: 0.9141675277 | CB58: 0.9253370967 | CC58: 0.4408602151 | CD58: 0.5268817204 | CE58: 0.3870967742 | CF58: 0.08602150538 | CG58: 0.9107926044 | CN58: 8 | CO58: 38 | CP58: 4.75
B59: 5 | C59: 5 | D59: 5 | E59: 5 | F59: 11 | G59: 5 | H59: 5 | I59: 5 | P59: 1 | R59: 5.0625 | S59: 5 | T59: 5 | U59: 5.25 | V59: 5 | AK59: 2016-10-27 | AL59: 61 | AO59: Usability | AP59: Retail | AQ59: Etsy | AR59: 3.973557692 | AS59: 4.096153846 | AT59: 4.115384615 | AU59: 3.548076923 | AV59: 4.134615385 | AW59: 0 | AX59: 0.3076923077 | AY59: 0.3846153846 | AZ59: 0.3076923077 | BE59: 0.02609875297 | BF59: 0.6479832219 | BG59: -0.1010961169 | BH59: 0.6922403957 | BI59: -0.1226023221 | BJ59: 0.6939728661 | BK59: 0.3728889377 | BL59: 0.3996528903 | BM59: -0.1445812288 | BN59: 0.8284763044 | BO59: 0.5755522213 | BR59: 61 | BU59: Usability | BV59: Retail | BW59: Etsy | BX59: 0.6479832219 | BY59: 0.6922403957 | BZ59: 0.6939728661 | CA59: 0.3996528903 | CB59: 0.8284763044 | CC59: 0 | CD59: 0.3076923077 | CE59: 0.3846153846 | CF59: 0.3076923077 | CG59: 0.5755522213 | CN59: 8 | CO59: 36 | CP59: 4.5
B60: 5 | C60: 5 | D60: 5 | E60: 5 | F60: 11 | G60: 5 | H60: 5 | I60: 5 | P60: 1 | R60: 5.0625 | S60: 5 | T60: 5 | U60: 5.25 | V60: 5 | AK60: 2014-06-01 | AL60: 62 | AM60: 1 | AN60: High | AO60: Perception | AP60: Travel | AQ60: Expedia | AR60: 4.17934125 | AS60: 4.202625 | AT60: 4.24632 | AU60: 4.194735 | AV60: 4.073685 | AW60: 0.2842105263 | AX60: 0.4421052632 | AY60: 0.4 | AZ60: 0.1578947368 | BE60: -0.1976479076 | BF60: 0.8379376656 | BG60: -0.2264301964 | BH60: 0.787997468 | BI60: -0.2827874042 | BJ60: 0.8310378703 | BK60: -0.2165838632 | BL60: 0.8096447303 | BM60: -0.0765409294 | BN60: 0.7730096555 | BO60: 0.8251586052 | BR60: 62 | BS60: 1 | BT60: High | BU60: Perception | BV60: Travel | BW60: Expedia | BX60: 0.8379376656 | BY60: 0.787997468 | BZ60: 0.8310378703 | CA60: 0.8096447303 | CB60: 0.7730096555 | CC60: 0.2842105263 | CD60: 0.4421052632 | CE60: 0.4 | CF60: 0.1578947368 | CG60: 0.8251586052 | CN60: 8 | CO60: 44 | CP60: 5.5
B61: 4 | C61: 4 | D61: 4 | E61: 4 | F61: 8 | G61: 4 | H61: 4 | I61: 4 | P61: 1 | R61: 4 | S61: 4 | T61: 4 | U61: 4 | V61: 4 | AK61: 2014-06-01 | AL61: 63 | AM61: 1 | AN61: High | AO61: Usability | AP61: Travel | AQ61: Expedia | AR61: 3.945835 | AS61: 3.816675 | AT61: 4.2 | AU61: 3.8 | AV61: 3.966665 | AW61: 0.2666666667 | AX61: 0.4666666667 | AY61: 0.3333333333 | AZ61: 0.2 | BE61: 0.05274898436 | BF61: 0.6208389992 | BG61: 0.1683282725 | BH61: 0.4455786448 | BI61: -0.2231435513 | BJ61: 0.7853233905 | BK61: 0.1823215568 | BL61: 0.5443247342 | BM61: 0.03279143572 | BN61: 0.6658340391 | BO61: 0.8130621499 | BR61: 63 | BS61: 1 | BT61: High | BU61: Usability | BV61: Travel | BW61: Expedia | BX61: 0.6208389992 | BY61: 0.4455786448 | BZ61: 0.7853233905 | CA61: 0.5443247342 | CB61: 0.6658340391 | CC61: 0.2666666667 | CD61: 0.4666666667 | CE61: 0.3333333333 | CF61: 0.2 | CG61: 0.8130621499 | CN61: 0
B62: 5 | C62: 5 | D62: 5 | E62: 5 | F62: 7 | G62: 5 | H62: 3 | I62: 3 | P62: 1 | R62: 4.3125 | S62: 5 | T62: 5 | U62: 4.25 | V62: 3 | AK62: 2012-02-01 | AL62: 66 | AM62: 1 | AN62: High | AO62: Perception | AP62: Social Networking | AQ62: Facebook | AR62: 3.8320075 | AS62: 4.085175 | AT62: 3.13846 | AU62: 4.28022 | AV62: 3.824175 | AW62: 0.3846153846 | AX62: 0.5934065934 | AY62: 0.1978021978 | AZ62: 0.2087912088 | BE62: 0.1552864632 | BF62: 0.5119298483 | BG62: -0.08902248883 | BH62: 0.682097882 | BI62: 0.6214041021 | BJ62: 0.05611921336 | BK62: -0.3288096692 | BL62: 0.8625570144 | BM62: 0.1619700289 | BN62: 0.5199109224 | BO62: 0.8845962788 | BR62: 66 | BS62: 1 | BT62: High | BU62: Perception | BV62: Social Networking | BW62: Facebook | BX62: 0.5119298483 | BY62: 0.682097882 | BZ62: 0.05611921336 | CA62: 0.8625570144 | CB62: 0.5199109224 | CC62: 0.3846153846 | CD62: 0.5934065934 | CE62: 0.1978021978 | CF62: 0.2087912088 | CG62: 0.8845962788 | CN62: 0
B63: 4 | C63: 4 | D63: 4 | E63: 4 | F63: 10 | G63: 4 | H63: 4 | I63: 4 | P63: 1 | R63: 4.125 | S63: 4 | T63: 4 | U63: 4.5 | V63: 4 | AK63: 2012-02-01 | AL63: 67 | AM63: 1 | AN63: High | AO63: Usability | AP63: Financial | AQ63: Fidelity | AR63: 2.58164 | AS63: 2.265625 | AT63: 3.1625 | AU63: 2.085935 | AV63: 2.8125 | AW63: -0.09677419355 | AX63: 0.09375 | AY63: 0.125 | AZ63: 0.78125 | BE63: 0.8830896245 | BF63: 0.02608484225 | BG63: 1.005902891 | BH63: 0.01685628539 | BI63: 0.6084059521 | BJ63: 0.06037837634 | BK63: 1.069549014 | BL63: 0.05583796659 | BM63: 0.7827593392 | BN63: 0.0384423004 | BO63: 0.4748689063 | BR63: 67 | BS63: 1 | BT63: High | BU63: Usability | BV63: Financial | BW63: Fidelity | BX63: 0.02608484225 | BY63: 0.01685628539 | BZ63: 0.06037837634 | CA63: 0.05583796659 | CB63: 0.0384423004 | CC63: -0.09677419355 | CD63: 0.09375 | CE63: 0.125 | CF63: 0.78125 | CG63: 0.4748689063 | CN63: 0
B64: 4 | C64: 4 | D64: 4 | E64: 4 | F64: 8 | G64: 4 | H64: 4 | I64: 4 | P64: 1 | R64: 4 | S64: 4 | T64: 4 | U64: 4 | V64: 4 | AK64: 2012-02-01 | AL64: 68 | AM64: 1 | AN64: High | AO64: Perception | AP64: Social Networking | AQ64: Flickr | AR64: 3.95201875 | AS64: 4.01815 | AT64: 3.54194 | AU64: 4.102825 | AV64: 4.14516 | AW64: 0.1370967742 | AX64: 0.3709677419 | AY64: 0.3951612903 | AZ64: 0.2338709677 | BE64: 0.04686569452 | BF64: 0.6268882786 | BG64: -0.01831673179 | BH64: 0.6201464626 | BI64: 0.377106785 | BJ64: 0.1840084768 | BK64: -0.1085043412 | BL64: 0.7483320351 | BM64: -0.1568409621 | BN64: 0.8374628118 | BO64: 0.7087522521 | BR64: 68 | BS64: 1 | BT64: High | BU64: Perception | BV64: Social Networking | BW64: Flickr | BX64: 0.6268882786 | BY64: 0.6201464626 | BZ64: 0.1840084768 | CA64: 0.7483320351 | CB64: 0.8374628118 | CC64: 0.1370967742 | CD64: 0.3709677419 | CE64: 0.3951612903 | CF64: 0.2338709677 | CG64: 0.7087522521 | CN64: 0
B65: 4 | C65: 4 | D65: 5 | E65: 5 | F65: 11 | G65: 5 | H65: 5 | I65: 5 | P65: 1 | R65: 4.8125 | S65: 4 | T65: 5 | U65: 5.25 | V65: 5 | AK65: 2012-02-01 | AL65: 69 | AM65: 1 | AN65: High | AO65: Perception | AP65: News | AQ65: Foxnews | AR65: 3.75610375 | AS65: 3.9593 | AT65: 3.48372 | AU65: 3.860465 | AV65: 3.72093 | AW65: 0.06976744186 | AX65: 0.4186046512 | AY65: 0.2325581395 | AZ65: 0.3488372093 | BE65: 0.2182485905 | BF65: 0.4440700607 | BG65: 0.03989356366 | BH65: 0.5666280371 | BI65: 0.4162599667 | BJ65: 0.1561370579 | BK65: 0.1306202845 | BL65: 0.5833682826 | BM65: 0.2461332514 | BN65: 0.4220397214 | BO65: 0.6455484402 | BR65: 69 | BS65: 1 | BT65: High | BU65: Perception | BV65: News | BW65: Foxnews | BX65: 0.4440700607 | BY65: 0.5666280371 | BZ65: 0.1561370579 | CA65: 0.5833682826 | CB65: 0.4220397214 | CC65: 0.06976744186 | CD65: 0.4186046512 | CE65: 0.2325581395 | CF65: 0.3488372093 | CG65: 0.6455484402 | CN65: 0
P66: 0 | AK66: 2012-02-01 | AL66: 70 | AM66: 1 | AN66: High | AO66: Usability | AP66: Airlines | AQ66: Frontier Airlines | AR66: 3.82543 | AS66: 3.931025 | AT66: 3.93104 | AU66: 3.560345 | AV66: 3.87931 | AW66: -0.03448275862 | AX66: 0.275862069 | AY66: 0.4137931034 | AZ66: 0.3103448276 | BE66: 0.1609021232 | BF66: 0.505862315 | BG66: 0.06670024543 | BH66: 0.5414997312 | BI66: 0.0666862132 | BJ66: 0.4896476048 | BK66: 0.3644035015 | BL66: 0.4059532068 | BM66: 0.113944567 | BN66: 0.575600196 | BO66: 0.5398982847 | BR66: 70 | BS66: 1 | BT66: High | BU66: Usability | BV66: Airlines | BW66: Frontier Airlines | BX66: 0.505862315 | BY66: 0.5414997312 | BZ66: 0.4896476048 | CA66: 0.4059532068 | CB66: 0.575600196 | CC66: -0.03448275862 | CD66: 0.275862069 | CE66: 0.4137931034 | CF66: 0.3103448276 | CG66: 0.5398982847 | CN66: 0
P67: 0 | AK67: 2012-02-01 | AL67: 71 | AM67: 1 | AN67: High | AO67: Usability | AP67: Retail | AQ67: Fry's | AR67: 2.89322875 | AS67: 2.96875 | AT67: 3.375 | AU67: 2.375 | AV67: 2.854165 | AW67: -0.7083333333 | AX67: 0 | AY67: 0.2916666667 | AZ67: 0.7083333333 | BE67: 0.7451565622 | BF67: 0.05843281864 | BG67: 0.7086513671 | BH67: 0.0780313817 | BI67: 0.4855078158 | BJ67: 0.1140079868 | BK67: 0.965080896 | BL67: 0.08221957497 | BM67: 0.763528754 | BN67: 0.04338316388 | BO67: 0.04791463526 | BR67: 71 | BS67: 1 | BT67: High | BU67: Usability | BV67: Retail | BW67: Fry's | BX67: 0.05843281864 | BY67: 0.0780313817 | BZ67: 0.1140079868 | CA67: 0.08221957497 | CB67: 0.04338316388 | CC67: -0.7083333333 | CD67: 0 | CE67: 0.2916666667 | CF67: 0.7083333333 | CG67: 0.04791463526 | CN67: 0
P68: 0 | AK68: 2017-02-13 | AL68: 72 | AM68: 1 | AN68: High | AO68: Usability | AP68: Flowers | AQ68: FTD | AR68: 4.183333333 | AS68: 4.033333333 | AT68: 4.333333333 | AU68: 4.116666667 | AV68: 4.25 | AW68: 0.2333333333 | AX68: 0.4 | AY68: 0.4333333333 | AZ68: 0.1666666667 | BE68: -0.2025242641 | BF68: 0.8411577258 | BG68: -0.03390155168 | BH68: 0.6341373069 | BI68: -0.4054651081 | BJ68: 0.9038445988 | BK68: -0.1240526487 | BL68: 0.7577482678 | BM68: -0.2876820725 | BN68: 0.9142599631 | BO68: 0.78869413 | BR68: 72 | BS68: 1 | BT68: High | BU68: Usability | BV68: Flowers | BW68: FTD | BX68: 0.8411577258 | BY68: 0.6341373069 | BZ68: 0.9038445988 | CA68: 0.7577482678 | CB68: 0.9142599631 | CC68: 0.2333333333 | CD68: 0.4 | CE68: 0.4333333333 | CF68: 0.1666666667 | CG68: 0.78869413 | CN68: 0
P69: 0 | AK69: 2017-02-13 | AL69: 73 | AO69: Perception | AP69: Retail | AQ69: FTD | AR69: 4.020061728 | AS69: 4.104938272 | AT69: 4.152439024 | AU69: 3.81402439 | AV69: 4 | AW69: 0.07317073171 | AX69: 0.3536585366 | AY69: 0.3658536585 | AZ69: 0.2804878049 | BE69: -0.02026569746 | BF69: 0.6933904816 | BG69: -0.1108625928 | BH69: 0.7003391078 | BI69: -0.1653924947 | BJ69: 0.7348846365 | BK69: 0.1705657352 | BL69: 0.5532541778 | BM69: 0 | BN69: 0.7000419704 | BO69: 0.6488608451 | BR69: 73 | BU69: Perception | BV69: Retail | BW69: FTD | BX69: 0.6933904816 | BY69: 0.7003391078 | BZ69: 0.7348846365 | CA69: 0.5532541778 | CB69: 0.7000419704 | CC69: 0.07317073171 | CD69: 0.3536585366 | CE69: 0.3658536585 | CF69: 0.2804878049 | CG69: 0.6488608451 | CN69: 0
P70: 0 | AK70: 2012-04-15 | AL70: 74 | AM70: 1 | AN70: High | AO70: Perception | AP70: IT Services | AQ70: GoDaddy | AR70: 3.53716375 | AS70: 3.364875 | AT70: 3.78378 | AU70: 3.716215 | AV70: 3.283785 | AW70: -0.1351351351 | AX70: 0.2702702703 | AY70: 0.3243243243 | AZ70: 0.4054054054 | BE70: 0.3803771882 | BF70: 0.281001515 | BG70: 0.491719254 | BH70: 0.1830255995 | BI70: 0.1957476882 | BJ70: 0.3484790137 | BK70: 0.2498127458 | BL70: 0.4927641384 | BM70: 0.5401212846 | BN70: 0.1450054799 | BO70: 0.4350435618 | BR70: 74 | BS70: 1 | BT70: High | BU70: Perception | BV70: IT Services | BW70: GoDaddy | BX70: 0.281001515 | BY70: 0.1830255995 | BZ70: 0.3484790137 | CA70: 0.4927641384 | CB70: 0.1450054799 | CC70: -0.1351351351 | CD70: 0.2702702703 | CE70: 0.3243243243 | CF70: 0.4054054054 | CG70: 0.4350435618 | CN70: 0
P71: 0 | AK71: 2012-04-15 | AL71: 75 | AM71: 1 | AN71: High | AO71: Usability | AP71: IT Services | AQ71: GoDaddy | AR71: 3.10937875 | AS71: 3.291675 | AT71: 3.58334 | AU71: 2.395835 | AV71: 3.166665 | AW71: -0.5 | AX71: 0.1666666667 | AY71: 0.1666666667 | AZ71: 0.6666666667 | BE71: 0.6369054788 | BF71: 0.1011880388 | BG71: 0.5355133583 | BH71: 0.1567823209 | BI71: 0.3483019884 | BJ71: 0.2063730135 | BK71: 0.9571120864 | BL71: 0.08456443089 | BM71: 0.6061367127 | BN71: 0.1053704906 | BO71: 0.1314523573 | BR71: 75 | BS71: 1 | BT71: High | BU71: Usability | BV71: IT Services | BW71: GoDaddy | BX71: 0.1011880388 | BY71: 0.1567823209 | BZ71: 0.2063730135 | CA71: 0.08456443089 | CB71: 0.1053704906 | CC71: -0.5 | CD71: 0.1666666667 | CE71: 0.1666666667 | CF71: 0.6666666667 | CG71: 0.1314523573 | CN71: 0
P72: 0 | AK72: 2015-07-15 | AL72: 76 | AO72: Usability | AP72: Retail | AQ72: Harbor Freight | AR72: 3.6725 | AS72: 4 | AT72: 4.02 | AU72: 3.31 | AV72: 3.36 | AW72: -0.36 | AX72: 0.16 | AY72: 0.32 | AZ72: 0.52 | BE72: 0.2832974741 | BF72: 0.3756683739 | BG72: 0 | BH72: 0.6035010977 | BI72: -0.02020270732 | BJ72: 0.5865791233 | BK72: 0.5247285289 | BL72: 0.2926938852 | BM72: 0.4946962418 | BN72: 0.1774837692 | BO72: 0.2258061903 | BR72: 76 | BU72: Usability | BV72: Retail | BW72: Harbor Freight | BX72: 0.3756683739 | BY72: 0.6035010977 | BZ72: 0.5865791233 | CA72: 0.2926938852 | CB72: 0.1774837692 | CC72: -0.36 | CD72: 0.16 | CE72: 0.32 | CF72: 0.52 | CG72: 0.2258061903 | CN72: 0
P73: 0 | AK73: 2016-12-28 | AL73: 77 | AO73: Usability | AP73: Entertainment | AQ73: HBO GO | AR73: 4.048469388 | AS73: 4.020408163 | AT73: 4.306122449 | AU73: 3.816326531 | AV73: 4.051020408 | AW73: 0.1224489796 | AX73: 0.387755102 | AY73: 0.3469387755 | AZ73: 0.2653061224 | BE73: -0.04968342015 | BF73: 0.7207857414 | BG73: -0.0206192872 | BH73: 0.6222239523 | BI73: -0.3654597735 | BJ73: 0.8831940116 | BK73: 0.1686227124 | BL73: 0.5547275787 | BM73: -0.05236798552 | BN73: 0.7511032401 | BO73: 0.6954517882 | BR73: 77 | BU73: Usability | BV73: Entertainment | BW73: HBO GO | BX73: 0.7207857414 | BY73: 0.6222239523 | BZ73: 0.8831940116 | CA73: 0.5547275787 | CB73: 0.7511032401 | CC73: 0.1224489796 | CD73: 0.387755102 | CE73: 0.3469387755 | CF73: 0.2653061224 | CG73: 0.6954517882 | CN73: 0
P74: 0 | AK74: 2011-03-13 | AL74: 78 | AM74: 1 | AN74: High | AO74: Perception | AP74: Hotel | AQ74: Hilton | AR74: 4.0753175 | AS74: 4.173075 | AT74: 4.20512 | AU74: 3.935895 | AV74: 3.98718 | AW74: 0.02564102564 | AX74: 0.2564102564 | AY74: 0.5128205128 | AZ74: 0.2307692308 | BE74: -0.07830484363 | BF74: 0.7462429751 | BG74: -0.1900412773 | BH74: 0.7621330908 | BI74: -0.2295641191 | BJ74: 0.7905644283 | BK74: 0.06213407026 | BL74: 0.6337871598 | BM74: 0.01273851945 | BN74: 0.6869402339 | BO74: 0.6016851704 | BR74: 78 | BS74: 1 | BT74: High | BU74: Perception | BV74: Hotel | BW74: Hilton | BX74: 0.7462429751 | BY74: 0.7621330908 | BZ74: 0.7905644283 | CA74: 0.6337871598 | CB74: 0.6869402339 | CC74: 0.02564102564 | CD74: 0.2564102564 | CE74: 0.5128205128 | CF74: 0.2307692308 | CG74: 0.6016851704 | CN74: 0
P75: 0 | AK75: 2016-09-21 | AL75: 79 | AO75: Perception | AP75: Retail | AQ75: Home Depot | AR75: 4.110625 | AS75: 4.07 | AT75: 4.205 | AU75: 4.1075 | AV75: 4.06 | AW75: 0.3 | AX75: 0.47 | AY75: 0.36 | AZ75: 0.17 | BE75: =LN($AR$6-AR75) -> -0.1172363101 | BF75: =1-NORMSDIST((BE75-$BE$7)/$BE$8) -> 0.7788098575 | BG75: =LN($AS$6-AS75) -> -0.07257069283 | BH75: =1-NORMSDIST((BG75-$BG$7)/$BG$8) -> 0.6680558416 | BI75: =LN($AT$6-AT75) -> -0.2294131643 | BJ75: =1-NORMSDIST((BI75-$BI$7)/$BI$8) -> 0.7904420763 | BK75: =LN($AU$6-AU75) -> -0.1137287653 | BL75: =1-NORMSDIST((BK75-$BK$7)/$BK$8) -> 0.751517414 | BM75: =LN($AV$6-AV75) -> -0.06187540372 | BN75: =1-NORMSDIST((BM75-$BM$7)/$BM$8) -> 0.7598510247 | BO75: =NORMSDIST((AW75-$AW$7)/$AW$8) -> 0.8356103716 | BR75: =IF(AL75<>"",AL75,"") -> 79 | BS75: =IF(AM75<>"",AM75,"") ->  | BT75: =IF(AN75<>"",AN75,"") ->  | BU75: =IF(AO75<>"",AO75,"") -> Perception | BV75: =IF(AP75<>"",AP75,"") -> Retail | BW75: =IF(AQ75<>"",AQ75,"") -> Home Depot | BX75: =BF75 -> 0.7788098575 | BY75: =BH75 -> 0.6680558416 | BZ75: =BJ75 -> 0.7904420763 | CA75: =BL75 -> 0.751517414 | CB75: =BN75 -> 0.7598510247 | CC75: 0.3 | CD75: =AX75 -> 0.47 | CE75: =AY75 -> 0.36 | CF75: =AZ75 -> 0.17 | CG75: =BO75 -> 0.8356103716 | CN75: 0
P76: 0 | AK76: 2016-09-21 | AL76: 151 | AO76: Perception | AP76: Retail | AQ76: Home Depot | AR76: 3.860119048 | AS76: 3.928571429 | AT76: 3.976190476 | AU76: 3.845238095 | AV76: 3.69047619 | AW76: -0.04761904762 | AX76: 0.1904761905 | AY76: 0.5714285714 | AZ76: 0.2380952381 | BE76: 0.1309238292 | BF76: 0.5382028651 | BG76: 0.06899287149 | BH76: 0.5393414679 | BI76: 0.02353049741 | BJ76: 0.538075903 | BK76: 0.1438941797 | BL76: 0.5734064911 | BM76: 0.2696635669 | BN76: 0.3952641319 | BO76: 0.5262148711 | BR76: 151 | BU76: Perception | BV76: Retail | BW76: Home Depot | BX76: 0.5382028651 | BY76: 0.5393414679 | BZ76: 0.538075903 | CA76: 0.5734064911 | CB76: 0.3952641319 | CC76: =AW76 -> -0.04761904762 | CD76: =AX76 -> 0.1904761905 | CE76: =AY76 -> 0.5714285714 | CF76: 0.2380952381 | CG76: 0.5262148711 | CN76: 0
P77: 0 | AK77: 2016-02-01 | AL77: 80 | AO77: Usability | AP77: Real Estate | AQ77: HomeFinder | AR77: 4.264880952 | AS77: 4.404761905 | AT77: 4.226190476 | AU77: 4.083333333 | AV77: 4.345238095 | AW77: 0.3095238095 | AX77: 0.5476190476 | AY77: 0.2142857143 | AZ77: 0.2380952381 | BE77: -0.3077228233 | BF77: 0.9004663205 | BG77: -0.5187937934 | BH77: 0.932275229 | BI77: -0.2564295289 | BJ77: 0.8116634079 | BK77: -0.08701137699 | BL77: 0.7350040692 | BM77: -0.4234836136 | BN77: 0.9612498671 | BO77: 0.8417145804 | BR77: 80 | BU77: Usability | BV77: Real Estate | BW77: HomeFinder | BX77: 0.9004663205 | BY77: 0.932275229 | BZ77: 0.8116634079 | CA77: 0.7350040692 | CB77: 0.9612498671 | CC77: 0.3095238095 | CD77: 0.5476190476 | CE77: 0.2142857143 | CF77: 0.2380952381 | CG77: 0.8417145804 | CN77: 0
P78: 0 | AK78: 2012-04-15 | AL78: 81 | AM78: 1 | AN78: Low | AO78: Usability | AP78: Travel | AQ78: HotelPenn | AR78: 3.483035 | AS78: 3.839275 | AT78: 3.48572 | AU78: 2.857145 | AV78: 3.75 | AW78: -0.2857142857 | AX78: 0.2857142857 | AY78: 0.1428571429 | AZ78: 0.5714285714 | BE78: 0.4167116282 | BF78: 0.2487907775 | BG78: 0.1490448099 | BH78: 0.4637060492 | BI78: 0.4149400785 | BJ78: 0.1570287781 | BK78: 0.762139052 | BL78: 0.1584192691 | BM78: 0.2231435513 | BN78: 0.4485539694 | BO78: 0.288391726 | BR78: 81 | BS78: 1 | BT78: Low | BU78: Usability | BV78: Travel | BW78: HotelPenn | BX78: 0.2487907775 | BY78: 0.4637060492 | BZ78: 0.1570287781 | CA78: 0.1584192691 | CB78: 0.4485539694 | CC78: -0.2857142857 | CD78: 0.2857142857 | CE78: 0.1428571429 | CF78: 0.5714285714 | CG78: 0.288391726 | CN78: 0
P79: 0 | AK79: 2012-04-15 | AL79: 82 | AM79: 1 | AN79: High | AO79: Usability | AP79: Travel | AQ79: Hotels.com | AR79: 3.63833625 | AS79: 3.691675 | AT79: 3.62 | AU79: 3.758335 | AV79: 3.483335 | AW79: -0.1 | AX79: 0.2333333333 | AY79: 0.4333333333 | AZ79: 0.3333333333 | BE79: 0.3087072977 | BF79: 0.3498545551 | BG79: 0.2687476931 | BH79: 0.3538205822 | BI79: 0.3220834992 | BJ79: 0.2280659499 | BK79: 0.2164532209 | BL79: 0.518288155 | BM79: 0.4165138454 | BN79: 0.2432415763 | BO79: 0.4715046241 | BR79: 82 | BS79: 1 | BT79: High | BU79: Usability | BV79: Travel | BW79: Hotels.com | BX79: 0.3498545551 | BY79: 0.3538205822 | BZ79: 0.2280659499 | CA79: 0.518288155 | CB79: 0.2432415763 | CC79: -0.1 | CD79: 0.2333333333 | CE79: 0.4333333333 | CF79: 0.3333333333 | CG79: 0.4715046241 | CN79: 0
P80: 0 | AK80: 2011-03-13 | AL80: 83 | AM80: 1 | AN80: High | AO80: Perception | AP80: Hotel | AQ80: Hyatt | AR80: 3.960625 | AS80: 3.975 | AT80: 4.03 | AU80: 3.8875 | AV80: 3.95 | AW80: 0.1 | AX80: 0.3 | AY80: 0.5 | AZ80: 0.2 | BE80: 0.03861957097 | BF80: 0.6353143704 | BG80: 0.02469261259 | BH80: 0.5807650754 | BI80: -0.03045920748 | BJ80: 0.5977932985 | BK80: 0.1066097351 | BL80: 0.6012482397 | BM80: 0.04879016417 | BN80: 0.6486062379 | BO80: 0.6745613509 | BR80: 83 | BS80: 1 | BT80: High | BU80: Perception | BV80: Hotel | BW80: Hyatt | BX80: 0.6353143704 | BY80: 0.5807650754 | BZ80: 0.5977932985 | CA80: 0.6012482397 | CB80: 0.6486062379 | CC80: 0.1 | CD80: 0.3 | CE80: 0.5 | CF80: 0.2 | CG80: 0.6745613509 | CN80: =COUNT(B85:I85) -> 0 | CO80: =IF($CN80=8,SUM($B85:$I85),"") -> 
P81: 0 | AK81: 2012-02-01 | AL81: 84 | AM81: 1 | AN81: Low | AO81: Usability | AP81: Governments | AQ81: Il Govt | AR81: 2.33541375 | AS81: 2.083325 | AT81: 3.05 | AU81: 1.791665 | AV81: 2.416665 | AW81: -0.6666666667 | AX81: 0.1666666667 | AY81: 0 | AZ81: 0.8333333333 | BE81: 0.9800487923 | BF81: 0.01374825331 | BG81: 1.070444269 | BH81: 0.01140567919 | BI81: 0.6678293726 | BJ81: 0.04281082522 | BK81: 1.165752111 | BL81: 0.03792753114 | BM81: 0.9490811999 | BN81: 0.01202285337 | BO81: 0.05982488837 | BR81: 84 | BS81: 1 | BT81: Low | BU81: Usability | BV81: Governments | BW81: Il Govt | BX81: 0.01374825331 | BY81: 0.01140567919 | BZ81: 0.04281082522 | CA81: 0.03792753114 | CB81: 0.01202285337 | CC81: -0.6666666667 | CD81: 0.1666666667 | CE81: 0 | CF81: 0.8333333333 | CG81: 0.05982488837 | CN81: 0 | CP81: =IF(CN81=8,CO81/CN81,"") -> 
P82: 0 | AK82: 2011-01-29 | AL82: 85 | AM82: 1 | AN82: High | AO82: Perception | AP82: Informational | AQ82: IMDB | AR82: 4.21625 | AS82: 4.416675 | AT82: 3.92888 | AU82: 4.619445 | AV82: 3.9 | AW82: 0.5888888889 | AX82: 0.7 | AY82: 0.1888888889 | AZ82: 0.1111111111 | BE82: -0.243665187 | BF82: 0.8666467926 | BG82: -0.5390107865 | BH82: 0.9383301334 | BI82: 0.06870483001 | BJ82: 0.4873805381 | BK82: -0.9661245655 | BL82: 0.9896796418 | BM82: 0.0953101798 | BN82: 0.5968690351 | BO82: 0.9584975313 | BR82: 85 | BS82: 1 | BT82: High | BU82: Perception | BV82: Informational | BW82: IMDB | BX82: 0.8666467926 | BY82: 0.9383301334 | BZ82: 0.4873805381 | CA82: 0.9896796418 | CB82: 0.5968690351 | CC82: 0.5888888889 | CD82: 0.7 | CE82: 0.1888888889 | CF82: 0.1111111111 | CG82: 0.9584975313 | CN82: 0
P83: 0 | AK83: 2012-04-15 | AL83: 86 | AM83: 1 | AN83: High | AO83: Usability | AP83: Retail | AQ83: JC Pennys | AR83: 3.49271125 | AS83: 3.541675 | AT83: 3.95 | AU83: 3.020835 | AV83: 3.458335 | AW83: -0.4166666667 | AX83: 0.08333333333 | AY83: 0.4166666667 | AZ83: 0.5 | BE83: 0.4103125071 | BF83: 0.2543175357 | BG83: 0.3772885168 | BH83: 0.2635382081 | BI83: 0.04879016417 | BJ83: 0.5097525139 | BK83: 0.6826750386 | BL83: 0.1980704697 | BM83: 0.4328630012 | BN83: 0.2284932319 | BO83: 0.1837395664 | BR83: 86 | BS83: 1 | BT83: High | BU83: Usability | BV83: Retail | BW83: JC Pennys | BX83: 0.2543175357 | BY83: 0.2635382081 | BZ83: 0.5097525139 | CA83: 0.1980704697 | CB83: 0.2284932319 | CC83: -0.4166666667 | CD83: 0.08333333333 | CE83: 0.4166666667 | CF83: 0.5 | CG83: 0.1837395664 | CN83: 0
P84: 0 | AK84: 2012-02-01 | AL84: 87 | AM84: 1 | AN84: High | AO84: Usability | AP84: Airlines | AQ84: Jet Blue | AR84: 3.8670175 | AS84: 3.916675 | AT84: 3.93334 | AU84: 3.65972 | AV84: 3.958335 | AW84: -0.08333333333 | AX84: 0.2777777778 | AY84: 0.3611111111 | AZ84: 0.3611111111 | BE84: 0.1248535362 | BF84: 0.5447277648 | BG84: 0.08003501534 | BH84: 0.5289313519 | BI84: 0.06453227112 | BJ84: 0.4920670196 | BK84: 0.2928785474 | BL84: 0.4598723829 | BM84: 0.04082039452 | BN84: 0.6572291503 | BO84: 0.4889033231 | BR84: 87 | BS84: 1 | BT84: High | BU84: Usability | BV84: Airlines | BW84: Jet Blue | BX84: 0.5447277648 | BY84: 0.5289313519 | BZ84: 0.4920670196 | CA84: 0.4598723829 | CB84: 0.6572291503 | CC84: -0.08333333333 | CD84: 0.2777777778 | CE84: 0.3611111111 | CF84: 0.3611111111 | CG84: 0.4889033231 | CN84: 0
P85: 0 | AK85: 2012-04-15 | AL85: 88 | AM85: 1 | AN85: Low | AO85: Usability | AP85: Informational | AQ85: Julie Garwood | AR85: 3.24895625 | AS85: 3.625 | AT85: 3.51666 | AU85: 2.1875 | AV85: 3.666665 | AW85: -0.5833333333 | AX85: 0.08333333333 | AY85: 0.25 | AZ85: 0.6666666667 | BE85: 0.5602120387 | BF85: 0.1429754135 | BG85: 0.3184537311 | BH85: 0.3110330453 | BI85: 0.3942963019 | BJ85: 0.1714107257 | BK85: 1.034073768 | BL85: 0.06392312547 | BM85: 0.2876833225 | BN85: 0.3750814037 | BO85: 0.09046473885 | BR85: 88 | BS85: 1 | BT85: Low | BU85: Usability | BV85: Informational | BW85: Julie Garwood | BX85: 0.1429754135 | BY85: 0.3110330453 | BZ85: 0.1714107257 | CA85: 0.06392312547 | CB85: 0.3750814037 | CC85: -0.5833333333 | CD85: 0.08333333333 | CE85: 0.25 | CF85: 0.6666666667 | CG85: 0.09046473885 | CN85: 0
P86: =IF(COUNT(B86:K86)<8,0,1) -> 0 | R86: =IF(COUNT(B86:I86)=8,AVERAGE(B86:E86,G86:I86,0.5*F86),"") ->  | S86: =IF(COUNT(B86:C86)=2,AVERAGE(B86:C86),"") ->  | T86: =IF(COUNT(D86:E86)=2,AVERAGE(D86:E86),"") ->  | U86: =IF(COUNT(G86,F86)=2,AVERAGE(G86,0.5*F86),"") ->  | V86: =IF(COUNT(H86:I86)=2,AVERAGE(H86:I86),"") ->  | AK86: 2013-02-25 | AL86: 89 | AM86: 1 | AN86: High | AO86: Perception | AP86: Heathcare | AQ86: Kaiser | AR86: 4.242957746 | AS86: 4.063380282 | AT86: 4.436619718 | AU86: 4.401408451 | AV86: 4.070422535 | AW86: 0.28 | AX86: 0.47 | AY86: 0.35 | AZ86: 0.18 | BE86: -0.27833621 | BF86: 0.8858219076 | BG86: -0.06547792938 | BH86: 0.661926878 | BI86: -0.5738004229 | BJ86: 0.9622864552 | BK86: -0.5131758011 | BL86: 0.925850268 | BM86: -0.07302513501 | BN86: 0.7698926771 | BO86: 0.822301745 | BR86: 89 | BS86: 1 | BT86: High | BU86: Perception | BV86: Heathcare | BW86: Kaiser | BX86: 0.8858219076 | BY86: 0.661926878 | BZ86: 0.9622864552 | CA86: 0.925850268 | CB86: 0.7698926771 | CC86: 0.28 | CD86: 0.47 | CE86: 0.35 | CF86: 0.18 | CG86: 0.822301745 | CN86: 0
P87: 0 | AK87: 2014-06-01 | AL87: 90 | AM87: 1 | AN87: High | AO87: Usability | AP87: Travel | AQ87: Kayak | AR87: 3.2776075 | AS87: 3.291675 | AT87: 3.68334 | AU87: 2.96875 | AV87: 3.166665 | AW87: -0.2916666667 | AX87: 0.2083333333 | AY87: 0.2916666667 | AZ87: 0.5 | BE87: 0.5437143127 | BF87: 0.1533067568 | BG87: 0.5355133583 | BH87: 0.1567823209 | BI87: 0.2750982269 | BJ87: 0.2699692288 | BK87: 0.7086513671 | BL87: 0.184495236 | BM87: 0.6061367127 | BN87: 0.1053704906 | BO87: 0.2830903474 | BR87: 90 | BS87: 1 | BT87: High | BU87: Usability | BV87: Travel | BW87: Kayak | BX87: 0.1533067568 | BY87: 0.1567823209 | BZ87: 0.2699692288 | CA87: 0.184495236 | CB87: 0.1053704906 | CC87: -0.2916666667 | CD87: 0.2083333333 | CE87: 0.2916666667 | CF87: 0.5 | CG87: 0.2830903474 | CN87: 0
P88: 0 | AK88: 2014-06-01 | AL88: 91 | AM88: 1 | AN88: High | AO88: Perception | AP88: Travel | AQ88: Kayak | AR88: 4.240291262 | AS88: 4.281553398 | AT88: 4.247572816 | AU88: 4.305825243 | AV88: 4.126213592 | AW88: 0.4854368932 | AX88: 0.6116504854 | AY88: 0.2621359223 | AZ88: 0.1262135922 | BE88: -0.2748201588 | BF88: 0.8839719149 | BG88: -0.330663895 | BH88: 0.8523868591 | BI88: -0.2844510519 | BJ88: 0.832216214 | BK88: -0.3650315385 | BL88: 0.8772536736 | BM88: -0.1349193179 | BN88: 0.8211746014 | BO88: 0.9281910259 | BR88: 91 | BS88: 1 | BT88: High | BU88: Perception | BV88: Travel | BW88: Kayak | BX88: 0.8839719149 | BY88: 0.8523868591 | BZ88: 0.832216214 | CA88: 0.8772536736 | CB88: 0.8211746014 | CC88: 0.4854368932 | CD88: 0.6116504854 | CE88: 0.2621359223 | CF88: 0.1262135922 | CG88: 0.9281910259 | CN88: 0
P89: 0 | AK89: 2011-02-01 | AL89: 95 | AM89: 1 | AN89: High | AO89: Perception | AP89: 3rd Party Automotive | AQ89: Kelley Blue Book | AR89: 4.27774375 | AS89: 4.35365 | AT89: 4.26342 | AU89: 4.542685 | AV89: 3.95122 | AW89: 0.6097560976 | AX89: 0.6829268293 | AY89: 0.243902439 | AZ89: 0.07317073171 | BE89: -0.3253752862 | BF89: 0.9085755312 | BG89: -0.4364141263 | BH89: 0.9027799419 | BI89: -0.3057374271 | BJ89: 0.8468245993 | BK89: -0.7823828476 | BL89: 0.9751191047 | BM89: 0.04762758387 | BN89: 0.6498689982 | BO89: 0.9631270074 | BR89: 95 | BS89: 1 | BT89: High | BU89: Perception | BV89: 3rd Party Automotive | BW89: Kelley Blue Book | BX89: 0.9085755312 | BY89: 0.9027799419 | BZ89: 0.8468245993 | CA89: 0.9751191047 | CB89: 0.6498689982 | CC89: 0.6097560976 | CD89: 0.6829268293 | CE89: 0.243902439 | CF89: 0.07317073171 | CG89: 0.9631270074 | CN89: 0
P90: 0 | AK90: 2012-04-15 | AL90: 96 | AM90: 1 | AN90: High | AO90: Usability | AP90: 3rd Party Automotive | AQ90: Kelley Blue Book | AR90: 3.39435375 | AS90: 3.266125 | AT90: 3.7871 | AU90: 3.459675 | AV90: 3.064515 | AW90: -0.2258064516 | AX90: 0.2580645161 | AY90: 0.2580645161 | AZ90: 0.4838709677 | BE90: 0.4735263235 | BF90: 0.2026445032 | BG90: 0.5503587881 | BH90: 0.1484781837 | BI90: 0.1930141863 | BJ90: 0.3513302004 | BK90: 0.4319934331 | BL90: 0.3565743451 | BM90: 0.6603579411 | BN90: 0.07921005006 | BO90: 0.3441654667 | BR90: 96 | BS90: 1 | BT90: High | BU90: Usability | BV90: 3rd Party Automotive | BW90: Kelley Blue Book | BX90: 0.2026445032 | BY90: 0.1484781837 | BZ90: 0.3513302004 | CA90: 0.3565743451 | CB90: 0.07921005006 | CC90: -0.2258064516 | CD90: 0.2580645161 | CE90: 0.2580645161 | CF90: 0.4838709677 | CG90: 0.3441654667 | CN90: 0
P91: 0 | AK91: 2012-02-01 | AL91: 97 | AM91: 1 | AN91: High | AO91: Perception | AP91: Informational | AQ91: Lawyers | AR91: 3.871484375 | AS91: 3.984375 | AT91: 3.9 | AU91: 3.8046875 | AV91: 3.796875 | AW91: -0.03125 | AX91: 0.28125 | AY91: 0.40625 | AZ91: 0.3125 | BE91: 0.120903163 | BF91: 0.5489676226 | BG91: 0.01550418654 | BH91: 0.5892613267 | BI91: 0.0953101798 | BJ91: 0.4575664168 | BK91: 0.1784076575 | BL91: 0.5473003535 | BM91: 0.1849223385 | BN91: 0.4930894909 | BO91: 0.5432590832 | BR91: 97 | BS91: 1 | BT91: High | BU91: Perception | BV91: Informational | BW91: Lawyers | BX91: 0.5489676226 | BY91: 0.5892613267 | BZ91: 0.4575664168 | CA91: 0.5473003535 | CB91: 0.4930894909 | CC91: -0.03125 | CD91: 0.28125 | CE91: 0.40625 | CF91: 0.3125 | CG91: 0.5432590832 | CN91: 0
P92: 0 | AK92: 2012-02-01 | AL92: 98 | AM92: 1 | AN92: High | AO92: Perception | AP92: Social Networking | AQ92: LinkedIn | AR92: 3.725565 | AS92: 3.708325 | AT92: 3.61818 | AU92: 3.863635 | AV92: 3.71212 | AW92: 0.01515151515 | AX92: 0.3787878788 | AY92: 0.2575757576 | AZ92: 0.3636363636 | BE92: 0.2425029431 | BF92: 0.4182534025 | BG92: 0.2559398257 | BH92: 0.3651799493 | BI92: 0.3234014708 | BJ92: 0.226945742 | BK92: 0.1278345715 | BL92: 0.5854523487 | BM92: 0.2529974556 | BN92: 0.4141856003 | BO92: 0.5910423837 | BR92: 98 | BS92: 1 | BT92: High | BU92: Perception | BV92: Social Networking | BW92: LinkedIn | BX92: 0.4182534025 | BY92: 0.3651799493 | BZ92: 0.226945742 | CA92: 0.5854523487 | CB92: 0.4141856003 | CC92: 0.01515151515 | CD92: 0.3787878788 | CE92: 0.2575757576 | CF92: 0.3636363636 | CG92: 0.5910423837 | CN92: 0
P93: 0 | AK93: 2012-02-01 | AL93: 99 | AM93: 1 | AN93: High | AO93: Usability | AP93: Retail | AQ93: LL-Bean | AR93: 3.82500125 | AS93: 3.875 | AT93: 4.13334 | AU93: 3.166665 | AV93: 4.125 | AW93: -0.3333333333 | AX93: 0.1666666667 | AY93: 0.3333333333 | AZ93: 0.5 | BE93: 0.1612670838 | BF93: 0.5054679252 | BG93: 0.1177830357 | BH93: 0.4932377982 | BI93: -0.143108536 | BJ93: 0.7139274874 | BK93: 0.6061367127 | BL93: 0.2414319543 | BM93: -0.1335313926 | BN93: 0.8201098731 | BO93: 0.2473480539 | BR93: 99 | BS93: 1 | BT93: High | BU93: Usability | BV93: Retail | BW93: LL-Bean | BX93: 0.5054679252 | BY93: 0.4932377982 | BZ93: 0.7139274874 | CA93: 0.2414319543 | CB93: 0.8201098731 | CC93: -0.3333333333 | CD93: 0.1666666667 | CE93: 0.3333333333 | CF93: 0.5 | CG93: 0.2473480539 | CN93: 0
P94: 0 | AK94: 2016-10-03 | AL94: 100 | AO94: Perception | AP94: Retail | AQ94: Lowes | AR94: 4.1875 | AS94: 4 | AT94: 4.5 | AU94: 4.25 | AV94: 4 | AW94: 0.387755102 | AX94: 0.5510204082 | AY94: 0.2857142857 | AZ94: 0.1632653061 | BE94: -0.2076393648 | BF94: 0.8444900622 | BG94: 0 | BH94: 0.6035010977 | BI94: -0.6931471806 | BJ94: 0.9827413592 | BK94: -0.2876820725 | BL94: 0.8444654575 | BM94: 0 | BN94: 0.7000419704 | BO94: 0.8861891754 | BR94: 100 | BU94: Perception | BV94: Retail | BW94: Lowes | BX94: 0.8444900622 | BY94: 0.6035010977 | BZ94: 0.9827413592 | CA94: 0.8444654575 | CB94: 0.7000419704 | CC94: 0.387755102 | CD94: 0.5510204082 | CE94: 0.2857142857 | CF94: 0.1632653061 | CG94: 0.8861891754 | CN94: 0
P95: 0 | AK95: 2015-07-15 | AL95: 101 | AO95: Usability | AP95: Retail | AQ95: Macy's | AR95: 4.33 | AS95: 4.54 | AT95: 4.48 | AU95: 4.04 | AV95: 4.26 | AW95: 0.16 | AX95: 0.4 | AY95: 0.36 | AZ95: 0.24 | BE95: -0.4004775666 | BF95: 0.9376680493 | BG95: -0.7765287895 | BH95: 0.9823228727 | BI95: -0.6539264674 | BJ95: 0.9774391733 | BK95: -0.04082199452 | BL95: 0.7051978698 | BM95: -0.3011050928 | BN95: 0.9202558353 | BO95: 0.7289873946 | BR95: 101 | BU95: Usability | BV95: Retail | BW95: Macy's | BX95: 0.9376680493 | BY95: 0.9823228727 | BZ95: 0.9774391733 | CA95: 0.7051978698 | CB95: 0.9202558353 | CC95: 0.16 | CD95: 0.4 | CE95: 0.36 | CF95: 0.24 | CG95: 0.7289873946 | CN95: 0
P96: 0 | AK96: 2015-07-15 | AL96: 102 | AO96: Perception | AP96: Retail | AQ96: Macy's | AR96: 3.981617647 | AS96: 3.970588235 | AT96: 4.264705882 | AU96: 3.926470588 | AV96: 3.764705882 | AW96: 0.1764705882 | AX96: 0.4117647059 | AY96: 0.3529411765 | AZ96: 0.2352941176 | BE96: 0.01821543989 | BF96: 0.6558773183 | BG96: 0.02898753687 | BH96: 0.5767804825 | BI96: -0.3074846997 | BJ96: 0.8479851039 | BK96: 0.07095173597 | BL96: 0.6274037802 | BM96: 0.2113090937 | BN96: 0.4623006921 | BO96: 0.7430924998 | BR96: 102 | BU96: Perception | BV96: Retail | BW96: Macy's | BX96: 0.6558773183 | BY96: 0.5767804825 | BZ96: 0.8479851039 | CA96: 0.6274037802 | CB96: 0.4623006921 | CC96: 0.1764705882 | CD96: 0.4117647059 | CE96: 0.3529411765 | CF96: 0.2352941176 | CG96: 0.7430924998 | CN96: 0
P97: 0 | AK97: 2012-04-15 | AL97: 103 | AM97: 1 | AN97: High | AO97: Perception | AP97: Dating | AQ97: Match.com | AR97: 3.41339375 | AS97: 3.598225 | AT97: 3.17142 | AU97: 3.044645 | AV97: 3.839285 | AW97: -0.4642857143 | AX97: 0.1071428571 | AY97: 0.3214285714 | AZ97: 0.5714285714 | BE97: 0.4615973011 | BF97: 0.2118853971 | BG97: 0.3377392907 | BH97: 0.2950580058 | BI97: 0.6035397094 | BJ97: 0.06203651026 | BK97: 0.6705717626 | BL97: 0.2045964526 | BM97: 0.1490361945 | BN97: 0.5349931785 | BO97: 0.1524517118 | BR97: 103 | BS97: 1 | BT97: High | BU97: Perception | BV97: Dating | BW97: Match.com | BX97: 0.2118853971 | BY97: 0.2950580058 | BZ97: 0.06203651026 | CA97: 0.2045964526 | CB97: 0.5349931785 | CC97: -0.4642857143 | CD97: 0.1071428571 | CE97: 0.3214285714 | CF97: 0.5714285714 | CG97: 0.1524517118 | CN97: 0
P98: 0 | AK98: 2012-02-01 | AL98: 104 | AM98: 1 | AN98: Low | AO98: Usability | AP98: Education | AQ98: McMaster Univ. | AR98: 3.833676307 | AS98: 3.725806452 | AT98: 3.922580645 | AU98: 3.637931034 | AV98: 4.048387097 | AW98: -0.3103448276 | AX98: 0.1034482759 | AY98: 0.4827586207 | AZ98: 0.4137931034 | BE98: 0.1538566592 | BF98: 0.5134743186 | BG98: 0.2423134674 | BH98: 0.377396274 | BI98: 0.0745686955 | BJ98: 0.4807975283 | BK98: 0.3090048419 | BL98: 0.4476141105 | BM98: -0.04959694114 | BN98: 0.7485220457 | BO98: 0.2667654284 | BR98: 104 | BS98: 1 | BT98: Low | BU98: Usability | BV98: Education | BW98: McMaster Univ. | BX98: 0.5134743186 | BY98: 0.377396274 | BZ98: 0.4807975283 | CA98: 0.4476141105 | CB98: 0.7485220457 | CC98: -0.3103448276 | CD98: 0.1034482759 | CE98: 0.4827586207 | CF98: 0.4137931034 | CG98: 0.2667654284 | CN98: 0
P99: 0 | AK99: 2012-02-01 | AL99: 105 | AM99: 1 | AN99: High | AO99: Usability | AP99: Retail | AQ99: Michaels | AR99: 3.14958125 | AS99: 3.05 | AT99: 3.20666 | AU99: 3.091665 | AV99: 3.25 | AW99: -0.4 | AX99: 0.2 | AY99: 0.2 | AZ99: 0.6 | BE99: 0.6154119648 | BF99: 0.1118811401 | BG99: 0.6678293726 | BH99: 0.09314862556 | BI99: 0.584079803 | BJ99: 0.06902458652 | BK99: 0.6462311341 | BL99: 0.2181017461 | BM99: 0.5596157879 | BN99: 0.1323783445 | BO99: 0.1955743504 | BR99: 105 | BS99: 1 | BT99: High | BU99: Usability | BV99: Retail | BW99: Michaels | BX99: 0.1118811401 | BY99: 0.09314862556 | BZ99: 0.06902458652 | CA99: 0.2181017461 | CB99: 0.1323783445 | CC99: -0.4 | CD99: 0.2 | CE99: 0.2 | CF99: 0.6 | CG99: 0.1955743504 | CN99: 0
P100: 0 | AK100: 2015-07-15 | AL100: 106 | AM100: 1 | AN100: Low | AO100: Perception | AP100: Retail | AQ100: Microcenter | AR100: 3.919 | AS100: 3.88 | AT100: 4.216 | AU100: 4.08 | AV100: 3.5 | AW100: 0.24 | AX100: 0.4 | AY100: 0.44 | AZ100: 0.16 | BE100: 0.07788653866 | BF100: 0.5946746647 | BG100: 0.1133286853 | BH100: 0.4974524466 | BI100: -0.2433462586 | BJ100: 0.8015570787 | BK100: -0.08338160894 | BL100: 0.7327183344 | BM100: 0.4054651081 | BN100: 0.2534926532 | BO100: 0.7937112196 | BR100: 106 | BS100: 1 | BT100: Low | BU100: Perception | BV100: Retail | BW100: Microcenter | BX100: 0.5946746647 | BY100: 0.4974524466 | BZ100: 0.8015570787 | CA100: 0.7327183344 | CB100: 0.2534926532 | CC100: 0.24 | CD100: 0.4 | CE100: 0.44 | CF100: 0.16 | CG100: 0.7937112196 | CN100: 0
P101: 0 | AK101: 2015-07-15 | AL101: 107 | AO101: Usability | AP101: Retail | AQ101: Microcenter | AR101: 3.8575 | AS101: 4.22 | AT101: 3.94 | AU101: 3.31 | AV101: 3.96 | AW101: -0.24 | AX101: 0.2 | AY101: 0.36 | AZ101: 0.44 | BE101: 0.1332188438 | BF101: 0.5357331986 | BG101: -0.2484613593 | BH101: 0.8028230623 | BI101: 0.05826890812 | BJ101: 0.4991036768 | BK101: 0.5247285289 | BL101: 0.2926938852 | BM101: 0.03922071315 | BN101: 0.6589502765 | BO101: 0.3305806049 | BR101: 107 | BU101: Usability | BV101: Retail | BW101: Microcenter | BX101: 0.5357331986 | BY101: 0.8028230623 | BZ101: 0.4991036768 | CA101: 0.2926938852 | CB101: 0.6589502765 | CC101: -0.24 | CD101: 0.2 | CE101: 0.36 | CF101: 0.44 | CG101: 0.3305806049 | CN101: 0
P102: 0 | AK102: 2012-02-01 | AL102: 108 | AM102: 1 | AN102: High | AO102: Perception | AP102: IT | AQ102: Microsoft | AR102: 3.880921053 | AS102: 3.73245614 | AT102: 4.115789474 | AU102: 3.938596491 | AV102: 3.736842105 | AW102: -0.01754385965 | AX102: 0.298245614 | AY102: 0.3859649123 | AZ102: 0.3157894737 | BE102: 0.1125059786 | BF102: 0.5579610249 | BG102: 0.2370810592 | BH102: 0.3821208059 | BI102: -0.1230600928 | BJ102: 0.69442498 | BK102: 0.0595920972 | BL102: 0.6356206075 | BM102: 0.2336148512 | BN102: 0.4364414331 | BO102: 0.5574708957 | BR102: 108 | BS102: 1 | BT102: High | BU102: Perception | BV102: IT | BW102: Microsoft | BX102: 0.5579610249 | BY102: 0.3821208059 | BZ102: 0.69442498 | CA102: 0.6356206075 | CB102: 0.4364414331 | CC102: -0.01754385965 | CD102: 0.298245614 | CE102: 0.3859649123 | CF102: 0.3157894737 | CG102: 0.5574708957 | CN102: 0
P103: 0 | AK103: 2011-03-13 | AL103: 109 | AM103: 1 | AN103: High | AO103: Perception | AP103: Informational | AQ103: Motley Fool | AR103: 4.1875 | AS103: 4.2625 | AT103: 4 | AU103: 4.4625 | AV103: 4.025 | AW103: 0.4 | AX103: 0.55 | AY103: 0.3 | AZ103: 0.15 | BE103: -0.2076393648 | BF103: 0.8444900622 | BG103: -0.3044891908 | BH103: 0.8375998369 | BI103: 0 | BJ103: 0.5642906703 | BK103: -0.620826519 | BL103: 0.9507408113 | BM103: -0.02531780798 | BN103: 0.7253153151 | BO103: 0.8922516205 | BR103: 109 | BS103: 1 | BT103: High | BU103: Perception | BV103: Informational | BW103: Motley Fool | BX103: 0.8444900622 | BY103: 0.8375998369 | BZ103: 0.5642906703 | CA103: 0.9507408113 | CB103: 0.7253153151 | CC103: 0.4 | CD103: 0.55 | CE103: 0.3 | CF103: 0.15 | CG103: 0.8922516205 | CN103: 0
P104: 0 | AK104: 2016-12-16 | AL104: 110 | AM104: 1 | AN104: High | AO104: Perception | AP104: Retail | AQ104: Netflix | AR104: 4.36875 | AS104: 4.266666667 | AT104: 4.483333333 | AU104: 4.358333333 | AV104: 4.366666667 | AW104: 0.3666666667 | AX104: 0.5666666667 | AY104: 0.2333333333 | AZ104: 0.2 | BE104: -0.4600532984 | BF104: 0.9551403941 | BG104: -0.3101549283 | BH104: 0.8408796837 | BI104: -0.6603573577 | BJ104: 0.9783927048 | BK104: -0.4436863209 | BL104: 0.9052832699 | BM104: -0.4567584025 | BN104: 0.9687602129 | BO104: 0.8751859173 | BR104: 110 | BS104: 1 | BT104: High | BU104: Perception | BV104: Retail | BW104: Netflix | BX104: 0.9551403941 | BY104: 0.8408796837 | BZ104: 0.9783927048 | CA104: 0.9052832699 | CB104: 0.9687602129 | CC104: 0.3666666667 | CD104: 0.5666666667 | CE104: 0.2333333333 | CF104: 0.2 | CG104: 0.8751859173 | CN104: 0
P105: 0 | AK105: 2012-04-15 | AL105: 112 | AM105: 1 | AN105: High | AO105: Usability | AP105: IT Services | AQ105: Network Solutions | AR105: 3.58229 | AS105: 3.8125 | AT105: 3.51666 | AU105: 3.083335 | AV105: 3.916665 | AW105: -0.25 | AX105: 0.1666666667 | AY105: 0.4166666667 | AZ105: 0.4166666667 | BE105: 0.3490428938 | BF105: 0.3103059114 | BG105: 0.1718502569 | BH105: 0.4422789285 | BI105: 0.3942963019 | BJ105: 0.1714107257 | BK105: 0.6505866966 | BL105: 0.2156480158 | BM105: 0.08004424613 | BN105: 0.6140850667 | BO105: 0.3211404447 | BR105: 112 | BS105: 1 | BT105: High | BU105: Usability | BV105: IT Services | BW105: Network Solutions | BX105: 0.3103059114 | BY105: 0.4422789285 | BZ105: 0.1714107257 | CA105: 0.2156480158 | CB105: 0.6140850667 | CC105: -0.25 | CD105: 0.1666666667 | CE105: 0.4166666667 | CF105: 0.4166666667 | CG105: 0.3211404447 | CN105: 0
P106: 0 | AK106: 2011-01-29 | AL106: 113 | AM106: 1 | AN106: High | AO106: Perception | AP106: News | AQ106: New York Times | AR106: 4.2160725 | AS106: 4.297625 | AT106: 3.9 | AU106: 4.535715 | AV106: 4.13095 | AW106: 0.5714285714 | AX106: 0.6904761905 | AY106: 0.1904761905 | AZ106: 0.119047619 | BE106: -0.2434387374 | BF106: 0.8665146727 | BG106: -0.3532878295 | BH106: 0.8644182937 | BI106: 0.0953101798 | BJ106: 0.4575664168 | BK106: -0.7672566912 | BL106: 0.9733811758 | BM106: -0.140354618 | BN106: 0.825305926 | BO106: 0.9542715261 | BR106: 113 | BS106: 1 | BT106: High | BU106: Perception | BV106: News | BW106: New York Times | BX106: 0.8665146727 | BY106: 0.8644182937 | BZ106: 0.4575664168 | CA106: 0.9733811758 | CB106: 0.825305926 | CC106: 0.5714285714 | CD106: 0.6904761905 | CE106: 0.1904761905 | CF106: 0.119047619 | CG106: 0.9542715261 | CN106: 0
P107: 0 | AK107: 2015-07-15 | AL107: 114 | AO107: Usability | AP107: Informational | AQ107: Newsweek | AR107: 3.418269231 | AS107: 3.538461538 | AT107: 3.865384615 | AU107: 2.75 | AV107: 3.519230769 | AW107: -0.6153846154 | AX107: 0.1153846154 | AY107: 0.1538461538 | AZ107: 0.7307692308 | BE107: =LN($AR$6-AR107) -> 0.4585196711 | BF107: =1-NORMSDIST((BE107-$BE$7)/$BE$8) -> 0.2143089117 | BG107: =LN($AS$6-AS107) -> 0.3794896217 | BH107: =1-NORMSDIST((BG107-$BG$7)/$BG$8) -> 0.2618357901 | BI107: =LN($AT$6-AT107) -> 0.1262937253 | BJ107: =1-NORMSDIST((BI107-$BI$7)/$BI$8) -> 0.4231560827 | BK107: =LN($AU$6-AU107) -> 0.8109302162 | BL107: =1-NORMSDIST((BK107-$BK$7)/$BK$8) -> 0.136851264 | BM107: 0.3925617033 | BN107: =1-NORMSDIST((BM107-$BM$7)/$BM$8) -> 0.2657458063 | BO107: 0.0775308174 | BR107: =IF(AL107<>"",AL107,"") -> 114 | BS107: =IF(AM107<>"",AM107,"") ->  | BT107: =IF(AN107<>"",AN107,"") ->  | BU107: =IF(AO107<>"",AO107,"") -> Usability | BV107: =IF(AP107<>"",AP107,"") -> Informational | BW107: =IF(AQ107<>"",AQ107,"") -> Newsweek | BX107: =BF107 -> 0.2143089117 | BY107: =BH107 -> 0.2618357901 | BZ107: =BJ107 -> 0.4231560827 | CA107: =BL107 -> 0.136851264 | CB107: =BN107 -> 0.2657458063 | CC107: -0.6153846154 | CD107: 0.1153846154 | CE107: 0.1538461538 | CF107: 0.7307692308 | CG107: =BO107 -> 0.0775308174 | CN107: 0
P108: 0 | AK108: 2016-10-27 | AL108: 115 | AM108: 1 | AN108: High | AO108: Perception | AP108: Retail | AQ108: Nordstrom | AR108: 4.088994565 | AS108: 4.135869565 | AT108: 4.168478261 | AU108: 4.013586957 | AV108: 4.038043478 | AW108: 0.04347826087 | AX108: 0.3043478261 | AY108: 0.4347826087 | AZ108: 0.2608695652 | BE108: -0.09320641601 | BF108: 0.7589977671 | BG108: -0.1460315554 | BH108: 0.7286694184 | BI108: -0.1844978362 | BJ108: 0.7522099155 | BK108: -0.0136801039 | BL108: 0.686991689 | BM108: -0.03878602504 | BN108: 0.7383181096 | BO108: 0.6196066177 | BR108: 115 | BS108: 1 | BT108: High | BU108: Perception | BV108: Retail | BW108: Nordstrom | BX108: 0.7589977671 | BY108: 0.7286694184 | BZ108: 0.7522099155 | CA108: 0.686991689 | CB108: 0.7383181096 | CC108: 0.04347826087 | CD108: 0.3043478261 | CE108: 0.4347826087 | CF108: 0.2608695652 | CG108: 0.6196066177 | CN108: 0
P109: 0 | AK109: 2012-02-01 | AL109: 116 | AM109: 1 | AN109: Low | AO109: Usability | AP109: Governments | AQ109: NY Govt | AR109: 1.71875125 | AS109: 1.479175 | AT109: 2.5 | AU109: 1.104165 | AV109: 1.791665 | AW109: -1 | AX109: 0 | AY109: 0 | AZ109: 1 | BE109: 1.188224066 | BF109: 0.002817057582 | BG109: 1.258695337 | BH109: 0.003233680564 | BI109: 0.9162907319 | BJ109: 0.007787931547 | BK109: 1.359908034 | BL109: 0.01586782459 | BM109: 1.165752111 | BN109: 0.001918445421 | BO109: 0.007557083627 | BR109: 116 | BS109: 1 | BT109: Low | BU109: Usability | BV109: Governments | BW109: NY Govt | BX109: 0.002817057582 | BY109: 0.003233680564 | BZ109: 0.007787931547 | CA109: 0.01586782459 | CB109: 0.001918445421 | CC109: -1 | CD109: 0 | CE109: 0 | CF109: 1 | CG109: 0.007557083627 | CN109: 0
P110: 0 | AK110: 2012-04-15 | AL110: 117 | AM110: 1 | AN110: High | AO110: Perception | AP110: Retail | AQ110: OfficeMax | AR110: 3.57256 | AS110: 3.664625 | AT110: 3.71708 | AU110: 3.42073 | AV110: 3.487805 | AW110: -0.1951219512 | AX110: 0.1951219512 | AY110: 0.4146341463 | AZ110: 0.3902439024 | BE110: 0.3558826301 | BF110: 0.3037964491 | BG110: 0.2892121513 | BH110: 0.3359412366 | BI110: 0.2491387298 | BJ110: 0.2946688702 | BK110: 0.456962715 | BL110: 0.338876538 | BM110: 0.4135622377 | BN110: 0.2459579687 | BO110: 0.3742102125 | BR110: 117 | BS110: 1 | BT110: High | BU110: Perception | BV110: Retail | BW110: OfficeMax | BX110: 0.3037964491 | BY110: 0.3359412366 | BZ110: 0.2946688702 | CA110: 0.338876538 | CB110: 0.2459579687 | CC110: -0.1951219512 | CD110: 0.1951219512 | CE110: 0.4146341463 | CF110: 0.3902439024 | CG110: 0.3742102125 | CN110: 0
P111: 0 | AK111: 2014-06-01 | AL111: 118 | AM111: 1 | AN111: High | AO111: Perception | AP111: Travel | AQ111: Orbitz | AR111: 3.96891375 | AS111: 4.04605 | AT111: 4.06316 | AU111: 3.86513 | AV111: 3.901315 | AW111: -0.03947368421 | AX111: 0.3026315789 | AY111: 0.3552631579 | AZ111: 0.3421052632 | BE111: 0.03061285818 | BF111: 0.6434337911 | BG111: -0.04714401981 | BH111: 0.6458875821 | BI111: -0.06524276906 | BJ111: 0.6351786409 | BK111: 0.1265181069 | BL111: 0.5864363984 | BM111: 0.09411401013 | BN111: 0.5982252839 | BO111: 0.5347041663 | BR111: 118 | BS111: 1 | BT111: High | BU111: Perception | BV111: Travel | BW111: Orbitz | BX111: 0.6434337911 | BY111: 0.6458875821 | BZ111: 0.6351786409 | CA111: 0.5864363984 | CB111: 0.5982252839 | CC111: -0.03947368421 | CD111: 0.3026315789 | CE111: 0.3552631579 | CF111: 0.3421052632 | CG111: 0.5347041663 | CN111: 0
P112: 0 | AK112: 2014-06-01 | AL112: 119 | AM112: 1 | AN112: High | AO112: Usability | AP112: Travel | AQ112: Orbitz | AR112: 3.584375 | AS112: 3.65625 | AT112: 3.9 | AU112: 3.53125 | AV112: 3.25 | AW112: 0 | AX112: 0.375 | AY112: 0.25 | AZ112: 0.375 | BE112: 0.3475711297 | BF112: 0.3117145068 | BG112: 0.2954642129 | BH112: 0.3305499213 | BI112: 0.0953101798 | BJ112: 0.4575664168 | BK112: 0.3844116989 | BL112: 0.3911393576 | BM112: 0.5596157879 | BN112: 0.1323783445 | BO112: 0.5755522213 | BR112: 119 | BS112: 1 | BT112: High | BU112: Usability | BV112: Travel | BW112: Orbitz | BX112: 0.3117145068 | BY112: 0.3305499213 | BZ112: 0.4575664168 | CA112: 0.3911393576 | CB112: 0.1323783445 | CC112: 0 | CD112: 0.375 | CE112: 0.25 | CF112: 0.375 | CG112: 0.5755522213 | CN112: 0
P113: 0 | AK113: 2016-10-27 | AL113: 122 | AM113: 1 | AN113: High | AO113: Perception | AP113: Retail | AQ113: Overstock.com | AR113: 4.079301075 | AS113: 4.198924731 | AT113: 4.086021505 | AU113: 4.02688172 | AV113: 4.005376344 | AW113: 0.08602150538 | AX113: 0.3655913978 | AY113: 0.3548387097 | AZ113: 0.2795698925 | BE113: -0.08262219657 | BF113: 0.7499744495 | BG113: -0.2218003678 | BH113: 0.7848009678 | BI113: -0.08994823666 | BJ113: 0.6609946282 | BK113: -0.02724964245 | BL113: 0.6961546643 | BM113: -0.005390848635 | BN113: 0.7055107981 | BO113: 0.6612649525 | BR113: 122 | BS113: 1 | BT113: High | BU113: Perception | BV113: Retail | BW113: Overstock.com | BX113: 0.7499744495 | BY113: 0.7848009678 | BZ113: 0.6609946282 | CA113: 0.6961546643 | CB113: 0.7055107981 | CC113: 0.08602150538 | CD113: 0.3655913978 | CE113: 0.3548387097 | CF113: 0.2795698925 | CG113: 0.6612649525 | CN113: 0
P114: 0 | AK114: 2012-02-01 | AL114: 123 | AM114: 1 | AN114: High | AO114: Usability | AP114: Retail | AQ114: Payless Shoes | AR114: 3.79062375 | AS114: 4.083325 | AT114: 4.18334 | AU114: 2.979165 | AV114: 3.916665 | AW114: -0.4166666667 | AX114: 0.1666666667 | AY114: 0.25 | AZ114: 0.5833333333 | BE114: 0.1901047308 | BF114: 0.4743196922 | BG114: -0.08700228612 | BH114: 0.6803870998 | BI114: -0.2025324274 | BJ114: 0.7679924724 | BK114: 0.7035107923 | BL114: 0.1871347479 | BM114: 0.08004424613 | BN114: 0.6140850667 | BO114: 0.1837395664 | BR114: 123 | BS114: 1 | BT114: High | BU114: Usability | BV114: Retail | BW114: Payless Shoes | BX114: 0.4743196922 | BY114: 0.6803870998 | BZ114: 0.7679924724 | CA114: 0.1871347479 | CB114: 0.6140850667 | CC114: -0.4166666667 | CD114: 0.1666666667 | CE114: 0.25 | CF114: 0.5833333333 | CG114: 0.1837395664 | CN114: 0
P115: 0 | AK115: 2011-02-01 | AL115: 124 | AM115: 1 | AN115: High | AO115: Perception | AP115: Financial | AQ115: PayPal | AR115: 4.3764 | AS115: 4.2757 | AT115: 4.4542 | AU115: 4.542055 | AV115: 4.233645 | AW115: 0.5514018692 | AX115: 0.6635514019 | AY115: 0.2242990654 | AZ115: 0.1121495327 | BE115: -0.4722461418 | BF115: 0.9581769544 | BG115: -0.3225496078 | BH115: 0.8479025036 | BI115: -0.6055026707 | BJ115: 0.9690591206 | BK115: -0.7810061894 | BL115: 0.9749649719 | BM115: -0.2661097701 | BN115: 0.9039265219 | BO115: 0.9490057319 | BR115: 124 | BS115: 1 | BT115: High | BU115: Perception | BV115: Financial | BW115: PayPal | BX115: 0.9581769544 | BY115: 0.8479025036 | BZ115: 0.9690591206 | CA115: 0.9749649719 | CB115: 0.9039265219 | CC115: 0.5514018692 | CD115: 0.6635514019 | CE115: 0.2242990654 | CF115: 0.1121495327 | CG115: 0.9490057319 | CN115: 0
P116: 0 | AK116: 2016-10-04 | AL116: 125 | AO116: Perception | AP116: Retail | AQ116: Pier 1 Imports | AR116: 4.051630435 | AS116: 4.054347826 | AT116: 4.032608696 | AU116: 4.076086957 | AV116: 4.043478261 | AW116: 0.347826087 | AX116: 0.5652173913 | AY116: 0.2173913043 | AZ116: 0.2173913043 | BE116: -0.05301101597 | BF116: 0.7238080931 | BG116: -0.05588045839 | BH116: 0.6535650176 | BI116: -0.03315220732 | BJ116: 0.6007248587 | BK116: -0.07913732056 | BL116: 0.7300330653 | BM116: -0.04445176257 | BN116: 0.7436921121 | BO116: 0.8647447467 | BR116: 125 | BU116: Perception | BV116: Retail | BW116: Pier 1 Imports | BX116: 0.7238080931 | BY116: 0.6535650176 | BZ116: 0.6007248587 | CA116: 0.7300330653 | CB116: 0.7436921121 | CC116: 0.347826087 | CD116: 0.5652173913 | CE116: 0.2173913043 | CF116: 0.2173913043 | CG116: 0.8647447467 | CN116: 0
P117: 0 | AK117: 2012-02-01 | AL117: 126 | AM117: 1 | AN117: High | AO117: Perception | AP117: Dating | AQ117: PlentyOfFish.com | AR117: 3.1375 | AS117: 3.45395 | AT117: 2.90526 | AU117: 2.980265 | AV117: 3.210525 | AW117: -0.4210526316 | AX117: 0.1578947368 | AY117: 0.2631578947 | AZ117: 0.5789473684 | BE117: =LN($AR$6-AR117) -> 0.6219196713 | BF117: =1-NORMSDIST((BE117-$BE$7)/$BE$8) -> 0.1085615443 | BG117: =LN($AS$6-AS117) -> 0.4357032912 | BH117: =1-NORMSDIST((BG117-$BG$7)/$BG$8) -> 0.2203446143 | BI117: =LN($AT$6-AT117) -> 0.7394294407 | BJ117: =1-NORMSDIST((BI117-$BI$7)/$BI$8) -> 0.02739055673 | BK117: =LN($AU$6-AU117) -> 0.7029663147 | BL117: =1-NORMSDIST((BK117-$BK$7)/$BK$8) -> 0.1874156802 | BM117: 0.5819222807 | BN117: =1-NORMSDIST((BM117-$BM$7)/$BM$8) -> 0.1188849249 | BO117: 0.180700881 | BR117: 126 | BS117: 1 | BT117: High | BU117: Perception | BV117: Dating | BW117: PlentyOfFish.com | BX117: 0.1085615443 | BY117: 0.2203446143 | BZ117: 0.02739055673 | CA117: 0.1874156802 | CB117: 0.1188849249 | CC117: -0.4210526316 | CD117: 0.1578947368 | CE117: 0.2631578947 | CF117: 0.5789473684 | CG117: 0.180700881 | CN117: 0
P118: 0 | AK118: 2014-06-01 | AL118: 127 | AM118: 1 | AN118: High | AO118: Usability | AP118: Travel | AQ118: Priceline | AR118: 3.7106075 | AS118: 3.712125 | AT118: 3.99394 | AU118: 3.69697 | AV118: 3.439395 | AW118: 0 | AX118: 0.2424242424 | AY118: 0.5151515152 | AZ118: 0.2424242424 | BE118: 0.2541711772 | BF118: 0.4059509032 | BG118: 0.2529935733 | BH118: 0.3678102476 | BI118: 0.006041712046 | BJ118: 0.5575819524 | BK118: 0.2646923217 | BL118: 0.4813828172 | BM118: 0.4450735666 | BN118: 0.2178141796 | BO118: 0.5755522213 | BR118: 127 | BS118: 1 | BT118: High | BU118: Usability | BV118: Travel | BW118: Priceline | BX118: 0.4059509032 | BY118: 0.3678102476 | BZ118: 0.5575819524 | CA118: 0.4813828172 | CB118: 0.2178141796 | CC118: 0 | CD118: 0.2424242424 | CE118: 0.5151515152 | CF118: 0.2424242424 | CG118: 0.5755522213 | CN118: 0
P119: 0 | AK119: 2014-06-01 | AL119: 128 | AM119: 1 | AN119: High | AO119: Perception | AP119: Travel | AQ119: Priceline | AR119: 4.254088785 | AS119: 4.420560748 | AT119: 4.219626168 | AU119: 4.245327103 | AV119: 4.130841121 | AW119: 0.3831775701 | AX119: 0.4953271028 | AY119: 0.3925233645 | AZ119: 0.1121495327 | BE119: -0.2931487007 | BF119: 0.8933847722 | BG119: -0.5456944494 | BH119: 0.9402361163 | BI119: -0.2479822026 | BJ119: 0.8051750215 | BK119: -0.2814708724 | BL119: 0.8416025175 | BM119: -0.1402293413 | BN119: 0.8252113919 | BO119: 0.8838615565 | BR119: 128 | BS119: 1 | BT119: High | BU119: Perception | BV119: Travel | BW119: Priceline | BX119: 0.8933847722 | BY119: 0.9402361163 | BZ119: 0.8051750215 | CA119: 0.8416025175 | CB119: 0.8252113919 | CC119: 0.3831775701 | CD119: 0.4953271028 | CE119: 0.3925233645 | CF119: 0.1121495327 | CG119: 0.8838615565 | CN119: 0
P120: 0 | AK120: 2017-02-13 | AL120: 129 | AM120: 1 | AN120: High | AO120: Usability | AP120: Flowers | AQ120: Pro Flowers | AR120: 4.052083333 | AS120: 4.116666667 | AT120: 3.983333333 | AU120: 3.908333333 | AV120: 4.2 | AW120: 0 | AX120: 0.3 | AY120: 0.4 | AZ120: 0.3 | BE120: -0.05348868495 | BF120: 0.7242406235 | BG120: -0.1240526487 | BH120: 0.7111207112 | BI120: 0.01652930195 | BJ120: 0.5458983359 | BK120: 0.08770558042 | BL120: 0.615179578 | BM120: -0.2231435513 | BN120: 0.8806730513 | BO120: 0.5755522213 | BR120: 129 | BS120: 1 | BT120: High | BU120: Usability | BV120: Flowers | BW120: Pro Flowers | BX120: 0.7242406235 | BY120: 0.7111207112 | BZ120: 0.5458983359 | CA120: 0.615179578 | CB120: 0.8806730513 | CC120: 0 | CD120: 0.3 | CE120: 0.4 | CF120: 0.3 | CG120: 0.5755522213 | CN120: 0
P121: 0 | AK121: 2017-02-13 | AL121: 130 | AO121: Perception | AP121: Retail | AQ121: Pro Flowers | AR121: 3.964398734 | AS121: 4.1 | AT121: 4.025 | AU121: 3.778125 | AV121: 3.95625 | AW121: 0.025 | AX121: 0.275 | AY121: 0.475 | AZ121: 0.25 | BE121: 0.0349821912 | BF121: 0.6390107352 | BG121: -0.1053605157 | BH121: 0.6957884351 | BI121: -0.02531780798 | BJ121: 0.5921812753 | BK121: 0.2003865642 | BL121: 0.5305608012 | BM121: 0.04281999718 | BN121: 0.6550731473 | BO121: 0.6010368568 | BR121: 130 | BU121: Perception | BV121: Retail | BW121: Pro Flowers | BX121: 0.6390107352 | BY121: 0.6957884351 | BZ121: 0.5921812753 | CA121: 0.5305608012 | CB121: 0.6550731473 | CC121: 0.025 | CD121: 0.275 | CE121: 0.475 | CF121: 0.25 | CG121: 0.6010368568 | CN121: 0
P122: 0 | AK122: 2016-02-01 | AL122: 131 | AO122: Usability | AP122: Real Estate | AQ122: Realtor.com | AR122: 4.153409091 | AS122: 4.204545455 | AT122: 4.340909091 | AU122: 3.931818182 | AV122: 4.136363636 | AW122: 0.1363636364 | AX122: 0.3636363636 | AY122: 0.4090909091 | AZ122: 0.2272727273 | BE122: -0.1665376891 | BF122: 0.8164021705 | BG122: -0.2288415724 | BH122: 0.7896512592 | BI122: -0.4168938039 | BJ122: 0.9092188819 | BK122: 0.06595796779 | BL122: 0.6310233484 | BM122: -0.1466034742 | BN122: 0.8299801024 | BO122: 0.7080930375 | BR122: 131 | BU122: Usability | BV122: Real Estate | BW122: Realtor.com | BX122: 0.8164021705 | BY122: 0.7896512592 | BZ122: 0.9092188819 | CA122: 0.6310233484 | CB122: 0.8299801024 | CC122: 0.1363636364 | CD122: 0.3636363636 | CE122: 0.4090909091 | CF122: 0.2272727273 | CG122: 0.7080930375 | CN122: 0
P123: 0 | AK123: 2016-02-01 | AL123: 132 | AO123: Usability | AP123: Real Estate | AQ123: Redfin | AR123: 3.127906977 | AS123: 3.174418605 | AT123: 3.61627907 | AU123: 2.744186047 | AV123: 2.976744186 | AW123: -0.3023255814 | AX123: 0.2558139535 | AY123: 0.1860465116 | AZ123: 0.5581395349 | BE123: 0.6270570687 | BF123: 0.1059914381 | BG123: 0.6018985091 | BH123: 0.1219629069 | BI123: 0.3247761969 | BJ123: 0.2257806096 | BK123: 0.8135108628 | BL123: 0.1357692515 | BM123: 0.704708003 | BN123: 0.06173680128 | BO123: 0.2737157268 | BR123: 132 | BU123: Usability | BV123: Real Estate | BW123: Redfin | BX123: =BF123 -> 0.1059914381 | BY123: =BH123 -> 0.1219629069 | BZ123: =BJ123 -> 0.2257806096 | CA123: =BL123 -> 0.1357692515 | CB123: =BN123 -> 0.06173680128 | CC123: -0.3023255814 | CD123: 0.2558139535 | CE123: 0.1860465116 | CF123: 0.5581395349 | CG123: =BO123 -> 0.2737157268 | CN123: 0
P124: 0 | AK124: 2011-03-13 | AL124: 133 | AM124: 1 | AN124: High | AO124: Perception | AP124: Financial | AQ124: Scottrade | AR124: 4.07228625 | AS124: 4.02175 | AT124: 4.32174 | AU124: 4.03261 | AV124: 3.913045 | AW124: 0.04347826087 | AX124: 0.347826087 | AY124: 0.347826087 | AZ124: 0.3043478261 | BE124: -0.07503205283 | BF124: 0.7433949495 | BG124: -0.02199001789 | BH124: 0.6234590271 | BI124: -0.3882245837 | BJ124: 0.8953003348 | BK124: -0.03315355563 | BL124: 0.7001036376 | BM124: 0.08338020894 | BN124: 0.6103408137 | BO124: 0.6196066177 | BR124: 133 | BS124: 1 | BT124: High | BU124: Perception | BV124: Financial | BW124: Scottrade | BX124: =BF124 -> 0.7433949495 | BY124: =BH124 -> 0.6234590271 | BZ124: =BJ124 -> 0.8953003348 | CA124: =BL124 -> 0.7001036376 | CB124: =BN124 -> 0.6103408137 | CC124: 0.04347826087 | CD124: 0.347826087 | CE124: 0.347826087 | CF124: 0.3043478261 | CG124: =BO124 -> 0.6196066177 | CN124: 0
P125: 0 | AK125: 2012-04-15 | AL125: 134 | AM125: 1 | AN125: High | AO125: Perception | AP125: Retail | AQ125: Sears | AR125: 3.9234725 | AS125: 3.9817 | AT125: 4.07804 | AU125: 3.80488 | AV125: 3.82927 | AW125: -0.1219512195 | AX125: 0.3170731707 | AY125: 0.243902439 | AZ125: 0.4390243902 | BE125: 0.07374058325 | BF125: 0.5990226715 | BG125: 0.0181345702 | BH125: 0.5868331832 | BI125: -0.08125344031 | BJ125: 0.6519875075 | BK125: 0.1782465988 | BL125: 0.5474227459 | BM125: 0.1576274859 | BN125: 0.5249790578 | BO125: 0.4486772979 | BR125: 134 | BS125: 1 | BT125: High | BU125: Perception | BV125: Retail | BW125: Sears | BX125: =BF125 -> 0.5990226715 | BY125: =BH125 -> 0.5868331832 | BZ125: =BJ125 -> 0.6519875075 | CA125: =BL125 -> 0.5474227459 | CB125: =BN125 -> 0.5249790578 | CC125: -0.1219512195 | CD125: 0.3170731707 | CE125: 0.243902439 | CF125: 0.4390243902 | CG125: =BO125 -> 0.4486772979 | CN125: 0
P126: 0 | AK126: 2012-04-15 | AL126: 135 | AM126: 1 | AN126: High | AO126: Usability | AP126: Retail | AQ126: Sears | AR126: 3.35625 | AS126: 3.395825 | AT126: 3.88334 | AU126: 2.895835 | AV126: 3.25 | AW126: -0.5833333333 | AX126: 0 | AY126: 0.4166666667 | AZ126: 0.5833333333 | BE126: 0.4969802169 | BF126: 0.1851932147 | BG126: 0.4726096057 | BH126: 0.1952893443 | BI126: 0.110342087 | BJ126: 0.4408158208 | BK126: 0.7439187139 | BL126: 0.1670165401 | BM126: 0.5596157879 | BN126: 0.1323783445 | BO126: 0.09046473885 | BR126: 135 | BS126: 1 | BT126: High | BU126: Usability | BV126: Retail | BW126: Sears | BX126: =BF126 -> 0.1851932147 | BY126: =BH126 -> 0.1952893443 | BZ126: =BJ126 -> 0.4408158208 | CA126: =BL126 -> 0.1670165401 | CB126: =BN126 -> 0.1323783445 | CC126: -0.5833333333 | CD126: 0 | CE126: 0.4166666667 | CF126: 0.5833333333 | CG126: =BO126 -> 0.09046473885 | CN126: 0
P127: 0 | AK127: 2016-10-07 | AL127: 136 | AO127: Perception | AP127: Retail | AQ127: Shutterfly | AR127: 4.105113636 | AS127: 4.090909091 | AT127: 4.090909091 | AU127: 4.181818182 | AV127: 4.056818182 | AW127: 0.5681818182 | AX127: 0.6590909091 | AY127: 0.25 | AZ127: 0.09090909091 | BE127: -0.1110585368 | BF127: 0.7738073108 | BG127: -0.0953101798 | BH127: 0.6873975778 | BI127: -0.0953101798 | BJ127: 0.6665040443 | BK127: -0.2006706955 | BL127: 0.8012404557 | BM127: -0.05849620668 | BN127: 0.7567611555 | BO127: 0.9534488087 | BR127: 136 | BU127: Perception | BV127: Retail | BW127: Shutterfly | BX127: 0.7738073108 | BY127: 0.6873975778 | BZ127: 0.6665040443 | CA127: 0.8012404557 | CB127: 0.7567611555 | CC127: 0.5681818182 | CD127: 0.6590909091 | CE127: 0.25 | CF127: 0.09090909091 | CG127: 0.9534488087 | CN127: 0
P128: 0 | AK128: 2012-04-15 | AL128: 137 | AM128: 1 | AN128: Low | AO128: Usability | AP128: Retail | AQ128: SilkinaBox | AR128: 3.23124875 | AS128: 3.270825 | AT128: 3.38334 | AU128: 2.604165 | AV128: 3.666665 | AW128: -0.5833333333 | AX128: 0 | AY128: 0.4166666667 | AZ128: 0.5833333333 | BE128: 0.5702737891 | BF128: 0.1369108164 | BG128: 0.5476444162 | BH128: 0.1499741381 | BI128: 0.4803622926 | BJ128: 0.1168279727 | BK128: 0.8737318131 | BL128: 0.1121729032 | BM128: 0.2876833225 | BN128: 0.3750814037 | BO128: 0.09046473885 | BR128: 137 | BS128: 1 | BT128: Low | BU128: Usability | BV128: Retail | BW128: SilkinaBox | BX128: 0.1369108164 | BY128: 0.1499741381 | BZ128: 0.1168279727 | CA128: 0.1121729032 | CB128: 0.3750814037 | CC128: -0.5833333333 | CD128: 0 | CE128: 0.4166666667 | CF128: 0.5833333333 | CG128: 0.09046473885 | CN128: 0
P129: 0 | AK129: 2016-10-07 | AL129: 138 | AO129: Perception | AP129: Retail | AQ129: Snapfish | AR129: 4.08277027 | AS129: 4.013513514 | AT129: 3.986486486 | AU129: 4.168918919 | AV129: 4.162162162 | AW129: 0.3243243243 | AX129: 0.5135135135 | AY129: 0.2972972973 | AZ129: 0.1891891892 | BE129: -0.08639731495 | BF129: 0.7532132567 | BG129: -0.01360565206 | BH129: 0.6158851105 | BI129: 0.01342302033 | BJ129: 0.5493634718 | BK129: -0.1850279184 | BL129: 0.7927646659 | BM129: -0.1769307082 | BN129: 0.8515140394 | BO129: 0.8509018893 | BR129: 138 | BU129: Perception | BV129: Retail | BW129: Snapfish | BX129: 0.7532132567 | BY129: 0.6158851105 | BZ129: 0.5493634718 | CA129: 0.7927646659 | CB129: 0.8515140394 | CC129: 0.3243243243 | CD129: 0.5135135135 | CE129: 0.2972972973 | CF129: 0.1891891892 | CG129: 0.8509018893 | CN129: 0
P130: 0 | AK130: 2014-06-01 | AL130: 139 | AM130: 1 | AN130: High | AO130: Usability | AP130: Airlines | AQ130: Southwest | AR130: 3.5239275 | AS130: 3.578575 | AT130: 3.33142 | AU130: 3.67143 | AV130: 3.514285 | AW130: 0.02857142857 | AX130: 0.2857142857 | AY130: 0.4571428571 | AZ130: 0.2571428571 | BE130: 0.3893848442 | BF130: 0.272831778 | BG130: 0.3516598895 | BH130: 0.2837672414 | BI130: 0.5119729653 | BJ130: 0.1002691307 | BK130: 0.2841031758 | BL130: 0.466559731 | BM130: 0.3958961379 | BN130: 0.2625508719 | BO130: 0.6046452911 | BR130: 139 | BS130: 1 | BT130: High | BU130: Usability | BV130: Airlines | BW130: Southwest | BX130: 0.272831778 | BY130: 0.2837672414 | BZ130: 0.1002691307 | CA130: 0.466559731 | CB130: 0.2625508719 | CC130: 0.02857142857 | CD130: 0.2857142857 | CE130: 0.4571428571 | CF130: 0.2571428571 | CG130: 0.6046452911 | CN130: 0
P131: 0 | AK131: 2014-06-01 | AL131: 140 | AM131: 1 | AN131: High | AO131: Perception | AP131: Airlines | AQ131: Southwest Airlines | AR131: 4.303719008 | AS131: 4.280991736 | AT131: 4.367768595 | AU131: 4.454545455 | AV131: 4.111570248 | AW131: 0.4958677686 | AX131: 0.5785123967 | AY131: 0.3388429752 | AZ131: 0.0826446281 | BE131: -0.3620019764 | BF131: 0.9238217085 | BG131: -0.3298824269 | BH131: 0.8519588756 | BI131: -0.4584998048 | BJ131: 0.9269069843 | BK131: -0.6061358036 | BL131: 0.9478010984 | BM131: -0.118299698 | BN131: 0.8081647556 | BO131: 0.931859022 | BR131: 140 | BS131: 1 | BT131: High | BU131: Perception | BV131: Airlines | BW131: Southwest Airlines | BX131: 0.9238217085 | BY131: 0.8519588756 | BZ131: 0.9269069843 | CA131: 0.9478010984 | CB131: 0.8081647556 | CC131: 0.4958677686 | CD131: 0.5785123967 | CE131: 0.3388429752 | CF131: 0.0826446281 | CG131: 0.931859022 | CN131: 0
P132: 0 | AK132: 2012-04-15 | AL132: 141 | AM132: 1 | AN132: High | AO132: Usability | AP132: Wireless | AQ132: Sprint | AR132: 3.4031225 | AS132: 3.583325 | AT132: 3.55 | AU132: 2.9375 | AV132: 3.541665 | AW132: -0.25 | AX132: 0.25 | AY132: 0.25 | AZ132: 0.5 | BE132: =LN($AR$6-AR132) -> 0.46805016 | BF132: =1-NORMSDIST((BE132-$BE$7)/$BE$8) -> 0.2068563862 | BG132: =LN($AS$6-AS132) -> 0.3483125766 | BH132: =1-NORMSDIST((BG132-$BG$7)/$BG$8) -> 0.286463224 | BI132: =LN($AT$6-AT132) -> 0.3715635564 | BJ132: =1-NORMSDIST((BI132-$BI$7)/$BI$8) -> 0.1881908829 | BK132: =LN($AU$6-AU132) -> 0.7239188392 | BL132: =1-NORMSDIST((BK132-$BK$7)/$BK$8) -> 0.1767933304 | BM132: 0.377295374 | BN132: =1-NORMSDIST((BM132-$BM$7)/$BM$8) -> 0.2806207213 | BO132: 0.3211404447 | BR132: 141 | BS132: 1 | BT132: High | BU132: Usability | BV132: Wireless | BW132: Sprint | BX132: =BF132 -> 0.2068563862 | BY132: =BH132 -> 0.286463224 | BZ132: =BJ132 -> 0.1881908829 | CA132: =BL132 -> 0.1767933304 | CB132: =BN132 -> 0.2806207213 | CC132: -0.25 | CD132: 0.25 | CE132: 0.25 | CF132: 0.5 | CG132: =BO132 -> 0.3211404447 | CN132: 0
P133: 0 | AK133: 2012-04-15 | AL133: 142 | AM133: 1 | AN133: High | AO133: Perception | AP133: Wireless | AQ133: Sprint | AR133: 3.488016529 | AS133: 3.44214876 | AT133: 3.580165289 | AU133: 3.243801653 | AV133: 3.685950413 | AW133: -0.3548387097 | AX133: 0.2258064516 | AY133: 0.1935483871 | AZ133: 0.5806451613 | BE133: =LN($AR$6-AR133) -> 0.4134223459 | BF133: =1-NORMSDIST((BE133-$BE$7)/$BE$8) -> 0.2516236344 | BG133: =LN($AS$6-AS133) -> 0.4433074613 | BH133: =1-NORMSDIST((BG133-$BG$7)/$BG$8) -> 0.2150366327 | BI133: =LN($AT$6-AT133) -> 0.350540464 | BJ133: =1-NORMSDIST((BI133-$BI$7)/$BI$8) -> 0.2045793513 | BK133: =LN($AU$6-AU133) -> 0.5631514428 | BL133: =1-NORMSDIST((BK133-$BK$7)/$BK$8) -> 0.2678785857 | BM133: 0.2731136566 | BN133: =1-NORMSDIST((BM133-$BM$7)/$BM$8) -> 0.3913762418 | BO133: 0.2298908803 | BR133: 142 | BS133: 1 | BT133: High | BU133: Perception | BV133: Wireless | BW133: Sprint | BX133: =BF133 -> 0.2516236344 | BY133: =BH133 -> 0.2150366327 | BZ133: =BJ133 -> 0.2045793513 | CA133: =BL133 -> 0.2678785857 | CB133: =BN133 -> 0.3913762418 | CC133: -0.3548387097 | CD133: 0.2258064516 | CE133: 0.1935483871 | CF133: 0.5806451613 | CG133: =BO133 -> 0.2298908803 | CN133: 0
P134: 0 | AK134: 2016-10-27 | AL134: 143 | AM134: 1 | AN134: High | AO134: Perception | AP134: Retail | AQ134: Staples | AR134: 4.044078947 | AS134: 4.152631579 | AT134: 4.168421053 | AU134: 3.913157895 | AV134: 3.942105263 | AW134: 0.02105263158 | AX134: 0.3368421053 | AY134: 0.3473684211 | AZ134: 0.3157894737 | BE134: -0.04507995027 | BF134: 0.7165782334 | BG134: -0.1656197072 | BH134: 0.7438482393 | BI134: -0.1844290391 | BJ134: 0.7521486312 | BK134: 0.08327634024 | BL134: 0.6184230237 | BM134: 0.0562808359 | BN134: 0.6404312591 | BO134: 0.5970385292 | BR134: 143 | BS134: 1 | BT134: High | BU134: Perception | BV134: Retail | BW134: Staples | BX134: 0.7165782334 | BY134: 0.7438482393 | BZ134: 0.7521486312 | CA134: 0.6184230237 | CB134: 0.6404312591 | CC134: 0.02105263158 | CD134: 0.3368421053 | CE134: 0.3473684211 | CF134: 0.3157894737 | CG134: 0.5970385292 | CN134: 0
P135: 0 | AK135: 2012-02-01 | AL135: 144 | AM135: 1 | AN135: Low | AO135: Usability | AP135: Retail | AQ135: Tally Ho Uniforms | AR135: 2.53229 | AS135: 2.9375 | AT135: 3.06666 | AU135: 1.625 | AV135: 2.5 | AW135: -0.9166666667 | AX135: 0 | AY135: 0.08333333333 | AZ135: 0.9166666667 | BE135: 0.9032905951 | BF135: 0.02294216045 | BG135: 0.7239188392 | BH135: 0.07288286112 | BI135: 0.6592490772 | BJ135: 0.04505713653 | BK135: 1.216395324 | BL135: 0.03057478491 | BM135: 0.9162907319 | BN135: 0.01537402103 | BO135: 0.01350804702 | BR135: 144 | BS135: 1 | BT135: Low | BU135: Usability | BV135: Retail | BW135: Tally Ho Uniforms | BX135: 0.02294216045 | BY135: 0.07288286112 | BZ135: 0.04505713653 | CA135: 0.03057478491 | CB135: 0.01537402103 | CC135: -0.9166666667 | CD135: 0 | CE135: 0.08333333333 | CF135: 0.9166666667 | CG135: 0.01350804702 | CN135: 0
P136: 0 | AK136: 2016-10-27 | AL136: 145 | AM136: 1 | AN136: High | AO136: Perception | AP136: Retail | AQ136: Target | AR136: 4.229605263 | AS136: 4.310526316 | AT136: 4.363157895 | AU136: 4.076315789 | AV136: 4.168421053 | AW136: 0.06315789474 | AX136: 0.3473684211 | AY136: 0.3684210526 | AZ136: 0.2842105263 | BE136: -0.2608522502 | BF136: 0.8764127453 | BG136: -0.371826749 | BH136: 0.873762809 | BI136: -0.4512335266 | BJ136: 0.9240241684 | BK136: -0.07938502925 | BL136: 0.7301901555 | BM136: -0.1844290391 | BN136: 0.8565439274 | BO136: 0.63908405 | BR136: 145 | BS136: 1 | BT136: High | BU136: Perception | BV136: Retail | BW136: Target | BX136: 0.8764127453 | BY136: 0.873762809 | BZ136: 0.9240241684 | CA136: 0.7301901555 | CB136: 0.8565439274 | CC136: 0.06315789474 | CD136: 0.3473684211 | CE136: 0.3684210526 | CF136: 0.2842105263 | CG136: 0.63908405 | CN136: 0
P137: 0 | AK137: 2016-10-27 | AL137: 146 | AM137: 1 | AN137: High | AO137: Usability | AP137: Retail | AQ137: Target | AR137: 3.69791875 | AS137: 3.854175 | AT137: 4 | AU137: 3.3125 | AV137: 3.625 | AW137: -0.4166666667 | AX137: 0.08333333333 | AY137: 0.4166666667 | AZ137: 0.5 | BE137: 0.2639639458 | BF137: 0.3956964931 | BG137: 0.1361249016 | BH137: 0.4758960614 | BI137: 0 | BJ137: 0.5642906703 | BK137: 0.5232481438 | BL137: 0.2936709683 | BM137: 0.3184537311 | BN137: 0.3414218972 | BO137: 0.1837395664 | BR137: 146 | BS137: 1 | BT137: High | BU137: Usability | BV137: Retail | BW137: Target | BX137: 0.3956964931 | BY137: 0.4758960614 | BZ137: 0.5642906703 | CA137: 0.2936709683 | CB137: 0.3414218972 | CC137: -0.4166666667 | CD137: 0.08333333333 | CE137: 0.4166666667 | CF137: 0.5 | CG137: 0.1837395664 | CN137: 0
P138: 0 | AK138: 2012-02-01 | AL138: 148 | AM138: 1 | AN138: High | AO138: Usability | AP138: Financial | AQ138: TD Ameritrade | AR138: 2.29875 | AS138: 1.825 | AT138: 2.82 | AU138: 1.65 | AV138: 2.9 | AW138: -0.9666666667 | AX138: 0 | AY138: 0.03333333333 | AZ138: 0.9666666667 | BE138: 0.9937146288 | BF138: 0.01249953384 | BG138: 1.155307632 | BH138: 0.006608506763 | BI138: 0.7793248768 | BJ138: 0.0210279636 | BK138: 1.208960346 | BL138: 0.03157390883 | BM138: 0.7419373447 | BN138: 0.04952852382 | BO138: 0.009582826626 | BR138: 148 | BS138: 1 | BT138: High | BU138: Usability | BV138: Financial | BW138: TD Ameritrade | BX138: 0.01249953384 | BY138: 0.006608506763 | BZ138: 0.0210279636 | CA138: 0.03157390883 | CB138: 0.04952852382 | CC138: -0.9666666667 | CD138: 0 | CE138: 0.03333333333 | CF138: 0.9666666667 | CG138: 0.009582826626 | CN138: 0
P139: 0 | AK139: 2017-02-13 | AL139: 149 | AO139: Perception | AP139: Retail | AQ139: Teleflora | AR139: 4.004746835 | AS139: 4.012658228 | AT139: 4.044303797 | AU139: 3.85443038 | AV139: 4.107594937 | AW139: 0.164556962 | AX139: 0.3670886076 | AY139: 0.4303797468 | AZ139: 0.2025316456 | BE139: =LN($AR$6-AR139) -> -0.004758137446 | BF139: =1-NORMSDIST((BE139-$BE$7)/$BE$8) -> 0.6784874759 | BG139: =LN($AS$6-AS139) -> -0.01273902578 | BH139: =1-NORMSDIST((BG139-$BG$7)/$BG$8) -> 0.6150996688 | BI139: =LN($AT$6-AT139) -> -0.04531519621 | BJ139: =1-NORMSDIST((BI139-$BI$7)/$BI$8) -> 0.6138924023 | BK139: =LN($AU$6-AU139) -> 0.1359019982 | BL139: =1-NORMSDIST((BK139-$BK$7)/$BK$8) -> 0.5794104979 | BM139: =LN($AV$6-AV139) -> -0.1138351426 | BN139: =1-NORMSDIST((BM139-$BM$7)/$BM$8) -> 0.8045735265 | BO139: =NORMSDIST((AW139-$AW$7)/$AW$8) -> 0.7329282255 | BR139: =IF(AL139<>"",AL139,"") -> 149 | BS139: =IF(AM139<>"",AM139,"") ->  | BT139: =IF(AN139<>"",AN139,"") ->  | BU139: =IF(AO139<>"",AO139,"") -> Perception | BV139: =IF(AP139<>"",AP139,"") -> Retail | BW139: =IF(AQ139<>"",AQ139,"") -> Teleflora | BX139: =BF139 -> 0.6784874759 | BY139: =BH139 -> 0.6150996688 | BZ139: =BJ139 -> 0.6138924023 | CA139: =BL139 -> 0.5794104979 | CB139: =BN139 -> 0.8045735265 | CC139: 0.164556962 | CD139: =AX139 -> 0.3670886076 | CE139: 0.4303797468 | CF139: 0.2025316456 | CG139: 0.7329282255 | CN139: 0
P140: 0 | AK140: 2017-02-13 | AL140: 150 | AO140: Usability | AP140: Retail | AQ140: Teleflora | AR140: 4.058035714 | AS140: 4.053571429 | AT140: 4.071428571 | AU140: 3.875 | AV140: 4.232142857 | AW140: -0.03571428571 | AX140: 0.25 | AY140: 0.4642857143 | AZ140: 0.2857142857 | BE140: -0.05978791838 | BF140: 0.7299132518 | BG140: -0.05505977718 | BH140: 0.6528464368 | BI140: -0.07410797215 | BJ140: 0.6445203494 | BK140: 0.1177830357 | BL140: 0.5929517861 | BM140: -0.264151575 | BN140: 0.9029450223 | BO140: 0.5386172171 | BR140: 150 | BU140: Usability | BV140: Retail | BW140: Teleflora | BX140: 0.7299132518 | BY140: 0.6528464368 | BZ140: 0.6445203494 | CA140: 0.5929517861 | CB140: 0.9029450223 | CC140: =AW140 -> -0.03571428571 | CD140: 0.25 | CE140: 0.4642857143 | CF140: 0.2857142857 | CG140: 0.5386172171 | CN140: 0
P141: 0 | AK141: 2012-04-15 | AL141: 152 | AM141: 1 | AN141: High | AO141: Usability | AP141: Wireless | AQ141: T-Mobile | AR141: 3.2312475 | AS141: 3.083325 | AT141: 3.8 | AU141: 2.666665 | AV141: 3.375 | AW141: -0.3333333333 | AX141: 0.1666666667 | AY141: 0.3333333333 | AZ141: 0.5 | BE141: 0.5702744958 | BF141: 0.1369103968 | BG141: 0.650591914 | BH141: 0.1001448433 | BI141: 0.1823215568 | BJ141: 0.3625624262 | BK141: 0.8472985747 | BL141: 0.1221422835 | BM141: 0.4855078158 | BN141: 0.1845731304 | BO141: 0.2473480539 | BR141: 152 | BS141: 1 | BT141: High | BU141: Usability | BV141: Wireless | BW141: T-Mobile | BX141: 0.1369103968 | BY141: 0.1001448433 | BZ141: 0.3625624262 | CA141: 0.1221422835 | CB141: 0.1845731304 | CC141: -0.3333333333 | CD141: 0.1666666667 | CE141: 0.3333333333 | CF141: 0.5 | CG141: 0.2473480539 | CN141: 0
P142: 0 | AK142: 2012-04-15 | AL142: 153 | AM142: 1 | AN142: High | AO142: Perception | AP142: Wireless | AQ142: T-Mobile | AR142: 3.373305085 | AS142: 3.294491525 | AT142: 3.484745763 | AU142: 3.184322034 | AV142: 3.529661017 | AW142: -0.5714285714 | AX142: 0.1071428571 | AY142: 0.2142857143 | AZ142: 0.6785714286 | BE142: 0.486550297 | BF142: 0.1928354764 | BG142: 0.5338632918 | BH142: 0.1577238432 | BI142: 0.4155832383 | BJ142: 0.1565938399 | BK142: 0.596458933 | BL142: 0.2472597846 | BM142: 0.3854929749 | BN142: 0.2725833635 | BO142: 0.09565624385 | BR142: 153 | BS142: 1 | BT142: High | BU142: Perception | BV142: Wireless | BW142: T-Mobile | BX142: 0.1928354764 | BY142: 0.1577238432 | BZ142: 0.1565938399 | CA142: 0.2472597846 | CB142: 0.2725833635 | CC142: -0.5714285714 | CD142: 0.1071428571 | CE142: 0.2142857143 | CF142: 0.6785714286 | CG142: 0.09565624385 | CN142: 0
P143: 0 | AK143: 2016-10-04 | AL143: 154 | AO143: Perception | AP143: Retail | AQ143: ToysRus | AR143: 4.088315217 | AS143: 4 | AT143: 4.315217391 | AU143: 4.135869565 | AV143: 3.902173913 | AW143: 0.3260869565 | AX143: 0.5434782609 | AY143: 0.2391304348 | AZ143: 0.2173913043 | BE143: -0.09246098176 | BF143: 0.7583681164 | BG143: 0 | BH143: 0.6035010977 | BI143: -0.3786538507 | BJ143: 0.8903261818 | BK143: -0.1460315554 | BL143: 0.7707265286 | BM143: 0.09333193979 | BN143: 0.5991113778 | BO143: 0.8519718034 | BR143: 154 | BU143: Perception | BV143: Retail | BW143: ToysRus | BX143: 0.7583681164 | BY143: 0.6035010977 | BZ143: 0.8903261818 | CA143: 0.7707265286 | CB143: 0.5991113778 | CC143: 0.3260869565 | CD143: 0.5434782609 | CE143: 0.2391304348 | CF143: 0.2173913043 | CG143: 0.8519718034 | CN143: 0
P144: 0 | AK144: 2014-06-01 | AL144: 155 | AM144: 1 | AN144: High | AO144: Perception | AP144: Travel | AQ144: Travelocity | AR144: 3.95317625 | AS144: 3.9661 | AT144: 4.10508 | AU144: 3.95339 | AV144: 3.788135 | AW144: 0 | AX144: 0.3050847458 | AY144: 0.3898305085 | AZ144: 0.3050847458 | BE144: 0.04576057961 | BF144: 0.6280211425 | BG144: 0.03333805961 | BH144: 0.5727362878 | BI144: -0.1110209502 | BJ144: 0.682437761 | BK144: 0.04555636966 | BL144: 0.6456873429 | BM144: 0.1921604953 | BN144: 0.4846319212 | BO144: 0.5755522213 | BR144: 155 | BS144: 1 | BT144: High | BU144: Perception | BV144: Travel | BW144: Travelocity | BX144: 0.6280211425 | BY144: 0.5727362878 | BZ144: 0.682437761 | CA144: 0.6456873429 | CB144: 0.4846319212 | CC144: 0 | CD144: 0.3050847458 | CE144: 0.3898305085 | CF144: 0.3050847458 | CG144: 0.5755522213 | CN144: =COUNT(B149:I149) -> 0 | CO144: =IF($CN144=8,SUM($B149:$I149),"") -> 
P145: 0 | AK145: 2014-06-01 | AL145: 156 | AM145: 1 | AN145: High | AO145: Usability | AP145: Travel | AQ145: Travelocity | AR145: 3.8016675 | AS145: 3.95 | AT145: 3.97334 | AU145: 3.816665 | AV145: 3.466665 | AW145: 0.2 | AX145: 0.5333333333 | AY145: 0.1333333333 | AZ145: 0.3333333333 | BE145: 0.1809310071 | BF145: 0.4842205112 | BG145: 0.04879016417 | BH145: 0.5583131641 | BI145: 0.02631081479 | BJ145: 0.5349651936 | BK145: 0.1683367233 | BL145: 0.554944382 | BM145: 0.4274451018 | BN145: 0.2333242013 | BO145: 0.7625594325 | BR145: 156 | BS145: 1 | BT145: High | BU145: Usability | BV145: Travel | BW145: Travelocity | BX145: 0.4842205112 | BY145: 0.5583131641 | BZ145: 0.5349651936 | CA145: 0.554944382 | CB145: 0.2333242013 | CC145: 0.2 | CD145: 0.5333333333 | CE145: 0.1333333333 | CF145: 0.3333333333 | CG145: 0.7625594325 | CN145: 0 | CP145: =IF(CN145=8,CO145/CN145,"") -> 
P146: 0 | AK146: 2014-06-01 | AL146: 157 | AM146: 1 | AN146: High | AO146: Perception | AP146: Travel | AQ146: Travelocity | AR146: 4.199754902 | AS146: 4.343137255 | AT146: 4.151960784 | AU146: 4.269607843 | AV146: 4.034313725 | AW146: 0.4411764706 | AX146: 0.5392156863 | AY146: 0.362745098 | AZ146: 0.09803921569 | BE146: -0.2228372257 | BF146: 0.8541170844 | BG146: -0.4202801939 | BH146: 0.8960367027 | BI146: -0.1648283993 | BJ146: 0.7343639037 | BK146: -0.3141736879 | BL146: 0.8562908728 | BM146: -0.03491626511 | BN146: 0.7346146572 | BO146: 0.910926211 | BR146: 157 | BS146: =IF(AM146<>"",AM146,"") -> 1 | BT146: High | BU146: =IF(AO146<>"",AO146,"") -> Perception | BV146: Travel | BW146: Travelocity | BX146: 0.8541170844 | BY146: 0.8960367027 | BZ146: 0.7343639037 | CA146: 0.8562908728 | CB146: 0.7346146572 | CC146: 0.4411764706 | CD146: 0.5392156863 | CE146: 0.362745098 | CF146: 0.09803921569 | CG146: 0.910926211 | CN146: 0
P147: 0 | AK147: 2011-02-01 | AL147: 158 | AM147: 1 | AN147: High | AO147: Perception | AP147: Travel | AQ147: Trip Advisor | AR147: 4.361415 | AS147: 4.5 | AT147: 4.17392 | AU147: 4.641305 | AV147: 4.130435 | AW147: 0.652173913 | AX147: 0.7391304348 | AY147: 0.1739130435 | AZ147: 0.08695652174 | BE147: -0.4485004879 | BF147: 0.9521018345 | BG147: -0.6931471806 | BH147: 0.9717075515 | BI147: -0.1910636579 | BJ147: 0.7580213234 | BK147: -1.025282834 | BL147: 0.9924084247 | BM147: -0.1397621924 | BN147: 0.8248585936 | BO147: 0.9712392897 | BR147: 158 | BS147: 1 | BT147: High | BU147: Perception | BV147: Travel | BW147: Trip Advisor | BX147: 0.9521018345 | BY147: 0.9717075515 | BZ147: 0.7580213234 | CA147: 0.9924084247 | CB147: 0.8248585936 | CC147: 0.652173913 | CD147: 0.7391304348 | CE147: 0.1739130435 | CF147: 0.08695652174 | CG147: 0.9712392897 | CN147: 0
P148: 0 | AK148: 2016-02-01 | AL148: 159 | AO148: Usability | AP148: Real Estate | AQ148: Trulia | AR148: 3.994047619 | AS148: 4.154761905 | AT148: 4.119047619 | AU148: 3.654761905 | AV148: 4.047619048 | AW148: -0.04761904762 | AX148: 0.3571428571 | AY148: 0.2380952381 | AZ148: 0.4047619048 | BE148: 0.00593473552 | BF148: 0.6680395348 | BG148: -0.1681369218 | BH148: 0.7457662136 | BI148: -0.1267517056 | BJ148: 0.6980600994 | BK148: 0.2965710199 | BL148: 0.4570617817 | BM148: -0.04879016417 | BN148: 0.7477678927 | BO148: 0.5262148711 | BR148: 159 | BU148: Usability | BV148: Real Estate | BW148: Trulia | BX148: 0.6680395348 | BY148: 0.7457662136 | BZ148: 0.6980600994 | CA148: 0.4570617817 | CB148: 0.7477678927 | CC148: -0.04761904762 | CD148: 0.3571428571 | CE148: 0.2380952381 | CF148: 0.4047619048 | CG148: 0.5262148711 | CN148: 0
P149: 0 | AK149: 2012-04-15 | AL149: 160 | AM149: 1 | AN149: High | AO149: Perception | AP149: Social Networking | AQ149: Twitter | AR149: 3.65894625 | AS149: 3.82715 | AT149: 3.14814 | AU149: 3.87037 | AV149: 3.790125 | AW149: -0.06172839506 | AX149: 0.3086419753 | AY149: 0.3209876543 | AZ149: 0.3703703704 | BE149: 0.2934556855 | BF149: 0.3652742016 | BG149: 0.1594366843 | BH149: 0.4539253754 | BI149: 0.6161905394 | BJ149: 0.05779820176 | BK149: 0.1218901455 | BL149: 0.5898914267 | BM149: 0.1905170485 | BN149: 0.4865517697 | BO149: 0.5114837845 | BR149: 160 | BS149: 1 | BT149: High | BU149: Perception | BV149: Social Networking | BW149: =IF(AQ149<>"",AQ149,"") -> Twitter | BX149: 0.3652742016 | BY149: 0.4539253754 | BZ149: 0.05779820176 | CA149: 0.5898914267 | CB149: 0.4865517697 | CC149: -0.06172839506 | CD149: 0.3086419753 | CE149: 0.3209876543 | CF149: 0.3703703704 | CG149: 0.5114837845 | CN149: 0
P150: =IF(COUNT(B150:K150)<8,0,1) -> 0 | R150: =IF(COUNT(B150:I150)=8,AVERAGE(B150:E150,G150:I150,0.5*F150),"") ->  | S150: =IF(COUNT(B150:C150)=2,AVERAGE(B150:C150),"") ->  | T150: =IF(COUNT(D150:E150)=2,AVERAGE(D150:E150),"") ->  | U150: =IF(COUNT(G150,F150)=2,AVERAGE(G150,0.5*F150),"") ->  | V150: =IF(COUNT(H150:I150)=2,AVERAGE(H150:I150),"") ->  | AK150: 2015-07-15 | AL150: 161 | AO150: Usability | AP150: Informational | AQ150: UL Workplace | AR150: 3.28 | AS150: 3.34 | AT150: 3.78 | AU150: 2.54 | AV150: 3.46 | AW150: -0.68 | AX150: 0.04 | AY150: 0.24 | AZ150: 0.72 | BE150: 0.5423242908 | BF150: 0.1541992739 | BG150: 0.5068176024 | BH150: 0.1736840076 | BI150: 0.1988508587 | BJ150: 0.3452525953 | BK150: 0.9001613499 | BL150: 0.1028003852 | BM150: 0.4317824164 | BN150: 0.2294522452 | BO150: 0.05578445227 | BR150: 161 | BT150: =IF(AN150<>"",AN150,"") ->  | BU150: Usability | BV150: Informational | BW150: UL Workplace | BX150: 0.1541992739 | BY150: 0.1736840076 | BZ150: 0.3452525953 | CA150: 0.1028003852 | CB150: 0.2294522452 | CC150: -0.68 | CD150: 0.04 | CE150: 0.24 | CF150: 0.72 | CG150: 0.05578445227 | CN150: 0
P151: 0 | AK151: 2014-06-01 | AL151: 162 | AM151: 1 | AN151: High | AO151: Usability | AP151: Airlines | AQ151: United Airlines | AR151: 3.82736625 | AS151: 3.871625 | AT151: 4.05946 | AU151: 3.60811 | AV151: 3.77027 | AW151: -0.02702702703 | AX151: 0.2972972973 | AY151: 0.3783783784 | AZ151: 0.3243243243 | BE151: 0.1592522873 | BF151: 0.5076451112 | BG151: 0.1207785446 | BH151: 0.4904038822 | BI151: -0.06130110058 | BJ151: 0.6309988024 | BK151: 0.3306625358 | BL151: 0.4312316579 | BM151: 0.2067946331 | BN151: 0.4675574171 | BO151: 0.5476446219 | BR151: 162 | BS151: 1 | BT151: High | BU151: Usability | BV151: Airlines | BW151: United Airlines | BX151: 0.5076451112 | BY151: 0.4904038822 | BZ151: 0.6309988024 | CA151: 0.4312316579 | CB151: 0.4675574171 | CC151: -0.02702702703 | CD151: 0.2972972973 | CE151: 0.3783783784 | CF151: 0.3243243243 | CG151: 0.5476446219 | CN151: 0
P152: 0 | AK152: 2014-06-01 | AL152: 163 | AM152: 1 | AN152: High | AO152: Perception | AP152: Airlines | AQ152: United Airlines | AR152: 3.96509009 | AS152: 4.094594595 | AT152: 4.148648649 | AU152: 4.018018018 | AV152: 3.599099099 | AW152: 0.06306306306 | AX152: 0.3693693694 | AY152: 0.3243243243 | AZ152: 0.3063063063 | BE152: 0.03431437936 | BF152: 0.6396879801 | BG152: -0.09937247381 | BH152: 0.6908011576 | BI152: -0.1609303668 | BJ152: 0.7307513979 | BK152: -0.01818231908 | BL152: 0.6900450585 | BM152: 0.3371155303 | BN152: 0.3215865444 | BO152: 0.638991006 | BR152: 163 | BS152: 1 | BT152: High | BU152: Perception | BV152: Airlines | BW152: United Airlines | BX152: 0.6396879801 | BY152: 0.6908011576 | BZ152: 0.7307513979 | CA152: 0.6900450585 | CB152: 0.3215865444 | CC152: 0.06306306306 | CD152: 0.3693693694 | CE152: 0.3243243243 | CF152: 0.3063063063 | CG152: 0.638991006 | CN152: 0
P153: 0 | AK153: 2013-02-25 | AL153: 165 | AM153: 1 | AN153: High | AO153: Perception | AP153: Healthcare | AQ153: United Healthcare | AR153: 3.69609375 | AS153: 3.6 | AT153: 3.78125 | AU153: 3.740625 | AV153: 3.6625 | AW153: -0.14 | AX153: 0.24 | AY153: 0.39 | AZ153: 0.37 | BE153: 0.2653645667 | BF153: 0.3942355501 | BG153: 0.3364722366 | BH153: 0.2960958843 | BI153: 0.1978257433 | BJ153: 0.3463171955 | BK153: 0.2306155662 | BL153: 0.5074553575 | BM153: 0.2908021998 | BN153: 0.3716209096 | BO153: 0.4300312739 | BR153: 165 | BS153: 1 | BT153: High | BU153: Perception | BV153: Healthcare | BW153: United Healthcare | BX153: 0.3942355501 | BY153: 0.2960958843 | BZ153: 0.3463171955 | CA153: 0.5074553575 | CB153: 0.3716209096 | CC153: -0.14 | CD153: 0.24 | CE153: 0.39 | CF153: 0.37 | CG153: 0.4300312739 | CN153: 0
P154: 0 | AK154: 2012-02-01 | AL154: 166 | AM154: 1 | AN154: Low | AO154: Usability | AP154: Education | AQ154: Univ. of Alberta | AR154: 3.0025 | AS154: 2.991666667 | AT154: 3.626666667 | AU154: 2.275 | AV154: 3.116666667 | AW154: -0.8333333333 | AX154: 0 | AY154: 0.1666666667 | AZ154: 0.8333333333 | BE154: 0.6918963987 | BF154: 0.07725463034 | BG154: 0.6973051907 | BH154: 0.08203292434 | BI154: 0.3172408747 | BJ154: 0.2322085234 | BK154: 1.002468428 | BL154: 0.07186799039 | BM154: 0.6330432565 | BN154: 0.09169821889 | BO154: 0.02313408779 | BR154: 166 | BS154: 1 | BT154: Low | BU154: Usability | BV154: Education | BW154: Univ. of Alberta | BX154: 0.07725463034 | BY154: 0.08203292434 | BZ154: 0.2322085234 | CA154: 0.07186799039 | CB154: =BN154 -> 0.09169821889 | CC154: -0.8333333333 | CD154: 0 | CE154: 0.1666666667 | CF154: 0.8333333333 | CG154: 0.02313408779 | CN154: 0
P155: 0 | AK155: 2012-02-01 | AL155: 167 | AM155: 1 | AN155: Low | AO155: Usability | AP155: Education | AQ155: Univ. of Calgery | AR155: 3.16875 | AS155: 3.4 | AT155: 3.7 | AU155: 2.575 | AV155: 3 | AW155: -0.7333333333 | AX155: 0.06666666667 | AY155: 0.1333333333 | AZ155: 0.8 | BE155: 0.6049987938 | BF155: 0.1173428321 | BG155: 0.4700036292 | BH155: 0.1969996012 | BI155: 0.2623642645 | BJ155: 0.2819551267 | BK155: 0.8858315244 | BL155: 0.1078089002 | BM155: 0.6931471806 | BN155: 0.06597181616 | BO155: 0.04173278564 | BR155: 167 | BS155: 1 | BT155: Low | BU155: Usability | BV155: Education | BW155: Univ. of Calgery | BX155: 0.1173428321 | BY155: 0.1969996012 | BZ155: 0.2819551267 | CA155: 0.1078089002 | CB155: 0.06597181616 | CC155: -0.7333333333 | CD155: 0.06666666667 | CE155: 0.1333333333 | CF155: 0.8 | CG155: 0.04173278564 | CN155: 0
P156: 0 | AK156: 2012-04-15 | AL156: 168 | AM156: 1 | AN156: High | AO156: Usability | AP156: Financial | AQ156: US Bank | AR156: 3.10520625 | AS156: 3.458325 | AT156: 3.4 | AU156: 2.354165 | AV156: 3.208335 | AW156: -0.5833333333 | AX156: 0.1666666667 | AY156: 0.08333333333 | AZ156: 0.75 | BE156: =LN($AR$6-AR156) -> 0.6391099936 | BF156: =1-NORMSDIST((BE156-$BE$7)/$BE$8) -> 0.1001348981 | BG156: =LN($AS$6-AS156) -> 0.4328694877 | BH156: =1-NORMSDIST((BG156-$BG$7)/$BG$8) -> 0.2223417595 | BI156: =LN($AT$6-AT156) -> 0.4700036292 | BJ156: =1-NORMSDIST((BI156-$BI$7)/$BI$8) -> 0.1226541427 | BK156: =LN($AU$6-AU156) -> 0.9729867055 | BL156: =1-NORMSDIST((BK156-$BK$7)/$BK$8) -> 0.07994198538 | BM156: 0.5831453551 | BN156: =1-NORMSDIST((BM156-$BM$7)/$BM$8) -> 0.118174242 | BO156: 0.09046473885 | BR156: 168 | BS156: 1 | BT156: High | BU156: Usability | BV156: Financial | BW156: US Bank | BX156: =BF156 -> 0.1001348981 | BY156: =BH156 -> 0.2223417595 | BZ156: =BJ156 -> 0.1226541427 | CA156: =BL156 -> 0.07994198538 | CB156: 0.118174242 | CC156: -0.5833333333 | CD156: 0.1666666667 | CE156: 0.08333333333 | CF156: 0.75 | CG156: =BO156 -> 0.09046473885 | CN156: 0
P157: 0 | AK157: 2012-04-15 | AL157: 169 | AM157: 1 | AN157: High | AO157: Perception | AP157: Governments | AQ157: USA.gov | AR157: 3.63143875 | AS157: 3.4394 | AT157: 3.89696 | AU157: 3.810605 | AV157: 3.37879 | AW157: -0.1212121212 | AX157: 0.3333333333 | AY157: 0.2121212121 | AZ157: 0.4545454545 | BE157: 0.3137600055 | BF157: 0.3447988442 | BG157: 0.4450703627 | BH157: 0.2138167512 | BI157: 0.09807000435 | BJ157: 0.4544844903 | BK157: 0.1734447745 | BL157: 0.5510696459 | BM157: 0.483172784 | BN157: 0.1864024193 | BO157: 0.4494435651 | BR157: 169 | BS157: 1 | BT157: High | BU157: Perception | BV157: Governments | BW157: USA.gov | BX157: 0.3447988442 | BY157: 0.2138167512 | BZ157: 0.4544844903 | CA157: 0.5510696459 | CB157: 0.1864024193 | CC157: -0.1212121212 | CD157: 0.3333333333 | CE157: 0.2121212121 | CF157: 0.4545454545 | CG157: =BO157 -> 0.4494435651 | CN157: 0
P158: 0 | AK158: 2012-02-01 | AL158: 170 | AM158: 1 | AN158: High | AO158: Usability | AP158: Financial | AQ158: Vanguard | AR158: 2.63708375 | AS158: 2.441675 | AT158: 3.10666 | AU158: 1.966665 | AV158: 3.033335 | AW158: -0.7666666667 | AX158: 0.06666666667 | AY158: 0.1 | AZ158: 0.8333333333 | BE158: 0.8598965553 | BF158: 0.03012905801 | BG158: 0.9393527475 | BH158: 0.02466999902 | BI158: 0.6383424652 | BJ158: 0.05092862029 | BK158: 1.109662674 | BL158: 0.0476917687 | BM158: 0.6763392148 | BN158: 0.07252615993 | BO158: 0.03451210633 | BR158: 170 | BS158: 1 | BT158: High | BU158: Usability | BV158: Financial | BW158: Vanguard | BX158: 0.03012905801 | BY158: 0.02466999902 | BZ158: 0.05092862029 | CA158: 0.0476917687 | CB158: 0.07252615993 | CC158: -0.7666666667 | CD158: 0.06666666667 | CE158: 0.1 | CF158: 0.8333333333 | CG158: 0.03451210633 | CN158: 0
P159: 0 | AK159: 2012-04-15 | AL159: 171 | AM159: 1 | AN159: High | AO159: Usability | AP159: Wireless | AQ159: Verizon | AR159: 2.64375 | AS159: 2.645825 | AT159: 3.03334 | AU159: 1.895835 | AV159: 3 | AW159: -0.8333333333 | AX159: 0.08333333333 | AY159: 0 | AZ159: 0.9166666667 | BE159: 0.8570713722 | BF159: 0.03065544446 | BG159: 0.8561903476 | BH159: 0.03849803255 | BI159: 0.6763366724 | BJ159: 0.04067386043 | BK159: 1.132744758 | BL159: 0.04345397941 | BM159: 0.6931471806 | BN159: 0.06597181616 | BO159: 0.02313408779 | BR159: 171 | BS159: 1 | BT159: High | BU159: Usability | BV159: Wireless | BW159: Verizon | BX159: 0.03065544446 | BY159: =BH159 -> 0.03849803255 | BZ159: 0.04067386043 | CA159: 0.04345397941 | CB159: 0.06597181616 | CC159: -0.8333333333 | CD159: 0.08333333333 | CE159: 0 | CF159: 0.9166666667 | CG159: 0.02313408779 | CN159: 0
P160: 0 | AK160: 2012-04-15 | AL160: 172 | AM160: 1 | AN160: High | AO160: Perception | AP160: Wireless | AQ160: Verizon | AR160: 3.495652174 | AS160: 3.420289855 | AT160: 3.598550725 | AU160: 3.358695652 | AV160: 3.605072464 | AW160: -0.1875 | AX160: 0.2083333333 | AY160: 0.3958333333 | AZ160: 0.3958333333 | BE160: 0.4083594661 | BF160: 0.2560170565 | BG160: 0.4572413776 | BH160: 0.2055053537 | BI160: 0.3375068979 | BJ160: 0.2151529118 | BK160: 0.4954912598 | BL160: 0.3122638234 | BM160: 0.3328424686 | BN160: 0.3260862047 | BO160: 0.3818017581 | BR160: 172 | BS160: 1 | BT160: High | BU160: Perception | BV160: Wireless | BW160: Verizon | BX160: 0.2560170565 | BY160: 0.2055053537 | BZ160: 0.2151529118 | CA160: 0.3122638234 | CB160: 0.3260862047 | CC160: -0.1875 | CD160: 0.2083333333 | CE160: 0.3958333333 | CF160: 0.3958333333 | CG160: 0.3818017581 | CN160: 0
P161: 0 | AK161: 2016-10-10 | AL161: 173 | AO161: Perception | AP161: Retail | AQ161: Vistaprint | AR161: 4.141666667 | AS161: 4.055555556 | AT161: 4.166666667 | AU161: 4.288888889 | AV161: 4.055555556 | AW161: 0.4666666667 | AX161: 0.6 | AY161: 0.2666666667 | AZ161: 0.1333333333 | BE161: -0.1527627546 | BF161: 0.8063219651 | BG161: -0.05715841384 | BH161: 0.6546828832 | BI161: -0.1823215568 | BJ161: 0.7502673772 | BK161: -0.340926587 | BL161: 0.8676014823 | BM161: -0.05715841384 | BN161: 0.7555319929 | BO161: 0.9212116725 | BR161: 173 | BU161: Perception | BV161: Retail | BW161: Vistaprint | BX161: 0.8063219651 | BY161: 0.6546828832 | BZ161: 0.7502673772 | CA161: 0.8676014823 | CB161: 0.7555319929 | CC161: 0.4666666667 | CD161: 0.6 | CE161: 0.2666666667 | CF161: 0.1333333333 | CG161: 0.9212116725 | CN161: 0
P162: 0 | AK162: 2016-12-29 | AL162: 174 | AO162: Usability | AP162: Entertainment | AQ162: Vudu | AR162: 4.125 | AS162: 4.326530612 | AT162: 4.255102041 | AU162: 3.857142857 | AV162: 4.06122449 | AW162: 0.1428571429 | AX162: 0.4693877551 | AY162: 0.2040816327 | AZ162: 0.3265306122 | BE162: -0.1335313926 | BF162: 0.7916970657 | BG162: -0.3953127366 | BH162: 0.8849432729 | BI162: -0.2945080375 | BJ162: 0.8392264585 | BK162: 0.1335313926 | BL162: 0.5811878992 | BM162: -0.06317890162 | BN162: 0.7610371737 | BO162: 0.7139074509 | BR162: 174 | BU162: =IF(AO162<>"",AO162,"") -> Usability | BV162: Entertainment | BW162: Vudu | BX162: 0.7916970657 | BY162: 0.8849432729 | BZ162: 0.8392264585 | CA162: 0.5811878992 | CB162: 0.7610371737 | CC162: 0.1428571429 | CD162: 0.4693877551 | CE162: 0.2040816327 | CF162: 0.3265306122 | CG162: 0.7139074509 | CN162: 0
P163: 0 | AK163: 2016-10-27 | AL163: 175 | AM163: 1 | AN163: High | AO163: Perception | AP163: Retail | AQ163: Walgreens | AR163: 4.071520619 | AS163: 4.164948454 | AT163: 4.293814433 | AU163: 3.842783505 | AV163: 3.984536082 | AW163: -0.1443298969 | AX163: 0.2164948454 | AY163: 0.4226804124 | AZ163: 0.3608247423 | BE163: -0.07420710474 | BF163: 0.742674451 | BG163: -0.1802618238 | BH163: 0.7548981614 | BI163: -0.3478772332 | BJ163: 0.8731873536 | BK163: 0.1460175481 | BL163: 0.571808418 | BM163: 0.01534556967 | BN163: 0.6842287525 | BO163: 0.4255796042 | BR163: 175 | BS163: 1 | BT163: High | BU163: Perception | BV163: Retail | BW163: Walgreens | BX163: 0.742674451 | BY163: 0.7548981614 | BZ163: 0.8731873536 | CA163: 0.571808418 | CB163: 0.6842287525 | CC163: -0.1443298969 | CD163: 0.2164948454 | CE163: 0.4226804124 | CF163: 0.3608247423 | CG163: 0.4255796042 | CN163: 0
P164: 0 | AK164: 2011-03-13 | AL164: 176 | AM164: 1 | AN164: High | AO164: Perception | AP164: News | AQ164: Wall Street Journal | AR164: 3.96071625 | AS164: 4.078575 | AT164: 3.88572 | AU164: 4.092855 | AV164: 3.785715 | AW164: 0.05714285714 | AX164: 0.2571428571 | AY164: 0.5428571429 | AZ164: 0.2 | BE164: 0.03853177397 | BF164: 0.6354037411 | BG164: -0.08183389422 | BH164: 0.6759928761 | BI164: 0.1082084564 | BJ164: 0.4431876722 | BK164: -0.09745297395 | BL164: 0.7415235003 | BM164: 0.1941554262 | BN164: 0.4823019573 | BO164: 0.6331663226 | BR164: 176 | BS164: 1 | BT164: High | BU164: Perception | BV164: News | BW164: Wall Street Journal | BX164: 0.6354037411 | BY164: 0.6759928761 | BZ164: 0.4431876722 | CA164: 0.7415235003 | CB164: 0.4823019573 | CC164: 0.05714285714 | CD164: 0.2571428571 | CE164: 0.5428571429 | CF164: 0.2 | CG164: 0.6331663226 | CN164: 0
P165: 0 | AK165: 2016-10-27 | AL165: 177 | AM165: 1 | AN165: High | AO165: Perception | AP165: Retail | AQ165: Walmart | AR165: 3.827792553 | AS165: 4.042553191 | AT165: 3.989361702 | AU165: 3.609042553 | AV165: 3.670212766 | AW165: -0.3510638298 | AX165: 0.1489361702 | AY165: 0.3510638298 | AZ165: 0.5 | BE165: =LN($AR$6-AR165) -> 0.1588886779 | BF165: =1-NORMSDIST((BE165-$BE$7)/$BE$8) -> 0.5080380046 | BG165: =LN($AS$6-AS165) -> -0.04348511194 | BH165: =1-NORMSDIST((BG165-$BG$7)/$BG$8) -> 0.6426542735 | BI165: =LN($AT$6-AT165) -> 0.01058210933 | BJ165: =1-NORMSDIST((BI165-$BI$7)/$BI$8) -> 0.5525292961 | BK165: =LN($AU$6-AU165) -> 0.3299923207 | BL165: =1-NORMSDIST((BK165-$BK$7)/$BK$8) -> 0.4317370057 | BM165: 0.285018955 | BN165: =1-NORMSDIST((BM165-$BM$7)/$BM$8) -> 0.3780456018 | BO165: 0.2329043553 | BR165: 177 | BS165: 1 | BT165: High | BU165: =IF(AO165<>"",AO165,"") -> Perception | BV165: Retail | BW165: Walmart | BX165: =BF165 -> 0.5080380046 | BY165: =BH165 -> 0.6426542735 | BZ165: =BJ165 -> 0.5525292961 | CA165: =BL165 -> 0.4317370057 | CB165: =BN165 -> 0.3780456018 | CC165: -0.3510638298 | CD165: 0.1489361702 | CE165: 0.3510638298 | CF165: 0.5 | CG165: =BO165 -> 0.2329043553 | CN165: 0
P166: 0 | AK166: 2013-02-25 | AL166: 181 | AM166: 1 | AN166: High | AO166: Perception | AP166: Financial | AQ166: Wells Fargo | AR166: 4.152453271 | AS166: 4.242990654 | AT166: 4.186915888 | AU166: 4.226635514 | AV166: 3.953271028 | AW166: 0.19 | AX166: 0.46 | AY166: 0.27 | AZ166: 0.27 | BE166: -0.1654093038 | BF166: 0.815588948 | BG166: -0.2783796798 | BH166: 0.8219212891 | BI166: -0.2069207158 | BJ166: 0.7717463391 | BK166: -0.2570048202 | BL166: 0.8299912446 | BM166: 0.04567003683 | BN166: 0.6519914822 | BO166: 0.7543863596 | BR166: 181 | BS166: 1 | BT166: High | BU166: Perception | BV166: Financial | BW166: Wells Fargo | BX166: 0.815588948 | BY166: 0.8219212891 | BZ166: 0.7717463391 | CA166: 0.8299912446 | CB166: 0.6519914822 | CC166: 0.19 | CD166: 0.46 | CE166: 0.27 | CF166: 0.27 | CG166: 0.7543863596 | CN166: 0
P167: 0 | AK167: 2015-07-15 | AL167: 182 | AO167: Usability | AP167: Informational | AQ167: Wired | AR167: 3.862980769 | AS167: 3.980769231 | AT167: 4.019230769 | AU167: 3.567307692 | AV167: 3.884615385 | AW167: 0 | AX167: 0.3461538462 | AY167: 0.3076923077 | AZ167: 0.3461538462 | BE167: 0.1284101282 | BF167: 0.5409061675 | BG167: 0.01904819497 | BH167: 0.5859890207 | BI167: -0.01941808586 | BJ167: 0.5857181996 | BK167: 0.3595554068 | BL167: 0.4095639264 | BM167: 0.109199292 | BN167: 0.5810398871 | BO167: 0.5755522213 | BR167: 182 | BU167: Usability | BV167: Informational | BW167: Wired | BX167: 0.5409061675 | BY167: 0.5859890207 | BZ167: 0.5857181996 | CA167: 0.4095639264 | CB167: 0.5810398871 | CC167: 0 | CD167: 0.3461538462 | CE167: 0.3076923077 | CF167: 0.3461538462 | CG167: 0.5755522213 | CN167: 0
P168: 0 | AK168: 2015-07-15 | AL168: 183 | AO168: Perception | AP168: Informational | AQ168: Wired | AR168: 3.697115385 | AS168: 3.653846154 | AT168: 3.769230769 | AU168: 3.634615385 | AV168: 3.730769231 | AW168: -0.2307692308 | AX168: 0.1538461538 | AY168: 0.4615384615 | AZ168: 0.3846153846 | BE168: 0.2645807412 | BF168: 0.3950529516 | BG168: 0.2972515235 | BH168: 0.3290150563 | BI168: 0.2076393648 | BJ168: 0.3361765367 | BK168: 0.3114361585 | BL168: 0.4457700057 | BM168: 0.2384110234 | BN168: 0.4309126621 | BO168: 0.3393914952 | BR168: 183 | BU168: =IF(AO168<>"",AO168,"") -> Perception | BV168: =IF(AP168<>"",AP168,"") -> Informational | BW168: =IF(AQ168<>"",AQ168,"") -> Wired | BX168: 0.3950529516 | BY168: 0.3290150563 | BZ168: 0.3361765367 | CA168: 0.4457700057 | CB168: 0.4309126621 | CC168: -0.2307692308 | CD168: 0.1538461538 | CE168: 0.4615384615 | CF168: 0.3846153846 | CG168: 0.3393914952 | CN168: 0
P169: 0 | AK169: 2011-03-13 | AL169: 184 | AM169: 1 | AN169: High | AO169: Perception | AP169: Informational | AQ169: Yahoo | AR169: 4.11192 | AS169: 4.25 | AT169: 3.88518 | AU169: 4.20602 | AV169: 4.10648 | AW169: 0.09259259259 | AX169: 0.3796296296 | AY169: 0.3333333333 | AZ169: 0.287037037 | BE169: -0.11869345 | BF169: 0.7799805064 | BG169: -0.2876820725 | BH169: 0.8276134375 | BI169: 0.1086929569 | BJ169: 0.4426488952 | BK169: -0.230697007 | BL169: 0.8169127368 | BM169: -0.1125865607 | BN169: 0.8035619229 | BO169: 0.6675417161 | BR169: 184 | BS169: 1 | BT169: High | BU169: Perception | BV169: Informational | BW169: Yahoo | BX169: 0.7799805064 | BY169: 0.8276134375 | BZ169: 0.4426488952 | CA169: 0.8169127368 | CB169: 0.8035619229 | CC169: 0.09259259259 | CD169: 0.3796296296 | CE169: 0.3333333333 | CF169: 0.287037037 | CG169: 0.6675417161 | CN169: 0
P170: 0 | AK170: 2012-02-01 | AL170: 185 | AM170: 1 | AN170: High | AO170: Perception | AP170: Informational | AQ170: Yelp | AR170: 3.7799025 | AS170: 3.936275 | AT170: 3.54118 | AU170: 3.965685 | AV170: 3.67647 | AW170: 0.05882352941 | AX170: 0.3529411765 | AY170: 0.3529411765 | AZ170: 0.2941176471 | BE170: 0.1989307736 | BF170: 0.4648089856 | BG170: 0.06177689887 | BH170: 0.5461303238 | BI170: 0.3776278898 | BJ170: 0.1836182978 | BK170: 0.03373937186 | BL170: 0.6540848667 | BM170: 0.2803024096 | BN170: 0.3833104598 | BO170: 0.6348230643 | BR170: 185 | BS170: 1 | BT170: High | BU170: Perception | BV170: Informational | BW170: Yelp | BX170: 0.4648089856 | BY170: 0.5461303238 | BZ170: 0.1836182978 | CA170: 0.6540848667 | CB170: 0.3833104598 | CC170: 0.05882352941 | CD170: 0.3529411765 | CE170: 0.3529411765 | CF170: 0.2941176471 | CG170: 0.6348230643 | CN170: 0
P171: 0 | AK171: 2016-12-28 | AL171: 186 | AO171: Usability | AP171: Entertainment | AQ171: YouTube | AR171: 4.53125 | AS171: 4.638888889 | AT171: 4.305555556 | AU171: 4.708333333 | AV171: 4.472222222 | AW171: 0.6666666667 | AX171: 0.7222222222 | AY171: 0.2222222222 | AZ171: 0.05555555556 | BE171: -0.7576857017 | BF171: 0.9938457704 | BG171: -1.018569581 | BH171: 0.9963010026 | BI171: -0.3646431136 | BJ171: 0.8827419966 | BK171: -1.232143681 | BL171: 0.997634631 | BM171: -0.6390799593 | BN171: 0.9917373064 | BO171: 0.9736457134 | BR171: 186 | BU171: Usability | BV171: Entertainment | BW171: YouTube | BX171: 0.9938457704 | BY171: 0.9963010026 | BZ171: 0.8827419966 | CA171: 0.997634631 | CB171: 0.9917373064 | CC171: 0.6666666667 | CD171: 0.7222222222 | CE171: 0.2222222222 | CF171: 0.05555555556 | CG171: 0.9736457134 | CN171: 0
P172: 0 | AK172: 2016-12-28 | AL172: 187 | AM172: 1 | AN172: High | AO172: Perception | AP172: Informational | AQ172: YouTube | AR172: 4.448979592 | AS172: 4.663265306 | AT172: 3.959183673 | AU172: 4.673469388 | AV172: 4.5 | AW172: 0.6530612245 | AX172: 0.7346938776 | AY172: 0.1836734694 | AZ172: 0.08163265306 | BE172: -0.5959834321 | BF172: 0.980544141 | BG172: -1.088459917 | BH172: 0.9977734993 | BI172: 0.04000533461 | BJ172: 0.5196157391 | BK172: -1.119231576 | BL172: 0.9954491479 | BM172: -0.6931471806 | BN172: 0.9946985957 | BO172: 0.9713916978 | BR172: 187 | BS172: 1 | BT172: High | BU172: Perception | BV172: Informational | BW172: YouTube | BX172: 0.980544141 | BY172: 0.9977734993 | BZ172: 0.5196157391 | CA172: 0.9954491479 | CB172: 0.9946985957 | CC172: 0.6530612245 | CD172: 0.7346938776 | CE172: 0.1836734694 | CF172: 0.08163265306 | CG172: 0.9713916978 | CN172: 0
P173: 0 | AK173: 2016-09-14 | AL173: 188 | AO173: Perception | AP173: Retail | AQ173: Zappos | AR173: 4.226334951 | AS173: 4.330097087 | AT173: 4.27184466 | AU173: 4.240291262 | AV173: 4.063106796 | AW173: 0.3203883495 | AX173: 0.4854368932 | AY173: 0.3495145631 | AZ173: 0.1650485437 | BE173: -0.2566162529 | BF173: 0.8740536134 | BG173: -0.4006224836 | BH173: 0.8873702538 | BI173: -0.3172408747 | BJ173: 0.8543574076 | BK173: -0.2748201588 | BL173: 0.8384989056 | BM173: -0.06518597988 | BN173: 0.7628572817 | BO173: 0.8484941581 | BR173: 188 | BU173: Perception | BV173: Retail | BW173: Zappos | BX173: 0.8740536134 | BY173: 0.8873702538 | BZ173: 0.8543574076 | CA173: 0.8384989056 | CB173: 0.7628572817 | CC173: 0.3203883495 | CD173: 0.4854368932 | CE173: 0.3495145631 | CF173: 0.1650485437 | CG173: 0.8484941581 | CN173: 0
P174: 0 | AK174: 2016-02-01 | AL174: 189 | AO174: Usability | AP174: Real Estate | AQ174: Zillow | AR174: 3.889534884 | AS174: 3.88372093 | AT174: 4.279069767 | AU174: 3.755813953 | AV174: 3.639534884 | AW174: 0.06976744186 | AX174: 0.3720930233 | AY174: 0.3255813953 | AZ174: 0.3023255814 | BE174: 0.1047789512 | BF174: 0.5662104861 | BG174: 0.1100008952 | BH174: 0.5006013697 | BI174: -0.3272129112 | BJ174: 0.8606825114 | BK174: 0.2184815382 | BL174: 0.5167373333 | BM174: 0.3078266385 | BN174: 0.3529207302 | BO174: 0.6455484402 | BR174: 189 | BU174: Usability | BV174: Real Estate | BW174: Zillow | BX174: 0.5662104861 | BY174: 0.5006013697 | BZ174: 0.8606825114 | CA174: 0.5167373333 | CB174: 0.3529207302 | CC174: 0.06976744186 | CD174: 0.3720930233 | CE174: 0.3255813953 | CF174: 0.3023255814 | CG174: 0.6455484402 | CN174: 0
P175: 0 | CN175: 0
P176: 0 | CN176: 0
P177: 0 | CN177: 0
P178: 0 | CN178: 0
P179: 0 | CN179: 0
P180: 0 | CN180: 0
P181: 0 | CN181: 0
P182: 0 | CN182: 0
P183: 0 | CN183: 0
P184: 0 | CN184: 0
P185: 0 | CN185: 0
P186: 0 | CN186: 0
P187: 0 | CN187: 0
P188: 0 | CN188: 0
P189: 0 | CN189: 0
P190: 0 | CN190: 0
P191: 0 | CN191: 0
P192: 0 | CN192: 0
P193: 0 | CN193: 0
P194: 0 | CN194: 0
P195: 0 | CN195: 0
P196: 0 | CN196: 0
P197: 0 | CN197: 0
P198: 0 | CN198: 0
P199: 0 | CN199: 0
P200: 0 | BU200: =IF(AO200<>"",AO200,"") ->  | CN200: 0
P201: 0 | CN201: 0
... 557 more rows

Sheet All Websites (hidden)
A1: Contents | T1: measuringusability.com
A2: SUPR-Q Website Details by Sub-Scale | W2: 1 | X2: 1 | Y2: Do Not Highlight Cells | AA2: 2 | AB2: =VLOOKUP(AA2,W2:Y3,2,FALSE) -> 0
A3: Table Shows Percentile Rank & Confidence Intervals | W3: 2 | X3: 0 | Y3: Highlight Cells With Higher Scores
F7: This Study | G7: SUPR-Q | H7: Usability | I7: Trust | J7: Loyalty | K7: Appearance | L7: Raw NPS | M7: NPS %
F8: Percentile Rank | G8: =Scoring!AC20 -> 0.8063219651 | H8: =Scoring!AD20 -> 0.6546828832 | I8: =Scoring!AE20 -> 0.7502673772 | J8: =Scoring!AF20 -> 0.8676014823 | K8: =Scoring!AG20 -> 0.7555319929 | L8: =Scoring!AH20 -> 0.4666666667 | M8: =Scoring!AI20 -> 0.9212116725
F9: Low | G9: =Scoring!AC31 -> 0.642353781 | H9: =Scoring!AD31 -> 0.4859797283 | I9: =Scoring!AE31 -> 0.5148305167 | J9: =Scoring!AF31 -> 0.7309336888 | K9: =Scoring!AG31 -> 0.5662259939 | L9: =Scoring!AH31 -> 0.2906074621 | M9: =Scoring!AI31 -> 0.8294428229
F10: High | G10: =Scoring!AC36 -> 0.9302389116 | H10: =Scoring!AD36 -> 0.8233775859 | I10: =Scoring!AE36 -> 0.9334237734 | J10: =Scoring!AF36 -> 0.9634552691 | K10: =Scoring!AG36 -> 0.9086352001 | L10: =Scoring!AH36 -> 0.6427258713 | M10: =Scoring!AI36 -> 0.9695741988
D12: Study Type | E12: Industry | F12: Name | G12: SURPQ | H12: Usability | I12: Trust | J12: Loyalty | K12: Appearance | L12: NPS | M12: NPS %
D13: Usability | E13: Entertainment | F13: YouTube | G13: 0.9938457704 | H13: 0.9963010026 | I13: 0.8827419966 | J13: 0.997634631 | K13: 0.9917373064 | L13: 0.6666666667 | M13: 0.9736457134
D14: Perception | E14: Retail | F14: Amazon | G14: 0.9894672857 | H14: 0.9777656897 | I14: 0.9474425652 | J14: 0.9932298739 | K14: 0.9807004117 | L14: 0.670212766 | M14: 0.9742081801
D15: Perception | E15: Informational | F15: YouTube | G15: 0.980544141 | H15: 0.9977734993 | I15: 0.5196157391 | J15: 0.9954491479 | K15: 0.9946985957 | L15: 0.6530612245 | M15: 0.9713916978
D16: Perception | E16: Financial | F16: PayPal | G16: 0.9581769544 | H16: 0.8479025036 | I16: 0.9690591206 | J16: 0.9749649719 | K16: 0.9039265219 | L16: 0.5514018692 | M16: 0.9490057319
D17: Perception | E17: Retail | F17: Netflix | G17: 0.9551403941 | H17: 0.8408796837 | I17: 0.9783927048 | J17: 0.9052832699 | K17: 0.9687602129 | L17: 0.3666666667 | M17: 0.8751859173
D18: Perception | E18: Travel | F18: Trip Advisor | G18: 0.9521018345 | H18: 0.9717075515 | I18: 0.7580213234 | J18: 0.9924084247 | K18: 0.8248585936 | L18: 0.652173913 | M18: 0.9712392897
D19: Usability | E19: Retail | F19: Macy's | G19: 0.9376680493 | H19: 0.9823228727 | I19: 0.9774391733 | J19: 0.7051978698 | K19: 0.9202558353 | L19: 0.16 | M19: 0.7289873946
D20: Perception | E20: Financial | F20: Chase | G20: 0.9267823521 | H20: 0.9223051845 | I20: 0.8891026605 | J20: 0.9351307222 | K20: 0.8100214656 | L20: 0.34 | M20: 0.8602364052
D21: Perception | E21: Airlines | F21: Southwest Airlines | G21: 0.9238217085 | H21: 0.8519588756 | I21: 0.9269069843 | J21: 0.9478010984 | K21: 0.8081647556 | L21: 0.4958677686 | M21: 0.931859022
D22: Perception | E22: 3rd Party Automotive | F22: Kelley Blue Book | G22: 0.9085755312 | H22: 0.9027799419 | I22: 0.8468245993 | J22: 0.9751191047 | K22: 0.6498689982 | L22: 0.6097560976 | M22: 0.9631270074
D23: Usability | E23: Real Estate | F23: HomeFinder | G23: 0.9004663205 | H23: 0.932275229 | I23: 0.8116634079 | J23: 0.7350040692 | K23: 0.9612498671 | L23: 0.3095238095 | M23: 0.8417145804
D24: Perception | E24: Retail | F24: eBay | G24: 0.8942859034 | H24: 0.8718660617 | I24: 0.7660329415 | J24: 0.9474851026 | K24: 0.7777801313 | L24: 0.4166666667 | M24: 0.9001244454
D25: Perception | E25: Travel | F25: Priceline | G25: 0.8933847722 | H25: 0.9402361163 | I25: 0.8051750215 | J25: 0.8416025175 | K25: 0.8252113919 | L25: 0.3831775701 | M25: 0.8838615565
D26: Perception | E26: Retail | F26: Apple | G26: 0.8887287114 | H26: 0.7226036811 | I26: 0.9629326114 | J26: 0.689242833 | K26: 0.9794901767 | L26: 0.1348314607 | M26: 0.7067131141
D27: Perception | E27: Heathcare | F27: Kaiser | G27: 0.8858219076 | H27: 0.661926878 | I27: 0.9622864552 | J27: 0.925850268 | K27: 0.7698926771 | L27: 0.28 | M27: 0.822301745
D28: Perception | E28: Travel | F28: Kayak | G28: 0.8839719149 | H28: 0.8523868591 | I28: 0.832216214 | J28: 0.8772536736 | K28: 0.8211746014 | L28: 0.4854368932 | M28: 0.9281910259
D29: Perception | E29: Retail | F29: Etsy | G29: 0.8832436488 | H29: 0.8077052552 | I29: 0.6609946282 | J29: 0.9141675277 | K29: 0.9253370967 | L29: 0.4408602151 | M29: 0.9107926044
D30: Perception | E30: Retail | F30: Target | G30: 0.8764127453 | H30: 0.873762809 | I30: 0.9240241684 | J30: 0.7301901555 | K30: 0.8565439274 | L30: 0.06315789474 | M30: 0.63908405
D31: Perception | E31: Retail | F31: Zappos | G31: 0.8740536134 | H31: 0.8873702538 | I31: 0.8543574076 | J31: 0.8384989056 | K31: 0.7628572817 | L31: 0.3203883495 | M31: 0.8484941581
D32: Perception | E32: Informational | F32: IMDB | G32: 0.8666467926 | H32: 0.9383301334 | I32: 0.4873805381 | J32: 0.9896796418 | K32: 0.5968690351 | L32: 0.5888888889 | M32: 0.9584975313
D33: Perception | E33: News | F33: New York Times | G33: 0.8665146727 | H33: 0.8644182937 | I33: 0.4575664168 | J33: 0.9733811758 | K33: 0.825305926 | L33: 0.5714285714 | M33: 0.9542715261
D34: Usability | E34: Entertainment | F34: Amazon Instant Video | G34: 0.8600630268 | H34: 0.8112072745 | I34: 0.9827413592 | J34: 0.7395703176 | K34: 0.7102002746 | L34: 0.2 | M34: 0.7625594325
D35: Perception | E35: Travel | F35: Travelocity | G35: 0.8541170844 | H35: 0.8960367027 | I35: 0.7343639037 | J35: 0.8562908728 | K35: 0.7346146572 | L35: 0.4411764706 | M35: 0.910926211
D36: Perception | E36: Retail | F36: Lowes | G36: 0.8444900622 | H36: 0.6035010977 | I36: 0.9827413592 | J36: 0.8444654575 | K36: 0.7000419704 | L36: 0.387755102 | M36: 0.8861891754
D37: Perception | E37: Informational | F37: Motley Fool | G37: 0.8444900622 | H37: 0.8375998369 | I37: 0.5642906703 | J37: 0.9507408113 | K37: 0.7253153151 | L37: 0.4 | M37: 0.8922516205
D38: Usability | E38: Flowers | F38: FTD | G38: 0.8411577258 | H38: 0.6341373069 | I38: 0.9038445988 | J38: 0.7577482678 | K38: 0.9142599631 | L38: 0.2333333333 | M38: 0.78869413
D39: Perception | E39: Travel | F39: Expedia | G39: 0.8379376656 | H39: 0.787997468 | I39: 0.8310378703 | J39: 0.8096447303 | K39: 0.7730096555 | L39: 0.2842105263 | M39: 0.8251586052
D40: Perception | E40: Airlines | F40: Delta Airlines | G40: 0.8353776331 | H40: 0.7606711303 | I40: 0.7754658952 | J40: 0.8282145909 | K40: 0.8148518837 | L40: 0.3523809524 | M40: 0.8673222541
D41: Perception | E41: 3rd Party Automotive | F41: Autotrader | G41: 0.8290359066 | H41: 0.8585942584 | I41: 0.5744058773 | J41: 0.8303925353 | K41: 0.8396179459 | L41: 0.3181818182 | M41: 0.847133123
D42: Perception | E42: Airlines | F42: American Airlines | G42: 0.8283278061 | H42: 0.7935509987 | I42: 0.7470095546 | J42: 0.7603167201 | K42: 0.863521117 | L42: 0.2545454545 | M42: 0.8044094859
D43: Usability | E43: Real Estate | F43: Realtor.com | G43: 0.8164021705 | H43: 0.7896512592 | I43: 0.9092188819 | J43: 0.6310233484 | K43: 0.8299801024 | L43: 0.1363636364 | M43: 0.7080930375
D44: Perception | E44: Financial | F44: Wells Fargo | G44: 0.815588948 | H44: 0.8219212891 | I44: 0.7717463391 | J44: 0.8299912446 | K44: 0.6519914822 | L44: 0.19 | M44: 0.7543863596
D45: Perception | E45: Retail | F45: Vistaprint | G45: 0.8063219651 | H45: 0.6546828832 | I45: 0.7502673772 | J45: 0.8676014823 | K45: 0.7555319929 | L45: 0.4666666667 | M45: 0.9212116725
D46: Usability | E46: Retail | F46: 1800 Flowers | G46: 0.8058558653 | H46: 0.7659809517 | I46: 0.9186608143 | J46: 0.5691610217 | K46: 0.8759185081 | L46: 0.03225806452 | M46: 0.6083607354
D47: Usability | E47: Entertainment | F47: Vudu | G47: 0.7916970657 | H47: 0.8849432729 | I47: 0.8392264585 | J47: 0.5811878992 | K47: 0.7610371737 | L47: 0.1428571429 | M47: 0.7139074509
D48: Perception | E48: Informational | F48: Yahoo | G48: 0.7799805064 | H48: 0.8276134375 | I48: 0.4426488952 | J48: 0.8169127368 | K48: 0.8035619229 | L48: 0.09259259259 | M48: 0.6675417161
D49: Perception | E49: Retail | F49: Home Depot | G49: 0.7788098575 | H49: 0.6680558416 | I49: 0.7904420763 | J49: 0.751517414 | K49: 0.7598510247 | L49: 0.3 | M49: 0.8356103716
D50: Perception | E50: Retail | F50: Shutterfly | G50: 0.7738073108 | H50: 0.6873975778 | I50: 0.6665040443 | J50: 0.8012404557 | K50: 0.7567611555 | L50: 0.5681818182 | M50: 0.9534488087
D51: Perception | E51: Retail | F51: Nordstrom | G51: 0.7589977671 | H51: 0.7286694184 | I51: 0.7522099155 | J51: 0.686991689 | K51: 0.7383181096 | L51: 0.04347826087 | M51: 0.6196066177
D52: Perception | E52: Retail | F52: ToysRus | G52: 0.7583681164 | H52: 0.6035010977 | I52: 0.8903261818 | J52: 0.7707265286 | K52: 0.5991113778 | L52: 0.3260869565 | M52: 0.8519718034
D53: Perception | E53: Retail | F53: 1800 Flowers | G53: 0.7558920981 | H53: 0.6889525906 | I53: 0.6544790221 | J53: 0.6459012734 | K53: 0.8920935578 | L53: 0.2222222222 | M53: 0.7801753321
D54: Perception | E54: Retail | F54: Snapfish | G54: 0.7532132567 | H54: 0.6158851105 | I54: 0.5493634718 | J54: 0.7927646659 | K54: 0.8515140394 | L54: 0.3243243243 | M54: 0.8509018893
D55: Perception | E55: Retail | F55: Overstock.com | G55: 0.7499744495 | H55: 0.7848009678 | I55: 0.6609946282 | J55: 0.6961546643 | K55: 0.7055107981 | L55: 0.08602150538 | M55: 0.6612649525
D56: Perception | E56: Hotel | F56: Hilton | G56: 0.7462429751 | H56: 0.7621330908 | I56: 0.7905644283 | J56: 0.6337871598 | K56: 0.6869402339 | L56: 0.02564102564 | M56: 0.6016851704
D57: Perception | E57: Financial | F57: Scottrade | G57: 0.7433949495 | H57: 0.6234590271 | I57: 0.8953003348 | J57: 0.7001036376 | K57: 0.6103408137 | L57: 0.04347826087 | M57: 0.6196066177
D58: Perception | E58: Retail | F58: Walgreens | G58: 0.742674451 | H58: 0.7548981614 | I58: 0.8731873536 | J58: 0.571808418 | K58: 0.6842287525 | L58: -0.1443298969 | M58: 0.4255796042
D59: Perception | E59: Retail | F59: BestBuy | G59: 0.733493823 | H59: 0.7263604595 | I59: 0.7139201193 | J59: 0.6719041437 | K59: 0.6886911936 | L59: 0.1444444444 | M59: 0.7153203376
D60: Usability | E60: Retail | F60: Teleflora | G60: 0.7299132518 | H60: 0.6528464368 | I60: 0.6445203494 | J60: 0.5929517861 | K60: 0.9029450223 | L60: -0.03571428571 | M60: 0.5386172171
D61: Usability | E61: Flowers | F61: Pro Flowers | G61: 0.7242406235 | H61: 0.7111207112 | I61: 0.5458983359 | J61: 0.615179578 | K61: 0.8806730513 | L61: 0 | M61: 0.5755522213
D62: Perception | E62: Retail | F62: Pier 1 Imports | G62: 0.7238080931 | H62: 0.6535650176 | I62: 0.6007248587 | J62: 0.7300330653 | K62: 0.7436921121 | L62: 0.347826087 | M62: 0.8647447467
D63: Perception | E63: Retail | F63: Bed, Bath, and Beyond | G63: 0.7225097491 | H63: 0.7866704085 | I63: 0.7751961356 | J63: 0.6001633369 | K63: 0.6215871901 | L63: 0.04347826087 | M63: 0.6196066177
D64: Usability | E64: Entertainment | F64: HBO GO | G64: 0.7207857414 | H64: 0.6222239523 | I64: 0.8831940116 | J64: 0.5547275787 | K64: 0.7511032401 | L64: 0.1224489796 | M64: 0.6954517882
D65: Perception | E65: Retail | F65: Staples | G65: 0.7165782334 | H65: 0.7438482393 | I65: 0.7521486312 | J65: 0.6184230237 | K65: 0.6404312591 | L65: 0.02105263158 | M65: 0.5970385292
D66: Usability | E66: Travel | F66: Enterprise | G66: 0.712659663 | H66: 0.7682597819 | I66: 0.9636577984 | J66: 0.4950236164 | K66: 0.5157718555 | L66: 0.04 | M66: 0.6161306995
D67: Perception | E67: Retail | F67: FTD | G67: 0.6933904816 | H67: 0.7003391078 | I67: 0.7348846365 | J67: 0.5532541778 | K67: 0.7000419704 | L67: 0.07317073171 | M67: 0.6488608451
D68: Perception | E68: Retail | F68: Teleflora | G68: 0.6784874759 | H68: 0.6150996688 | I68: 0.6138924023 | J68: 0.5794104979 | K68: 0.8045735265 | L68: 0.164556962 | M68: 0.7329282255
D69: Perception | E69: News | F69: CNN | G69: 0.6753439115 | H69: 0.7514560109 | I69: 0.2968857705 | J69: 0.8112513591 | K69: 0.6255918013 | L69: 0.1444444444 | M69: 0.7153203376
D70: Usability | E70: Real Estate | F70: Trulia | G70: 0.6680395348 | H70: 0.7457662136 | I70: 0.6980600994 | J70: 0.4570617817 | K70: 0.7477678927 | L70: -0.04761904762 | M70: 0.5262148711
D71: Usability | E71: Informational | F71: Air Mac | G71: 0.6616354001 | H71: 0.9898310335 | I71: 0.6991215207 | J71: 0.2360510269 | K71: 0.7976452819 | L71: -0.2 | M71: 0.3693768891
D72: Perception | E72: Retail | F72: Macy's | G72: 0.6558773183 | H72: 0.5767804825 | I72: 0.8479851039 | J72: 0.6274037802 | K72: 0.4623006921 | L72: 0.1764705882 | M72: 0.7430924998
D73: Usability | E73: Retail | F73: Etsy | G73: 0.6479832219 | H73: 0.6922403957 | I73: 0.6939728661 | J73: 0.3996528903 | K73: 0.8284763044 | L73: 0 | M73: 0.5755522213
D74: Perception | E74: Travel | F74: Orbitz | G74: 0.6434337911 | H74: 0.6458875821 | I74: 0.6351786409 | J74: 0.5864363984 | K74: 0.5982252839 | L74: -0.03947368421 | M74: 0.5347041663
D75: Perception | E75: IT | F75: Adobe | G75: 0.6418155482 | H75: 0.4214829863 | I75: 0.845452205 | J75: 0.6694498162 | K75: 0.5290339287 | L75: 0 | M75: 0.5755522213
D76: Perception | E76: Airlines | F76: United Airlines | G76: 0.6396879801 | H76: 0.6908011576 | I76: 0.7307513979 | J76: 0.6900450585 | K76: 0.3215865444 | L76: 0.06306306306 | M76: 0.638991006
D77: Perception | E77: Financial | F77: Bank of America | G77: 0.6396717573 | H77: 0.6373055369 | I77: 0.4771970714 | J77: 0.7232236088 | K77: 0.5339404514 | L77: 0.13 | M77: 0.7023420809
D78: Perception | E78: Retail | F78: Pro Flowers | G78: 0.6390107352 | H78: 0.6957884351 | I78: 0.5921812753 | J78: 0.5305608012 | K78: 0.6550731473 | L78: 0.025 | M78: 0.6010368568
D79: Perception | E79: News | F79: Wall Street Journal | G79: 0.6354037411 | H79: 0.6759928761 | I79: 0.4431876722 | J79: 0.7415235003 | K79: 0.4823019573 | L79: 0.05714285714 | M79: 0.6331663226
D80: Perception | E80: Hotel | F80: Hyatt | G80: 0.6353143704 | H80: 0.5807650754 | I80: 0.5977932985 | J80: 0.6012482397 | K80: 0.6486062379 | L80: 0.1 | M80: 0.6745613509
D81: Perception | E81: Travel | F81: Travelocity | G81: 0.6280211425 | H81: 0.5727362878 | I81: 0.682437761 | J81: 0.6456873429 | K81: 0.4846319212 | L81: 0 | M81: 0.5755522213
D82: Perception | E82: Social Networking | F82: Flickr | G82: 0.6268882786 | H82: 0.6201464626 | I82: 0.1840084768 | J82: 0.7483320351 | K82: 0.8374628118 | L82: 0.1370967742 | M82: 0.7087522521
D83: Usability | E83: Travel | F83: Expedia | G83: 0.6208389992 | H83: 0.4455786448 | I83: 0.7853233905 | J83: 0.5443247342 | K83: 0.6658340391 | L83: 0.2666666667 | M83: 0.8130621499
D84: Perception | E84: Informational | F84: Craigslist | G84: 0.6016588728 | H84: 0.8141142269 | I84: 0.1558260226 | J84: 0.8842341329 | K84: 0.3777083231 | L84: 0.3396226415 | M84: 0.8600164699
D85: Perception | E85: Retail | F85: Sears | G85: 0.5990226715 | H85: 0.5868331832 | I85: 0.6519875075 | J85: 0.5474227459 | K85: 0.5249790578 | L85: -0.1219512195 | M85: 0.4486772979
D86: Perception | E86: Retail | F86: Microcenter | G86: 0.5946746647 | H86: 0.4974524466 | I86: 0.8015570787 | J86: 0.7327183344 | K86: 0.2534926532 | L86: 0.24 | M86: 0.7937112196
D87: Usability | E87: Retail | F87: eBay | G87: 0.5859448188 | H87: 0.3733057919 | I87: 0.8614875933 | J87: 0.5830628651 | K87: 0.4768204904 | L87: 0.08 | M87: 0.6554735098
D88: Usability | E88: Retail | F88: Boston Proper | G88: 0.5762762888 | H88: 0.7928953479 | I88: 0.3340354075 | J88: 0.2156480158 | K88: 0.9975265152 | L88: -0.4166666667 | M88: 0.1837395664
D89: Perception | E89: 3rd Party Automotive | F89: Cars.com | G89: 0.5664385641 | H89: 0.6243567227 | I89: 0.3572554907 | J89: 0.5755237698 | K89: 0.5906250869 | L89: -0.06060606061 | M89: 0.5126564148
D90: Usability | E90: Real Estate | F90: Zillow | G90: 0.5662104861 | H90: 0.5006013697 | I90: 0.8606825114 | J90: 0.5167373333 | K90: 0.3529207302 | L90: 0.06976744186 | M90: 0.6455484402
D91: Perception | E91: IT | F91: Dell | G91: 0.5645823438 | H91: 0.5191565451 | I91: 0.6371047823 | J91: 0.5256689389 | K91: 0.5067077919 | L91: -0.1081081081 | M91: 0.4630579604
D92: Perception | E92: IT | F92: Microsoft | G92: 0.5579610249 | H92: 0.3821208059 | I92: 0.69442498 | J92: 0.6356206075 | K92: 0.4364414331 | L92: -0.01754385965 | M92: 0.5574708957
D93: Usability | E93: Restaurants | F93: Chipolte | G93: 0.5523124736 | H93: 0.4974524466 | I93: 0.8782665812 | J93: 0.366119547 | K93: 0.5357106418 | L93: 0.08 | M93: 0.6554735098
D94: Perception | E94: Informational | F94: Lawyers | G94: 0.5489676226 | H94: 0.5892613267 | I94: 0.4575664168 | J94: 0.5473003535 | K94: 0.4930894909 | L94: -0.03125 | M94: 0.5432590832
D95: Usability | E95: Airlines | F95: Jet Blue | G95: 0.5447277648 | H95: 0.5289313519 | I95: 0.4920670196 | J95: 0.4598723829 | K95: 0.6572291503 | L95: -0.08333333333 | M95: 0.4889033231
D96: Usability | E96: Informational | F96: Wired | G96: 0.5409061675 | H96: 0.5859890207 | I96: 0.5857181996 | J96: 0.4095639264 | K96: 0.5810398871 | L96: 0 | M96: 0.5755522213
D97: Perception | E97: Financial | F97: eTrade | G97: 0.5389755017 | H97: 0.4673475782 | I97: 0.536775963 | J97: 0.5005230343 | K97: 0.592576474 | L97: -0.125 | M97: 0.4455185
D98: Perception | E98: Retail | F98: Home Depot | G98: 0.5382028651 | H98: 0.5393414679 | I98: 0.538075903 | J98: 0.5734064911 | K98: 0.3952641319 | L98: -0.04761904762 | M98: 0.5262148711
D99: Usability | E99: Retail | F99: Microcenter | G99: 0.5357331986 | H99: 0.8028230623 | I99: 0.4991036768 | J99: 0.2926938852 | K99: 0.6589502765 | L99: -0.24 | M99: 0.3305806049
D100: Usability | E100: Retail | F100: Dell | G100: 0.5153018329 | H100: 0.4296205713 | I100: 0.8077505766 | J100: 0.3712499538 | K100: 0.5290339287 | L100: -0.1111111111 | M100: 0.459933584
D101: Usability | E101: Education | F101: McMaster Univ. | G101: 0.5134743186 | H101: 0.377396274 | I101: 0.4807975283 | J101: 0.4476141105 | K101: 0.7485220457 | L101: -0.3103448276 | M101: 0.2667654284
D102: Perception | E102: Social Networking | F102: Facebook | G102: 0.5119298483 | H102: 0.682097882 | I102: 0.05611921336 | J102: 0.8625570144 | K102: 0.5199109224 | L102: 0.3846153846 | M102: 0.8845962788
D103: Perception | E103: Retail | F103: Walmart | G103: 0.5080380046 | H103: 0.6426542735 | I103: 0.5525292961 | J103: 0.4317370057 | K103: 0.3780456018 | L103: -0.3510638298 | M103: 0.2329043553
D104: Usability | E104: Airlines | F104: United Airlines | G104: 0.5076451112 | H104: 0.4904038822 | I104: 0.6309988024 | J104: 0.4312316579 | K104: 0.4675574171 | L104: -0.02702702703 | M104: 0.5476446219
D105: Usability | E105: Airlines | F105: Frontier Airlines | G105: 0.505862315 | H105: 0.5414997312 | I105: 0.4896476048 | J105: 0.4059532068 | K105: 0.575600196 | L105: -0.03448275862 | M105: 0.5398982847
D106: Usability | E106: Retail | F106: LL-Bean | G106: 0.5054679252 | H106: 0.4932377982 | I106: 0.7139274874 | J106: 0.2414319543 | K106: 0.8201098731 | L106: -0.3333333333 | M106: 0.2473480539
D107: Usability | E107: Travel | F107: Travelocity | G107: 0.4842205112 | H107: 0.5583131641 | I107: 0.5349651936 | J107: 0.554944382 | K107: 0.2333242013 | L107: 0.2 | M107: 0.7625594325
D108: Usability | E108: Informational | F108: CDC | G108: 0.4752543135 | H108: 0.2635382081 | I108: 0.3927096051 | J108: 0.64906166 | K108: 0.5290355942 | L108: 0.1666666667 | M108: 0.7347428354
D109: Usability | E109: Retail | F109: Payless Shoes | G109: 0.4743196922 | H109: 0.6803870998 | I109: 0.7679924724 | J109: 0.1871347479 | K109: 0.6140850667 | L109: -0.4166666667 | M109: 0.1837395664
D110: Perception | E110: Informational | F110: Yelp | G110: 0.4648089856 | H110: 0.5461303238 | I110: 0.1836182978 | J110: 0.6540848667 | K110: 0.3833104598 | L110: 0.05882352941 | M110: 0.6348230643
D111: Perception | E111: News | F111: Foxnews | G111: 0.4440700607 | H111: 0.5666280371 | I111: 0.1561370579 | J111: 0.5833682826 | K111: 0.4220397214 | L111: 0.06976744186 | M111: 0.6455484402
D112: Perception | E112: Healthcare | F112: BCBS | G112: 0.424179908 | H112: 0.3102795003 | I112: 0.4004077816 | J112: 0.5424439107 | K112: 0.3764596394 | L112: -0.02564102564 | M112: 0.5490827388
D113: Usability | E113: IT Services | F113: Adobe | G113: 0.4212499123 | H113: 0.2160601897 | I113: 0.8595608042 | J113: 0.4278520576 | K113: 0.3167364837 | L113: 0.07407407407 | M113: 0.64973818
D114: Perception | E114: Social Networking | F114: LinkedIn | G114: 0.4182534025 | H114: 0.3651799493 | I114: 0.226945742 | J114: 0.5854523487 | K114: 0.4141856003 | L114: 0.01515151515 | M114: 0.5910423837
D115: Usability | E115: Travel | F115: Priceline | G115: 0.4059509032 | H115: 0.3678102476 | I115: 0.5575819524 | J115: 0.4813828172 | K115: 0.2178141796 | L115: 0 | M115: 0.5755522213
D116: Usability | E116: Retail | F116: Target | G116: 0.3956964931 | H116: 0.4758960614 | I116: 0.5642906703 | J116: 0.2936709683 | K116: 0.3414218972 | L116: -0.4166666667 | M116: 0.1837395664
D117: Perception | E117: Informational | F117: Wired | G117: 0.3950529516 | H117: 0.3290150563 | I117: 0.3361765367 | J117: 0.4457700057 | K117: 0.4309126621 | L117: -0.2307692308 | M117: 0.3393914952
D118: Perception | E118: Healthcare | F118: United Healthcare | G118: 0.3942355501 | H118: 0.2960958843 | I118: 0.3463171955 | J118: 0.5074553575 | K118: 0.3716209096 | L118: -0.14 | M118: 0.4300312739
D119: Usability | E119: Retail | F119: Harbor Freight | G119: 0.3756683739 | H119: 0.6035010977 | I119: 0.5865791233 | J119: 0.2926938852 | K119: 0.1774837692 | L119: -0.36 | M119: 0.2258061903
D120: Perception | E120: Wireless | F120: British Telecom | G120: 0.3698007992 | H120: 0.2603877963 | I120: 0.4431819689 | J120: 0.3532007126 | K120: 0.4823012704 | L120: -0.5714285714 | M120: 0.09565624385
D121: Perception | E121: Social Networking | F121: Twitter | G121: 0.3652742016 | H121: 0.4539253754 | I121: 0.05779820176 | J121: 0.5898914267 | K121: 0.4865517697 | L121: -0.06172839506 | M121: 0.5114837845
D122: Usability | E122: Travel | F122: Hotels.com | G122: 0.3498545551 | H122: 0.3538205822 | I122: 0.2280659499 | J122: 0.518288155 | K122: 0.2432415763 | L122: -0.1 | M122: 0.4715046241
D123: Perception | E123: Governments | F123: USA.gov | G123: 0.3447988442 | H123: 0.2138167512 | I123: 0.4544844903 | J123: 0.5510696459 | K123: 0.1864024193 | L123: -0.1212121212 | M123: 0.4494435651
D124: Usability | E124: Travel | F124: Budget | G124: 0.3433636535 | H124: 0.3003069657 | I124: 0.4870660599 | J124: 0.2070961081 | K124: 0.6264100477 | L124: -0.2857142857 | M124: 0.288391726
D125: Perception | E125: Heathcare | F125: Aetna | G125: 0.3321892791 | H125: 0.2714879658 | I125: 0.295170308 | J125: 0.3816288477 | K125: 0.3773274033 | L125: -0.16 | M125: 0.4095519269
D126: Usability | E126: Travel | F126: Orbitz | G126: 0.3117145068 | H126: 0.3305499213 | I126: 0.4575664168 | J126: 0.3911393576 | K126: 0.1323783445 | L126: 0 | M126: 0.5755522213
D127: Usability | E127: IT Services | F127: Network Solutions | G127: 0.3103059114 | H127: 0.4422789285 | I127: 0.1714107257 | J127: 0.2156480158 | K127: 0.6140850667 | L127: -0.25 | M127: 0.3211404447
D128: Usability | E128: Retail | F128: eToys | G128: 0.3047240814 | H128: 0.3947896469 | I128: 0.1970968187 | J128: 0.2218342735 | K128: 0.571189401 | L128: -0.4166666667 | M128: 0.1837395664
D129: Perception | E129: Retail | F129: OfficeMax | G129: 0.3037964491 | H129: 0.3359412366 | I129: 0.2946688702 | J129: 0.338876538 | K129: 0.2459579687 | L129: -0.1951219512 | M129: 0.3742102125
D130: Perception | E130: IT Services | F130: GoDaddy | G130: 0.281001515 | H130: 0.1830255995 | I130: 0.3484790137 | J130: 0.4927641384 | K130: 0.1450054799 | L130: -0.1351351351 | M130: 0.4350435618
D131: Usability | E131: Airlines | F131: Southwest | G131: 0.272831778 | H131: 0.2837672414 | I131: 0.1002691307 | J131: 0.466559731 | K131: 0.2625508719 | L131: 0.02857142857 | M131: 0.6046452911
D132: Usability | E132: Retail | F132: Crate & Barrel | G132: 0.2673866333 | H132: 0.2747998982 | I132: 0.0959766177 | J132: 0.38251115 | K132: 0.3750814037 | L132: -0.2777777778 | M132: 0.2955321655
D133: Perception | E133: Wireless | F133: Verizon | G133: 0.2560170565 | H133: 0.2055053537 | I133: 0.2151529118 | J133: 0.3122638234 | K133: 0.3260862047 | L133: -0.1875 | M133: 0.3818017581
D134: Usability | E134: Retail | F134: JC Pennys | G134: 0.2543175357 | H134: 0.2635382081 | I134: 0.5097525139 | J134: 0.1980704697 | K134: 0.2284932319 | L134: -0.4166666667 | M134: 0.1837395664
D135: Perception | E135: Wireless | F135: Sprint | G135: 0.2516236344 | H135: 0.2150366327 | I135: 0.2045793513 | J135: 0.2678785857 | K135: 0.3913762418 | L135: -0.3548387097 | M135: 0.2298908803
D136: Usability | E136: Travel | F136: HotelPenn | G136: 0.2487907775 | H136: 0.4637060492 | I136: 0.1570287781 | J136: 0.1584192691 | K136: 0.4485539694 | L136: -0.2857142857 | M136: 0.288391726
D137: Perception | E137: Wireless | F137: At&t | G137: 0.2209562765 | H137: 0.1636900957 | I137: 0.1766044352 | J137: 0.2716190256 | K137: 0.3471099396 | L137: -0.3870967742 | M137: 0.2050471944
D138: Usability | E138: Informational | F138: Newsweek | G138: 0.2143089117 | H138: 0.2618357901 | I138: 0.4231560827 | J138: 0.136851264 | K138: 0.2657458063 | L138: -0.6153846154 | M138: 0.0775308174
D139: Perception | E139: Dating | F139: Match.com | G139: 0.2118853971 | H139: 0.2950580058 | I139: 0.06203651026 | J139: 0.2045964526 | K139: 0.5349931785 | L139: -0.4642857143 | M139: 0.1524517118
D140: Usability | E140: Airlines | F140: American Airlines | G140: 0.2098330311 | H140: 0.1846378864 | I140: 0.2425298975 | J140: 0.2679679431 | K140: 0.1874519023 | L140: -0.3333333333 | M140: 0.2473480539
D141: Usability | E141: Wireless | F141: Sprint | G141: 0.2068563862 | H141: 0.286463224 | I141: 0.1881908829 | J141: 0.1767933304 | K141: 0.2806207213 | L141: -0.25 | M141: 0.3211404447
D142: Usability | E142: 3rd Party Automotive | F142: Kelley Blue Book | G142: 0.2026445032 | H142: 0.1484781837 | I142: 0.3513302004 | J142: 0.3565743451 | K142: 0.07921005006 | L142: -0.2258064516 | M142: 0.3441654667
D143: Perception | E143: Wireless | F143: T-Mobile | G143: 0.1928354764 | H143: 0.1577238432 | I143: 0.1565938399 | J143: 0.2472597846 | K143: 0.2725833635 | L143: -0.5714285714 | M143: 0.09565624385
D144: Usability | E144: Retail | F144: Sears | G144: 0.1851932147 | H144: 0.1952893443 | I144: 0.4408158208 | J144: 0.1670165401 | K144: 0.1323783445 | L144: -0.5833333333 | M144: 0.09046473885
D145: Perception | E145: Education | F145: Devry University | G145: 0.182120627 | H145: 0.2580493838 | I145: 0.07295304907 | J145: 0.1884690113 | K145: 0.3664676218 | L145: -0.6875 | M145: 0.0536081783
D146: Usability | E146: 3rd Party Automotive | F146: Autotrader | G146: 0.1612176903 | H146: 0.1792066715 | I146: 0.1424309018 | J146: 0.2102019345 | K146: 0.1608178299 | L146: -0.3870967742 | M146: 0.2050471944
D147: Usability | E147: Informational | F147: UL Workplace | G147: 0.1541992739 | H147: 0.1736840076 | I147: 0.3452525953 | J147: 0.1028003852 | K147: 0.2294522452 | L147: -0.68 | M147: 0.05578445227
D148: Usability | E148: Travel | F148: Kayak | G148: 0.1533067568 | H148: 0.1567823209 | I148: 0.2699692288 | J148: 0.184495236 | K148: 0.1053704906 | L148: -0.2916666667 | M148: 0.2830903474
D149: Usability | E149: Financial | F149: Bellco | G149: 0.1473285486 | H149: 0.1869580661 | I149: 0.2280659499 | J149: 0.1115388001 | K149: 0.2237417191 | L149: -0.2 | M149: 0.3693768891
D150: Usability | E150: Informational | F150: Julie Garwood | G150: 0.1429754135 | H150: 0.3110330453 | I150: 0.1714107257 | J150: 0.06392312547 | K150: 0.3750814037 | L150: -0.5833333333 | M150: 0.09046473885
D151: Usability | E151: Retail | F151: SilkinaBox | G151: 0.1369108164 | H151: 0.1499741381 | I151: 0.1168279727 | J151: 0.1121729032 | K151: 0.3750814037 | L151: -0.5833333333 | M151: 0.09046473885
D152: Usability | E152: Wireless | F152: T-Mobile | G152: 0.1369103968 | H152: 0.1001448433 | I152: 0.3625624262 | J152: 0.1221422835 | K152: 0.1845731304 | L152: -0.3333333333 | M152: 0.2473480539
D153: Usability | E153: Retail | F153: Container Store | G153: 0.1284657227 | H153: 0.1193239757 | I153: 0.04008267554 | J153: 0.2624507214 | K153: 0.1969282082 | L153: -0.3714285714 | M153: 0.2169091856
D154: Perception | E154: Dating | F154: eHarmony | G154: 0.1273545534 | H154: 0.2532870255 | I154: 0.0447870209 | J154: 0.111986021 | K154: 0.3357036719 | L154: -0.5588235294 | M154: 0.1013885921
D155: Usability | E155: Education | F155: Univ. of Calgery | G155: 0.1173428321 | H155: 0.1969996012 | I155: 0.2819551267 | J155: 0.1078089002 | K155: 0.06597181616 | L155: -0.7333333333 | M155: 0.04173278564
D156: Usability | E156: Retail | F156: Michaels | G156: 0.1118811401 | H156: 0.09314862556 | I156: 0.06902458652 | J156: 0.2181017461 | K156: 0.1323783445 | L156: -0.4 | M156: 0.1955743504
D157: Perception | E157: Dating | F157: PlentyOfFish.com | G157: 0.1085615443 | H157: 0.2203446143 | I157: 0.02739055673 | J157: 0.1874156802 | K157: 0.1188849249 | L157: -0.4210526316 | M157: 0.180700881
D158: Usability | E158: Real Estate | F158: Redfin | G158: 0.1059914381 | H158: 0.1219629069 | I158: 0.2257806096 | J158: 0.1357692515 | K158: 0.06173680128 | L158: -0.3023255814 | M158: 0.2737157268
D159: Usability | E159: IT Services | F159: GoDaddy | G159: 0.1011880388 | H159: 0.1567823209 | I159: 0.2063730135 | J159: 0.08456443089 | K159: 0.1053704906 | L159: -0.5 | M159: 0.1314523573
D160: Usability | E160: Financial | F160: US Bank | G160: 0.1001348981 | H160: 0.2223417595 | I160: 0.1226541427 | J160: 0.07994198538 | K160: 0.118174242 | L160: -0.5833333333 | M160: 0.09046473885
D161: Usability | E161: 3rd Party Automotive | F161: Edmunds | G161: 0.09220942324 | H161: 0.09005414371 | I161: 0.1467652765 | J161: 0.1752400005 | K161: 0.04438766103 | L161: -0.4482758621 | M161: 0.1625512382
D162: Usability | E162: Education | F162: Univ. of Alberta | G162: 0.07725463034 | H162: 0.08203292434 | I162: 0.2322085234 | J162: 0.07186799039 | K162: 0.09169821889 | L162: -0.8333333333 | M162: 0.02313408779
D163: Usability | E163: Governments | F163: CO Govt | G163: 0.06475973545 | H163: 0.04835321396 | I163: 0.1226541427 | J163: 0.08221957497 | K163: 0.118174242 | L163: -0.4166666667 | M163: 0.1837395664
D164: Usability | E164: Retail | F164: Fry's | G164: 0.05843281864 | H164: 0.0780313817 | I164: 0.1140079868 | J164: 0.08221957497 | K164: 0.04338316388 | L164: -0.7083333333 | M164: 0.04791463526
D165: Usability | E165: Retail | F165: Crumpler | G165: 0.05341838132 | H165: 0.06653553094 | I165: 0.08268171658 | J165: 0.06758542627 | K165: 0.0742577442 | L165: -0.5833333333 | M165: 0.09046473885
D166: Usability | E166: Restaurants | F166: Cafe Intl | G166: 0.04497983115 | H166: 0.06073993695 | I166: 0.1287453097 | J166: 0.03691429452 | K166: 0.09385631472 | L166: -0.75 | M166: 0.03798264609
D167: Usability | E167: Restaurants | F167: Bones | G167: 0.04086170585 | H167: 0.09223111894 | I167: 0.06764864142 | J167: 0.04693687706 | K167: 0.03908219812 | L167: -0.8181818182 | M167: 0.02539563091
D168: Usability | E168: Governments | F168: CA Govt | G168: 0.03141108039 | H168: 0.01490206623 | I168: 0.09133833671 | J168: 0.05122503316 | K168: 0.08352052057 | L168: -0.8333333333 | M168: 0.02313408779
D169: Usability | E169: Wireless | F169: Verizon | G169: 0.03065544446 | H169: 0.03849803255 | I169: 0.04067386043 | J169: 0.04345397941 | K169: 0.06597181616 | L169: -0.8333333333 | M169: 0.02313408779
D170: Usability | E170: Financial | F170: Vanguard | G170: 0.03012905801 | H170: 0.02466999902 | I170: 0.05092862029 | J170: 0.0476917687 | K170: 0.07252615993 | L170: -0.7666666667 | M170: 0.03451210633
D171: Usability | E171: Financial | F171: Fidelity | G171: 0.02608484225 | H171: 0.01685628539 | I171: 0.06037837634 | J171: 0.05583796659 | K171: 0.0384423004 | L171: -0.09677419355 | M171: 0.4748689063
D172: Usability | E172: Retail | F172: Tally Ho Uniforms | G172: 0.02294216045 | H172: 0.07288286112 | I172: 0.04505713653 | J172: 0.03057478491 | K172: 0.01537402103 | L172: -0.9166666667 | M172: 0.01350804702
D173: Usability | E173: Governments | F173: Il Govt | G173: 0.01374825331 | H173: 0.01140567919 | I173: 0.04281082522 | J173: 0.03792753114 | K173: 0.01202285337 | L173: -0.6666666667 | M173: 0.05982488837
D174: Usability | E174: Financial | F174: TD Ameritrade | G174: 0.01249953384 | H174: 0.006608506763 | I174: 0.0210279636 | J174: 0.03157390883 | K174: 0.04952852382 | L174: -0.9666666667 | M174: 0.009582826626
D175: Usability | E175: Retail | F175: BicycleDoctorUSA | G175: 0.005145105858 | H175: 0.007111617623 | I175: 0.03670582799 | J175: 0.02605769238 | K175: 0.0007375996134 | L175: -0.84 | M175: 0.02219410275
D176: Usability | E176: Governments | F176: NY Govt | G176: 0.002817057582 | H176: 0.003233680564 | I176: 0.007787931547 | J176: 0.01586782459 | K176: 0.001918445421 | L176: -1 | M176: 0.007557083627

Sheet Normal Curve (hidden)
A1: Contents | X1: measuringu.com
A2: SUPR-Q Graphical Rank
A4: A raw score of a | C4: =Scoring!K5 -> 4.141666667 | D4: is higher than | E4: =Scoring!E6 -> 0.8063219651 | F4: of all websites in the database.

Sheet CI Summary (hidden)
A1: Contents | K1: measuringusability.com
A3: Confidence Interval around a Raw SUPR-Q Score
A4: * Required Fields
B6: Input | F6: Results | L6: CI's Do not EDIT
B7: Raw SUPR-Q Mean* | C7: =Scoring!K5 -> 4.141666667 | I7: Confidence Interval
B8: Raw SUPRQ Standard Deviation* | C8: =Scoring!K6 -> 0.6941056623 | L8: 1 | M8: 0.5
B9: Sample Size* | C9: =Scoring!K7 -> 45 | I9: Low | J9: High | L9: 2 | M9: 0.75
F10: SUPR-Q % Rank | G10: =C41 -> 0.8063219651 | I10: =G34 -> 0.642353781 | J10: =G39 -> 0.9302389116 | L10: 3 | M10: 0.8 | N10: 5 | O10: 2
I11: =C7-C34 -> 3.967811317 | J11: =C7+C34 -> 4.315522016 | L11: 4 | M11: 0.85
B12: Confidence Level | L12: 5 | M12: 0.9 | N12: =VLOOKUP(N10,L8:M14,2) -> 0.9
L13: 6 | M13: 0.95
L14: 7 | M14: 0.99
G15: Margin of Error | H15: =C35 -> 0.04197714682
L16: Do not EDIT
B19: How to Report
B22: We can be | D22: =1-C30/2 -> 0.95 | E22: confident the population mean SUPR-Q Score is above | H22: =I10 -> 0.642353781
B23: We can be | D23: =1-C30 -> 0.9 | E23: confident the population mean SUPR-Q Score is between | H23: =I10 -> 0.642353781 | I23: and | J23: =J10 -> 0.9302389116
B28: Calculations
B30: alpha | C30: =1-N12 -> 0.1
B31: SEM | C31: =C8/SQRT(C9) -> 0.103471163 | F31: Low | G31: =LN(Scoring!AC12-'CI Summary'!I11) -> 0.03168148277 | I31: Graph Low | J31: =G10-I10 -> 0.1639681841
F32: zReflect | G32: =(G31-Scoring!AC13)/Scoring!AC16 -> -0.3647574927 | I32: Graph High | J32: =J10-G10 -> 0.1239169464
B33: T-Critical 2-sided | C33: =TINV(C30,C9-1) -> 1.680229977 | F33: %Reflect | G33: =NORMSDIST(G32) -> 0.357646219
B34: Margin of Error | C34: =C31*C33 -> 0.1738553497 | F34: % | G34: =1-G33 -> 0.642353781
B35: Margin of error % | C35: =C34/C7 -> 0.04197714682
F36: High | G36: =LN(Scoring!AC12-'CI Summary'!J11) -> -0.379098799
G37: =(G36-Scoring!AC13)/Scoring!AC16 -> -1.477572734
B38: Transformed | C38: =LN(Scoring!AC12-C7) -> -0.1527627546 | F38: %Reflect | G38: =NORMSDIST(G37) -> 0.06976108845
B39: zReflect | C39: =(C38-Scoring!AC13)/Scoring!AC16 -> -0.8644220764 | F39: % | G39: =1-G38 -> 0.9302389116
B40: %Reflect | C40: =NORMSDIST(C39) -> 0.1936780349
B41: % | C41: =1-C40 -> 0.8063219651
B42: Copyright © 2004-2011 Measuring Usability LLC

Sheet calcs (hidden)
C2: Graph Calcs
D3: Cell Count Top | E3: =VLOOKUP(Scoring!AC20,calcs!C13:J73,8) -> 39
D4: Cell Count Bottom | E4: 0
F6: First Mean
F8: Mean | G8: =Scoring!AC13 -> 0.1663266423
F9: Sd | G9: =Scoring!AC16 -> 0.3691361032
E12: X | F12: xAxis | G12: Scaled | H12: Series 1 | I12: Labels | J12: Row
C13: =K13 -> 0.001349898032 | D13: -30 | E13: =D13*$G$9/10 -> -1.10740831 | F13: =$G$8+E13 -> -0.9410816674 | G13: =F13+$G$8 -> -0.7747550251 | H13: =NORMDIST(F13,$G$8,$G$9,FALSE) -> 0.01200600097 | I13: =NORMSDIST(D13/10) -> 0.001349898032 | J13: 1 | K13: =I13 -> 0.001349898032
C14: 0.0018658133 | D14: -29 | E14: -1.070494699 | F14: -0.9041680571 | G14: -0.7378414148 | H14: 0.01612557636 | I14: 0.0018658133 | J14: 2 | K14: 0.0018658133
C15: 0.00255513033 | D15: -28 | E15: -1.033581089 | F15: -0.8672544468 | G15: -0.7009278045 | H15: 0.02144317913 | I15: 0.00255513033 | J15: 3 | K15: 0.00255513033
C16: 0.003466973803 | D16: -27 | E16: -0.9966674787 | F16: -0.8303408364 | G16: -0.6640141942 | H16: 0.02823060309 | I16: 0.003466973803 | J16: 4 | K16: 0.003466973803
C17: 0.004661188024 | D17: -26 | E17: -0.9597538684 | F17: -0.7934272261 | G17: -0.6271005838 | H17: 0.03679664253 | I17: 0.004661188024 | J17: 5 | K17: 0.004661188024
C18: 0.006209665326 | D18: -25 | E18: -0.922840258 | F18: -0.7565136158 | G18: -0.5901869735 | H18: 0.04748465496 | I18: 0.006209665326 | J18: 6 | K18: 0.006209665326
C19: 0.008197535925 | D19: -24 | E19: -0.8859266477 | F19: -0.7196000055 | G19: -0.5532733632 | H19: 0.06066740722 | I19: 0.008197535925 | J19: 7 | K19: 0.008197535925
C20: 0.01072411002 | D20: -23 | E20: -0.8490130374 | F20: -0.6826863951 | G20: -0.5163597529 | H20: 0.07673873537 | I20: 0.01072411002 | J20: 8 | K20: 0.01072411002
C21: 0.01390344751 | D21: -22 | E21: -0.8120994271 | F21: -0.6457727848 | G21: -0.4794461426 | H21: 0.09610166152 | I21: 0.01390344751 | J21: 9 | K21: 0.01390344751
C22: 0.01786442056 | D22: -21 | E22: -0.7751858168 | F22: -0.6088591745 | G22: -0.4425325322 | H22: 0.1191527884 | I22: 0.01786442056 | J22: 10 | K22: 0.01786442056
C23: 0.02275013195 | D23: -20 | E23: -0.7382722064 | F23: -0.5719455642 | G23: -0.4056189219 | H23: 0.1462630343 | I23: 0.02275013195 | J23: 11 | K23: 0.02275013195
C24: 0.02871655982 | D24: -19 | E24: -0.7013585961 | F24: -0.5350319539 | G24: -0.3687053116 | H24: 0.1777550725 | I24: 0.02871655982 | J24: 12 | K24: 0.02871655982
C25: 0.03593031911 | D25: -18 | E25: -0.6644449858 | F25: -0.4981183435 | G25: -0.3317917013 | H25: 0.213878181 | I25: 0.03593031911 | J25: 13 | K25: 0.03593031911
C26: 0.04456546276 | D26: -17 | E26: -0.6275313755 | F26: -0.4612047332 | G26: -0.2948780909 | H26: 0.2547815739 | I26: 0.04456546276 | J26: 14 | K26: 0.04456546276
C27: 0.0547992917 | D27: -16 | E27: -0.5906177652 | F27: -0.4242911229 | G27: -0.2579644806 | H27: 0.3004876351 | I27: 0.0547992917 | J27: 15 | K27: 0.0547992917
C28: 0.06680720127 | D28: -15 | E28: -0.5537041548 | F28: -0.3873775126 | G28: -0.2210508703 | H28: 0.3508667793 | I28: 0.06680720127 | J28: 16 | K28: 0.06680720127
C29: 0.08075665923 | D29: -14 | E29: -0.5167905445 | F29: -0.3504639022 | G29: -0.18413726 | H29: 0.4056158808 | I29: 0.08075665923 | J29: 17 | K29: 0.08075665923
C30: 0.09680048459 | D30: -13 | E30: -0.4798769342 | F30: -0.3135502919 | G30: -0.1472236497 | H30: 0.4642422959 | I30: 0.09680048459 | J30: 18 | K30: 0.09680048459
C31: 0.1150696702 | D31: -12 | E31: -0.4429633239 | F31: -0.2766366816 | G31: -0.1103100393 | H31: 0.5260554394 | I31: 0.1150696702 | J31: 19 | K31: 0.1150696702
C32: 0.1356660609 | D32: -11 | E32: -0.4060497135 | F32: -0.2397230713 | G32: -0.07339642902 | H32: 0.5901676242 | I32: 0.1356660609 | J32: 20 | K32: 0.1356660609
C33: 0.1586552539 | D33: -10 | E33: -0.3691361032 | F33: -0.202809461 | G33: -0.03648281869 | H33: 0.6555054421 | I33: 0.1586552539 | J33: 21 | K33: 0.1586552539
C34: 0.1840601253 | D34: -9 | E34: -0.3322224929 | F34: -0.1658958506 | G34: 0.0004307916284 | H34: 0.7208323639 | I34: 0.1840601253 | J34: 22 | K34: 0.1840601253
C35: 0.2118553986 | D35: -8 | E35: -0.2953088826 | F35: -0.1289822403 | G35: 0.03734440195 | H35: 0.7847824968 | I35: 0.2118553986 | J35: 23 | K35: 0.2118553986
C36: 0.2419636522 | D36: -7 | E36: -0.2583952723 | F36: -0.09206862999 | G36: 0.07425801227 | H36: 0.8459046152 | I36: 0.2419636522 | J36: 24 | K36: 0.2419636522
C37: 0.2742531178 | D37: -6 | E37: -0.2214816619 | F37: -0.05515501967 | G37: 0.1111716226 | H37: 0.9027147439 | I37: 0.2742531178 | J37: 25 | K37: 0.2742531178
C38: 0.3085375387 | D38: -5 | E38: -0.1845680516 | F38: -0.01824140935 | G38: 0.1480852329 | H38: 0.9537547904 | I38: 0.3085375387 | J38: 26 | K38: 0.3085375387
C39: 0.3445782584 | D39: -4 | E39: -0.1476544413 | F39: 0.01867220098 | G39: 0.1849988432 | H39: 0.9976540823 | I39: 0.3445782584 | J39: 27 | K39: 0.3445782584
C40: 0.3820885778 | D40: -3 | E40: -0.110740831 | F40: 0.0555858113 | G40: 0.2219124536 | H40: 1.03319023 | I40: 0.3820885778 | J40: 28 | K40: 0.3820885778
C41: 0.4207402906 | D41: -2 | E41: -0.07382722064 | F41: 0.09249942162 | G41: 0.2588260639 | H41: 1.059345565 | I41: 0.4207402906 | J41: 29 | K41: 0.4207402906
C42: 0.4601721627 | D42: -1 | E42: -0.03691361032 | F42: 0.1294130319 | G42: 0.2957396742 | H42: 1.075355523 | I42: 0.4601721627 | J42: 30 | K42: 0.4601721627
C43: 0.5 | D43: 0 | E43: 0 | F43: 0.1663266423 | G43: 0.3326532845 | H43: 1.080745765 | I43: 0.5 | J43: 31 | K43: 0.5
C44: 0.5398278373 | D44: 1 | E44: 0.03691361032 | F44: 0.2032402526 | G44: 0.3695668948 | H44: 1.075355523 | I44: 0.5398278373 | J44: 32 | K44: 0.5398278373
C45: =K45 -> 0.5792597094 | D45: 2 | E45: =D45*$G$9/10 -> 0.07382722064 | F45: =$G$8+E45 -> 0.2401538629 | G45: =F45+$G$8 -> 0.4064805052 | H45: =NORMDIST(F45,$G$8,$G$9,FALSE) -> 1.059345565 | I45: =NORMSDIST(D45/10) -> 0.5792597094 | J45: 33 | K45: =I45 -> 0.5792597094
C46: 0.6179114222 | D46: 3 | E46: 0.110740831 | F46: 0.2770674732 | G46: 0.4433941155 | H46: 1.03319023 | I46: 0.6179114222 | J46: 34 | K46: 0.6179114222
C47: 0.6554217416 | D47: 4 | E47: 0.1476544413 | F47: 0.3139810836 | G47: 0.4803077258 | H47: 0.9976540823 | I47: 0.6554217416 | J47: 35 | K47: 0.6554217416
C48: 0.6914624613 | D48: 5 | E48: 0.1845680516 | F48: 0.3508946939 | G48: 0.5172213361 | H48: 0.9537547904 | I48: 0.6914624613 | J48: 36 | K48: 0.6914624613
C49: 0.7257468822 | D49: 6 | E49: 0.2214816619 | F49: 0.3878083042 | G49: 0.5541349465 | H49: 0.9027147439 | I49: 0.7257468822 | J49: 37 | K49: 0.7257468822
C50: 0.7580363478 | D50: 7 | E50: 0.2583952723 | F50: 0.4247219145 | G50: 0.5910485568 | H50: 0.8459046152 | I50: 0.7580363478 | J50: 38 | K50: 0.7580363478
C51: 0.7881446014 | D51: 8 | E51: 0.2953088826 | F51: 0.4616355248 | G51: 0.6279621671 | H51: 0.7847824968 | I51: 0.7881446014 | J51: 39 | K51: 0.7881446014
C52: 0.8159398747 | D52: 9 | E52: 0.3322224929 | F52: 0.4985491352 | G52: 0.6648757774 | H52: 0.7208323639 | I52: 0.8159398747 | J52: 40 | K52: 0.8159398747
C53: 0.8413447461 | D53: 10 | E53: 0.3691361032 | F53: 0.5354627455 | G53: 0.7017893877 | H53: 0.6555054421 | I53: 0.8413447461 | J53: 41 | K53: 0.8413447461
C54: 0.8643339391 | D54: 11 | E54: 0.4060497135 | F54: 0.5723763558 | G54: 0.7387029981 | H54: 0.5901676242 | I54: 0.8643339391 | J54: 42 | K54: 0.8643339391
C55: 0.8849303298 | D55: 12 | E55: 0.4429633239 | F55: 0.6092899661 | G55: 0.7756166084 | H55: 0.5260554394 | I55: 0.8849303298 | J55: 43 | K55: 0.8849303298
C56: 0.9031995154 | D56: 13 | E56: 0.4798769342 | F56: 0.6462035764 | G56: 0.8125302187 | H56: 0.4642422959 | I56: 0.9031995154 | J56: 44 | K56: 0.9031995154
C57: 0.9192433408 | D57: 14 | E57: 0.5167905445 | F57: 0.6831171868 | G57: 0.849443829 | H57: 0.4056158808 | I57: 0.9192433408 | J57: 45 | K57: 0.9192433408
C58: 0.9331927987 | D58: 15 | E58: 0.5537041548 | F58: 0.7200307971 | G58: 0.8863574394 | H58: 0.3508667793 | I58: 0.9331927987 | J58: 46 | K58: 0.9331927987
C59: 0.9452007083 | D59: 16 | E59: 0.5906177652 | F59: 0.7569444074 | G59: 0.9232710497 | H59: 0.3004876351 | I59: 0.9452007083 | J59: 47 | K59: 0.9452007083
C60: 0.9554345372 | D60: 17 | E60: 0.6275313755 | F60: 0.7938580177 | G60: 0.96018466 | H60: 0.2547815739 | I60: 0.9554345372 | J60: 48 | K60: 0.9554345372
C61: 0.9640696809 | D61: 18 | E61: 0.6644449858 | F61: 0.8307716281 | G61: 0.9970982703 | H61: 0.213878181 | I61: 0.9640696809 | J61: 49 | K61: 0.9640696809
C62: 0.9712834402 | D62: 19 | E62: 0.7013585961 | F62: 0.8676852384 | G62: 1.034011881 | H62: 0.1777550725 | I62: 0.9712834402 | J62: 50 | K62: 0.9712834402
C63: 0.9772498681 | D63: 20 | E63: 0.7382722064 | F63: 0.9045988487 | G63: 1.070925491 | H63: 0.1462630343 | I63: 0.9772498681 | J63: 51 | K63: 0.9772498681
C64: 0.9821355794 | D64: 21 | E64: 0.7751858168 | F64: 0.941512459 | G64: 1.107839101 | H64: 0.1191527884 | I64: 0.9821355794 | J64: 52 | K64: 0.9821355794
C65: 0.9860965525 | D65: 22 | E65: 0.8120994271 | F65: 0.9784260693 | G65: 1.144752712 | H65: 0.09610166152 | I65: 0.9860965525 | J65: 53 | K65: 0.9860965525
C66: 0.98927589 | D66: 23 | E66: 0.8490130374 | F66: 1.01533968 | G66: 1.181666322 | H66: 0.07673873537 | I66: 0.98927589 | J66: 54 | K66: 0.98927589
C67: 0.9918024641 | D67: 24 | E67: 0.8859266477 | F67: 1.05225329 | G67: 1.218579932 | H67: 0.06066740722 | I67: 0.9918024641 | J67: 55 | K67: 0.9918024641
C68: 0.9937903347 | D68: 25 | E68: 0.922840258 | F68: 1.0891669 | G68: 1.255493543 | H68: 0.04748465496 | I68: 0.9937903347 | J68: 56 | K68: 0.9937903347
C69: 0.995338812 | D69: 26 | E69: 0.9597538684 | F69: 1.126080511 | G69: 1.292407153 | H69: 0.03679664253 | I69: 0.995338812 | J69: 57 | K69: 0.995338812
C70: 0.9965330262 | D70: 27 | E70: 0.9966674787 | F70: 1.162994121 | G70: 1.329320763 | H70: 0.02823060309 | I70: 0.9965330262 | J70: 58 | K70: 0.9965330262
C71: 0.9974448697 | D71: 28 | E71: 1.033581089 | F71: 1.199907731 | G71: 1.366234374 | H71: 0.02144317913 | I71: 0.9974448697 | J71: 59 | K71: 0.9974448697
C72: 0.9981341867 | D72: 29 | E72: 1.070494699 | F72: 1.236821342 | G72: 1.403147984 | H72: 0.01612557636 | I72: 0.9981341867 | J72: 60 | K72: 0.9981341867
C73: 0.998650102 | D73: 30 | E73: 1.10740831 | F73: 1.273734952 | G73: 1.440061594 | H73: 0.01200600097 | I73: 0.998650102 | J73: 61 | K73: 0.998650102

Sheet Summary Scoring (hidden)
A1: Contents | X1: measuringusability.com
A2: Convert summary scores to transformed scores
C5: SUPR-Q | D5: Usability | E5: Trust | F5: Loyalty | G5: Apperance
B6: Raw Score | C6: 3.563812336 | D6: 3.3295 | E6: 3.576115486 | F6: 3.669947507 | G6: 3.544619423
B7: SD | C7: 1.047071771 | D7: 1.205002352 | E7: 0.9784421707 | F7: 1.293641737 | G7: 1.087901734
B8: N | C8: 300 | D8: 300 | E8: 300 | F8: 300 | G8: 300
B12: Results
B13: Percentile | C13: =IF(C6<>"",C45,"") -> 0.2980340179 | D13: =IF(D6<>"",D45,"") -> 0.1698741925 | E13: =IF(E6<>"",E45,"") -> 0.2023105482 | F13: =IF(F6<>"",F45,"") -> 0.4657092933 | G13: =IF(G6<>"",G45,"") -> 0.282626569 | H13: =IF(H6<>"",H44,"") -> 
B15: Low | C15: =IF(C7<>"",C56,"") -> 0.2382439706 | D15: =IF(D7<>"",D56,"") -> 0.1330058597 | E15: =IF(E7<>"",E56,"") -> 0.1557764343 | F15: =IF(F7<>"",F56,"") -> 0.3989578831 | G15: =IF(G7<>"",G56,"") -> 0.2186945259
B16: High | C16: =IF(C7<>"",C61,"") -> 0.3687878333 | D16: =IF(D7<>"",D61,"") -> 0.215990974 | E16: =IF(E7<>"",E61,"") -> 0.2601995339 | F16: =IF(F7<>"",F61,"") -> 0.5400122866 | G16: =IF(G7<>"",G61,"") -> 0.3599441764
B18: SUS Equivelent | D18: =IF(D6<>"",- 13.6 + 22*D6,"") -> 59.649
B19: SUS Percentile Rank | D19: =I45 -> 0.2801096868
B34: Calculations
B35: Global Calcs | C35: SUPR-Q | D35: =Scoring!AD11 -> Usability | E35: =Scoring!AE11 -> Trust | F35: =Scoring!AF11 -> Loyalty | G35: =Scoring!AG11 -> App | H35: NPS | I35: SUS
B36: Max Score | C36: =Scoring!AC12 -> 5 | D36: =Scoring!AD12 -> 5 | E36: =Scoring!AE12 -> 5 | F36: =Scoring!AF12 -> 5 | G36: =Scoring!AG12 -> 5 | H36: 1 | I36: 100
B37: Global ln Mean | C37: =Scoring!AC13 -> 0.1663266423 | D37: =Scoring!AD13 -> 0.110636421 | E37: =Scoring!AE13 -> 0.05747114502 | F37: =Scoring!AF13 -> 0.240357581 | G37: =Scoring!AG13 -> 0.179010308 | H37: =Scoring!DZ8 -> 0 | I37: =LN(I36-68) -> 3.465735903
B38: Study Mean | C38: =C6 -> 3.563812336 | D38: 3.3295 | E38: 3.576115486 | F38: 3.669947507 | G38: 3.544619423 | H38: 0
B39: Study Mean Ref | C39: =LN(C36-C38) -> 0.3619921474 | D39: 0.5131229828 | E39: 0.3533887103 | F39: 0.2852184102 | G39: 0.3752674317 | H39: 0 | I39: =LN(I36-D18) -> 3.697616178
B40: Global SD | C40: =EXP(C41) -> 1.446484461 | D40: =EXP(D41) -> 1.524399984 | E40: =EXP(E41) -> 1.426286373 | F40: =EXP(F41) -> 1.684169974 | G40: =EXP(G41) -> 1.406751643 | H40: =Scoring!DZ9 -> 0 | I40: 12.5
B41: Global Ln SD | C41: =Scoring!AC16 -> 0.3691361032 | D41: =Scoring!AD16 -> 0.4216008796 | E41: =Scoring!AE16 -> 0.3550741247 | F41: =Scoring!AF16 -> 0.5212728454 | G41: =Scoring!AG16 -> 0.3412832475 | I41: 0.398067
B42: Study SD | C42: =C7 -> 1.047071771 | D42: 1.205002352 | E42: 0.9784421707 | F42: 1.293641737 | G42: 1.087901734 | H42: 0
B43: zReflect | C43: =(C39-C37)/C41 -> 0.530063311 | D43: =(D39-D37)/D41 -> 0.9546625288 | E43: =(E39-E37)/E41 -> 0.8333965915 | F43: =(F39-F37)/F41 -> 0.08606016898 | G43: =(G39-G37)/G41 -> 0.5750564234 | H43: =(H38-H37)/H40 ->  | I43: =(I39-I37)/I41 -> 0.582515694
B44: %Reflect | C44: =NORMSDIST(C43) -> 0.7019659821 | D44: 0.8301258075 | E44: 0.7976894518 | F44: 0.5342907067 | G44: 0.717373431 | I44: 0.7198903132
B45: % | C45: =1-C44 -> 0.2980340179 | D45: =1-D44 -> 0.1698741925 | E45: =1-E44 -> 0.2023105482 | F45: =1-F44 -> 0.4657092933 | G45: =1-G44 -> 0.282626569 | I45: =1-I44 -> 0.2801096868
B46: N | C46: =C8 -> 300 | D46: =D8 -> 300 | E46: =E8 -> 300 | F46: =F8 -> 300 | G46: =G8 -> 300
B47: SE | C47: =C42/SQRT(C46) -> 0.06045271687 | D47: =D42/SQRT(D46) -> 0.0695708432 | E47: =E42/SQRT(E46) -> 0.05649038506 | F47: =F42/SQRT(F46) -> 0.07468844053 | G47: =G42/SQRT(G46) -> 0.06281003592
B48: t | C48: =TINV(1-Scoring!$CK$18,C46-1) -> 1.649965767 | D48: =TINV(1-Scoring!$CK$18,D46-1) -> 1.649965767 | E48: =TINV(1-Scoring!$CK$18,E46-1) -> 1.649965767 | F48: =TINV(1-Scoring!$CK$18,F46-1) -> 1.649965767 | G48: =TINV(1-Scoring!$CK$18,G46-1) -> 1.649965767
B49: Margin | C49: =C48*C47 -> 0.09974491338 | D49: =D48*D47 -> 0.1147895097 | E49: =E48*E47 -> 0.09320720154 | F49: =F48*F47 -> 0.1232333701 | G49: =G48*G47 -> 0.1036344091
B50: Low | C50: =C38-C49 -> 3.464067423 | D50: =D38-D49 -> 3.21471049 | E50: =E38-E49 -> 3.482908284 | F50: =F38-F49 -> 3.546714136 | G50: =G38-G49 -> 3.440985013
B51: High | C51: =C38+C49 -> 3.663557249 | D51: =D38+D49 -> 3.44428951 | E51: =E38+E49 -> 3.669322687 | F51: =F38+F49 -> 3.793180877 | G51: =G38+G49 -> 3.648253832
B53: Low Ln Reflect | C53: =LN(C36-C50) -> 0.4291377389 | D53: =LN(D36-D50) -> 0.5795805924 | E53: =LN(E36-E50) -> 0.4167951573 | F53: =LN(F36-F50) -> 0.3738271055 | G53: =LN(G36-G50) -> 0.444054203
B54: zReflect | C54: =(C53-C37)/C41 -> 0.7119625913 | D54: =(D53-D37)/D41 -> 1.112294101 | E54: =(E53-E37)/E41 -> 1.011969015 | F54: =(F53-F37)/F41 -> 0.2560454196 | G54: =(G53-G37)/G41 -> 0.7766097425
B55: %Reflect | C55: =NORMSDIST(C54) -> 0.7617560294 | D55: =NORMSDIST(D54) -> 0.8669941403 | E55: =NORMSDIST(E54) -> 0.8442235657 | F55: =NORMSDIST(F54) -> 0.6010421169 | G55: =NORMSDIST(G54) -> 0.7813054741
B56: % | C56: =1-C55 -> 0.2382439706 | D56: =1-D55 -> 0.1330058597 | E56: =1-E55 -> 0.1557764343 | F56: =1-F55 -> 0.3989578831 | G56: =1-G55 -> 0.2186945259
B58: High Ln Reflect | C58: =LN(C36-C51) -> 0.2900114204 | D58: =LN(D36-D51) -> 0.4419323482 | E58: =LN(E36-E51) -> 0.2856880704 | F58: =LN(F36-F51) -> 0.1879880745 | G58: =LN(G36-G51) -> 0.3013972147
C59: =(C58-C37)/C41 -> 0.335065514 | D59: =(D58-D37)/D41 -> 0.7858046396 | E59: =(E58-E37)/E41 -> 0.6427303752 | F59: =(F58-F37)/F41 -> -0.1004646741 | G59: =(G58-G37)/G41 -> 0.3586080113
C60: =NORMSDIST(C59) -> 0.6312121667 | D60: =NORMSDIST(D59) -> 0.784009026 | E60: =NORMSDIST(E59) -> 0.7398004661 | F60: =NORMSDIST(F59) -> 0.4599877134 | G60: =NORMSDIST(G59) -> 0.6400558236
C61: =1-C60 -> 0.3687878333 | D61: =1-D60 -> 0.215990974 | E61: =1-E60 -> 0.2601995339 | F61: =1-F60 -> 0.5400122866 | G61: =1-G60 -> 0.3599441764

Sheet License Terms (hidden)
